{"text_format":"1","workbook":"xlsx","n_sheets":4,"sheets":["Report_1","Pivot","Grunddaten","Ermittlung Fahrplanstunden"],"not_rendered":{"charts":0,"images":0,"macros":1,"external_links":0,"defined_names":8,"comments":0,"pivot_tables":1},"unopened":[],"bounds":{"document_bytes":16777216,"sheet_cells":100000,"rows_first":2000,"rows_last":500,"rows_between":2000,"halvings":0,"cell_chars":16384,"cell_head_chars":4096},"cells_cut":0,"cells_raw":0,"read":"whole","date_system":"1900"}

{"sheet":"Report_1","index":0,"n_rows":29,"n_cols":6,"rows_kept":29,"cut":false,"hidden":false,"merged":[[11,0,11,5],[0,0,0,5],[1,0,1,5],[5,0,5,5],[8,0,8,5]]}
["* DIVA * Dialoggesteuertes Verkehrsmanagement- und Auskunftsystem * DIVA *"]
["15.12.2024 - 13.12.2025"]
[]
[]
["Fahrplanprojekt:",null,null,null,null,"2025-02-14T15:07:44"]
["Angebotsplanung 2025"]
[]
["Linien:"]
["MO1"]
[]
["Unternehmer:"]
["HEAG Verkehrs-GmbH"]
[]
["Regelfahrplan",null,"Samstag","Sonn. u. Feiertag","Montag-Freitag","Summe"]
[]
[null,"Gelenk-Überlandbus-NF"]
[null,"Nutz-km",44190.197999999989,0,200769.61200000017,244959.81000000017]
[null,"Sitzplatz-km",0,0,0,0]
[null,"Stehplatz-km",0,0,0,0]
[]
[null,"Solo-Überlandbus-NF"]
[null,"Nutz-km",0,46096.064000000028,52550.770000000004,98646.834000000032]
[null,"Sitzplatz-km",0,0,0,0]
[null,"Stehplatz-km",0,0,0,0]
[]
[null,"Summe"]
[null,"Nutz-km",44190.197999999989,46096.064000000028,253320.38200000016,343606.6440000002]
[null,"Sitzplatz-km",0,0,0,0]
[null,"Stehplatz-km",0,0,0,0]

{"sheet":"Pivot","index":1,"n_rows":34,"n_cols":8,"rows_kept":34,"cut":false,"hidden":false,"merged":[]}
["LIN","(Alle)"]
[]
[null,null,null,null,"WT"]
["FP","TG","Daten","LANDKREIS","Sa","So","Mo-Fr","Gesamtergebnis"]
["REG","Gelenk-Überlandbus-NF","Summe von NUTZ_KM","Darmstadt",12202.865999999996,0,60353.776000000042,72556.642000000036]
[null,null,null,"Ober-Ramstadt",26904.149999999991,0,113865.86799999999,140770.01799999998]
[null,null,null,"Roßdorf",5083.1820000000007,0,26549.967999999986,31633.149999999987]
[null,null,"Summe von SITZ_KM","Darmstadt",0,0,0,0]
[null,null,null,"Ober-Ramstadt",0,0,0,0]
[null,null,null,"Roßdorf",0,0,0,0]
[null,null,"Summe von STEH_KM","Darmstadt",0,0,0,0]
[null,null,null,"Ober-Ramstadt",0,0,0,0]
[null,null,null,"Roßdorf",0,0,0,0]
[null,"Gelenk-Überlandbus-NF Summe von NUTZ_KM",null,null,44190.197999999989,0,200769.61200000002,244959.81000000003]
[null,"Gelenk-Überlandbus-NF Summe von SITZ_KM",null,null,0,0,0,0]
[null,"Gelenk-Überlandbus-NF Summe von STEH_KM",null,null,0,0,0,0]
[null,"Solo-Überlandbus-NF","Summe von NUTZ_KM","Darmstadt",0,12932.952000000007,6457.92,19390.872000000007]
[null,null,null,"Ober-Ramstadt",0,27775.808000000001,43356.665999999997,71132.474000000002]
[null,null,null,"Roßdorf",0,5387.3039999999992,2736.1840000000002,8123.4879999999994]
[null,null,"Summe von SITZ_KM","Darmstadt",0,0,0,0]
[null,null,null,"Ober-Ramstadt",0,0,0,0]
[null,null,null,"Roßdorf",0,0,0,0]
[null,null,"Summe von STEH_KM","Darmstadt",0,0,0,0]
[null,null,null,"Ober-Ramstadt",0,0,0,0]
[null,null,null,"Roßdorf",0,0,0,0]
[null,"Solo-Überlandbus-NF Summe von NUTZ_KM",null,null,0,46096.064000000006,52550.77,98646.834000000003]
[null,"Solo-Überlandbus-NF Summe von SITZ_KM",null,null,0,0,0,0]
[null,"Solo-Überlandbus-NF Summe von STEH_KM",null,null,0,0,0,0]
["REG Summe von NUTZ_KM",null,null,null,44190.197999999989,46096.064000000006,253320.38200000004,343606.64400000003]
["REG Summe von SITZ_KM",null,null,null,0,0,0,0]
["REG Summe von STEH_KM",null,null,null,0,0,0,0]
["Gesamt: Summe von NUTZ_KM",null,null,null,44190.197999999989,46096.064000000006,253320.38200000004,343606.64400000003]
["Gesamt: Summe von SITZ_KM",null,null,null,0,0,0,0]
["Gesamt: Summe von STEH_KM",null,null,null,0,0,0,0]

{"sheet":"Grunddaten","index":2,"n_rows":290,"n_cols":30,"rows_kept":290,"cut":false,"hidden":false,"merged":[]}
["FP","BZWG","UNTERNEHMER","KOSTENTRAEGER","LIN","KURS","RICHTUNG","WT","FSCHL","ARTF","LANDKREIS","TG","WAGEN_KM","KOSTEN_KM","KOSTEN_STD","SITZ_KM","STEH_KM","AB","AN","FAHRZEIT","Ermittlung Fahrplanstunden","VB","VT","STRECKE_M","NUTZ_KM","LEER_KM","DIENST_NR","VERKEHRSTAGE","BUCH_UEBERSCHRIFT_NUMMER","BUCH_UEBERSCHRIFT_TEXT_1"]
["REG",18,"HEAG Verkehrs-GmbH",null,"056_",0,"H","Mo-Fr",503," ","Darmstadt","Solo-Überlandbus-NF",0,0,0,0,0,"2000-01-01T05:03:00","2000-01-01T05:24:12",3.6511111111030914,{"$f":"T2*24","v":87.626666666474193},null,248,8657,2146.9360000000001,0,0,"OlllllOOlOOOlOOlOOllOOlllllOOlllllOOlllllOOlllllOOlllllOOlllllOOlllllOOlllllOOlllllOOlllllOOlllllOOlllllOOlllllOOlllllOOllllOOOOllllOOlllOlOOlllllOOlllllOOlllllOOlllOlOOlllllOOOllllOOlllOlOOlllllOOlllllOOlllllOOlllllOOlllllOOlllllOOlllllOOlllllOOlllllOOlllllOOlllllOOlllllOOlllllOOlllllOOllllOOOlllllOOlllllOOlllllOOlllllOOlllllOOlllllOOlllllOOlllllOOlllllOOlllllO","MO1","Darmstadt Hbf # Roßdorf # Ober-Ramstadt # Hahn #"]
["REG",18,"HEAG Verkehrs-GmbH",null,"056_",0,"H","Mo-Fr",503," ","Roßdorf","Solo-Überlandbus-NF",0,0,0,0,0,"2000-01-01T05:24:12","2000-01-01T05:32:30",1.4294444447732531,{"$f":"T3*24","v":34.306666674558073},null,248,3792,940.41600000000005,0,0,"OlllllOOlOOOlOOlOOllOOlllllOOlllllOOlllllOOlllllOOlllllOOlllllOOlllllOOlllllOOlllllOOlllllOOlllllOOlllllOOlllllOOlllllOOllllOOOOllllOOlllOlOOlllllOOlllllOOlllllOOlllOlOOlllllOOOllllOOlllOlOOlllllOOlllllOOlllllOOlllllOOlllllOOlllllOOlllllOOlllllOOlllllOOlllllOOlllllOOlllllOOlllllOOlllllOOllllOOOlllllOOlllllOOlllllOOlllllOOlllllOOlllllOOlllllOOlllllOOlllllOOlllllO","MO1","Darmstadt Hbf # Roßdorf # Ober-Ramstadt # Hahn #"]
["REG",18,"HEAG Verkehrs-GmbH",null,"056_",0,"H","Mo-Fr",503," ","Ober-Ramstadt","Solo-Überlandbus-NF",0,0,0,0,0,"2000-01-01T05:32:30","2000-01-01T06:05:00",5.5972222206182778,134.33333329483867,null,248,15336,3803.328,0,0,"OlllllOOlOOOlOOlOOllOOlllllOOlllllOOlllllOOlllllOOlllllOOlllllOOlllllOOlllllOOlllllOOlllllOOlllllOOlllllOOlllllOOlllllOOllllOOOOllllOOlllOlOOlllllOOlllllOOlllllOOlllOlOOlllllOOOllllOOlllOlOOlllllOOlllllOOlllllOOlllllOOlllllOOlllllOOlllllOOlllllOOlllllOOlllllOOlllllOOlllllOOlllllOOlllllOOllllOOOlllllOOlllllOOlllllOOlllllOOlllllOOlllllOOlllllOOlllllOOlllllOOlllllO","MO1","Darmstadt Hbf # Roßdorf # Ober-Ramstadt # Hahn #"]
["REG",18,"HEAG Verkehrs-GmbH",null,"056_",0,"H","Mo-Fr",603," ","Darmstadt","Solo-Überlandbus-NF",0,0,0,0,0,"2000-01-01T06:03:00","2000-01-01T06:24:12",3.6511111111030914,87.626666666474193,null,248,8657,2146.9360000000001,0,0,"OlllllOOlOOOlOOlOOllOOlllllOOlllllOOlllllOOlllllOOlllllOOlllllOOlllllOOlllllOOlllllOOlllllOOlllllOOlllllOOlllllOOlllllOOllllOOOOllllOOlllOlOOlllllOOlllllOOlllllOOlllOlOOlllllOOOllllOOlllOlOOlllllOOlllllOOlllllOOlllllOOlllllOOlllllOOlllllOOlllllOOlllllOOlllllOOlllllOOlllllOOlllllOOlllllOOllllOOOlllllOOlllllOOlllllOOlllllOOlllllOOlllllOOlllllOOlllllOOlllllOOlllllO","MO1","Darmstadt Hbf # Roßdorf # Ober-Ramstadt # Hahn #"]
["REG",18,"HEAG Verkehrs-GmbH",null,"056_",0,"H","Mo-Fr",603," ","Roßdorf","Solo-Überlandbus-NF",0,0,0,0,0,"2000-01-01T06:24:12","2000-01-01T06:32:30",1.4294444447732531,34.306666674558073,null,248,3792,940.41600000000005,0,0,"OlllllOOlOOOlOOlOOllOOlllllOOlllllOOlllllOOlllllOOlllllOOlllllOOlllllOOlllllOOlllllOOlllllOOlllllOOlllllOOlllllOOlllllOOllllOOOOllllOOlllOlOOlllllOOlllllOOlllllOOlllOlOOlllllOOOllllOOlllOlOOlllllOOlllllOOlllllOOlllllOOlllllOOlllllOOlllllOOlllllOOlllllOOlllllOOlllllOOlllllOOlllllOOlllllOOllllOOOlllllOOlllllOOlllllOOlllllOOlllllOOlllllOOlllllOOlllllOOlllllOOlllllO","MO1","Darmstadt Hbf # Roßdorf # Ober-Ramstadt # Hahn #"]
["REG",18,"HEAG Verkehrs-GmbH",null,"056_",0,"H","Mo-Fr",603," ","Ober-Ramstadt","Solo-Überlandbus-NF",0,0,0,0,0,"2000-01-01T06:32:30","2000-01-01T07:05:00",5.5972222224227153,134.33333333814517,null,248,15336,3803.328,0,0,"OlllllOOlOOOlOOlOOllOOlllllOOlllllOOlllllOOlllllOOlllllOOlllllOOlllllOOlllllOOlllllOOlllllOOlllllOOlllllOOlllllOOlllllOOllllOOOOllllOOlllOlOOlllllOOlllllOOlllllOOlllOlOOlllllOOOllllOOlllOlOOlllllOOlllllOOlllllOOlllllOOlllllOOlllllOOlllllOOlllllOOlllllOOlllllOOlllllOOlllllOOlllllOOlllllOOllllOOOlllllOOlllllOOlllllOOlllllOOlllllOOlllllOOlllllOOlllllOOlllllOOlllllO","MO1","Darmstadt Hbf # Roßdorf # Ober-Ramstadt # Hahn #"]
["REG",18,"HEAG Verkehrs-GmbH",null,"056_",0,"H","Mo-Fr",713," ","Roßdorf","Gelenk-Überlandbus-NF",0,0,0,0,0,"2000-01-01T07:13:00","2000-01-01T07:19:30",0.87569444447581191,21.016666667419486,"09    - nur an Schultagen",194,2609,506.14600000000002,0,0,"OlllllOOOOOOOOOOOOOOOOlllllOOlllllOOlllllOOlllllOOlllllOOlllllOOlllllOOlllllOOlllllOOlllllOOlllllOOlllllOOlllllOOOOOOOOOOOOOOOOOllllOOlllOlOOlllllOOlllllOOlllllOOlllOlOOlllllOOOllllOOlllOlOOlllllOOlllllOOOOOOOOOOOOOOOOOOOOOOOOOOOOOOOOOOOOOOOOOOOOlllllOOlllllOOlllllOOlllllOOlllllOOlllllOOllllOOOOOOOOOOOOOOOOOlllllOOlllllOOlllllOOlllllOOlllllOOlllllOOlllllOOlllllO","MO1","Darmstadt Hbf # Roßdorf # Ober-Ramstadt # Hahn #"]
["REG",18,"HEAG Verkehrs-GmbH",null,"056_",0,"H","Mo-Fr",713," ","Ober-Ramstadt","Gelenk-Überlandbus-NF",0,0,0,0,0,"2000-01-01T07:19:30","2000-01-01T07:30:00",1.4145833337097429,33.950000009033829,"09    - nur an Schultagen",194,4231,820.81399999999996,0,0,"OlllllOOOOOOOOOOOOOOOOlllllOOlllllOOlllllOOlllllOOlllllOOlllllOOlllllOOlllllOOlllllOOlllllOOlllllOOlllllOOlllllOOOOOOOOOOOOOOOOOllllOOlllOlOOlllllOOlllllOOlllllOOlllOlOOlllllOOOllllOOlllOlOOlllllOOlllllOOOOOOOOOOOOOOOOOOOOOOOOOOOOOOOOOOOOOOOOOOOOlllllOOlllllOOlllllOOlllllOOlllllOOlllllOOllllOOOOOOOOOOOOOOOOOlllllOOlllllOOlllllOOlllllOOlllllOOlllllOOlllllOOlllllO","MO1","Darmstadt Hbf # Roßdorf # Ober-Ramstadt # Hahn #"]
["REG",18,"HEAG Verkehrs-GmbH",null,"056_",0,"H","Mo-Fr",714," ","Darmstadt","Gelenk-Überlandbus-NF",0,0,0,0,0,"2000-01-01T07:00:00","2000-01-01T07:21:12",2.8561111111048376,68.546666666516103,"09    - nur an Schultagen",194,8657,1679.4580000000001,0,0,"OlllllOOOOOOOOOOOOOOOOlllllOOlllllOOlllllOOlllllOOlllllOOlllllOOlllllOOlllllOOlllllOOlllllOOlllllOOlllllOOlllllOOOOOOOOOOOOOOOOOllllOOlllOlOOlllllOOlllllOOlllllOOlllOlOOlllllOOOllllOOlllOlOOlllllOOlllllOOOOOOOOOOOOOOOOOOOOOOOOOOOOOOOOOOOOOOOOOOOOlllllOOlllllOOlllllOOlllllOOlllllOOlllllOOllllOOOOOOOOOOOOOOOOOlllllOOlllllOOlllllOOlllllOOlllllOOlllllOOlllllOOlllllO","MO1","Darmstadt Hbf # Roßdorf # Ober-Ramstadt # Hahn #"]
["REG",18,"HEAG Verkehrs-GmbH",null,"056_",0,"H","Mo-Fr",714," ","Roßdorf","Gelenk-Überlandbus-NF",0,0,0,0,0,"2000-01-01T07:21:12","2000-01-01T07:29:30",1.1181944447016576,26.836666672839783,"09    - nur an Schultagen",194,3792,735.64800000000002,0,0,"OlllllOOOOOOOOOOOOOOOOlllllOOlllllOOlllllOOlllllOOlllllOOlllllOOlllllOOlllllOOlllllOOlllllOOlllllOOlllllOOlllllOOOOOOOOOOOOOOOOOllllOOlllOlOOlllllOOlllllOOlllllOOlllOlOOlllllOOOllllOOlllOlOOlllllOOlllllOOOOOOOOOOOOOOOOOOOOOOOOOOOOOOOOOOOOOOOOOOOOlllllOOlllllOOlllllOOlllllOOlllllOOlllllOOllllOOOOOOOOOOOOOOOOOlllllOOlllllOOlllllOOlllllOOlllllOOlllllOOlllllOOlllllO","MO1","Darmstadt Hbf # Roßdorf # Ober-Ramstadt # Hahn #"]
["REG",18,"HEAG Verkehrs-GmbH",null,"056_",0,"H","Mo-Fr",714," ","Ober-Ramstadt","Gelenk-Überlandbus-NF",0,0,0,0,0,"2000-01-01T07:29:30","2000-01-01T08:02:00",4.3784722223790595,105.08333333709743,"09    - nur an Schultagen",194,15336,2975.1840000000002,0,0,"OlllllOOOOOOOOOOOOOOOOlllllOOlllllOOlllllOOlllllOOlllllOOlllllOOlllllOOlllllOOlllllOOlllllOOlllllOOlllllOOlllllOOOOOOOOOOOOOOOOOllllOOlllOlOOlllllOOlllllOOlllllOOlllOlOOlllllOOOllllOOlllOlOOlllllOOlllllOOOOOOOOOOOOOOOOOOOOOOOOOOOOOOOOOOOOOOOOOOOOlllllOOlllllOOlllllOOlllllOOlllllOOlllllOOllllOOOOOOOOOOOOOOOOOlllllOOlllllOOlllllOOlllllOOlllllOOlllllOOlllllOOlllllO","MO1","Darmstadt Hbf # Roßdorf # Ober-Ramstadt # Hahn #"]
["REG",18,"HEAG Verkehrs-GmbH",null,"056_",0,"H","Mo-Fr",715," ","Darmstadt","Gelenk-Überlandbus-NF",0,0,0,0,0,"2000-01-01T07:03:00","2000-01-01T07:24:12",0.79499999999825377,19.07999999995809,"10    - nicht an Schultagen",54,8657,467.47800000000001,0,0,"OOOOOOOOlOOOlOOlOOllOOOOOOOOOOOOOOOOOOOOOOOOOOOOOOOOOOOOOOOOOOOOOOOOOOOOOOOOOOOOOOOOOOOOOOOOOOOOOOOOOOOOOOOOOOOOOlllllOOllllOOOOOOOOOOOOOOOOOOOOOOOOOOOOOOOOOOOOOOOOOOOOOOOOOOOOOOOOOOOOOOOOOOOOOOOOOOOOOOOOlllllOOlllllOOlllllOOlllllOOlllllOOlllllOOOOOOOOOOOOOOOOOOOOOOOOOOOOOOOOOOOOOOOOOOOOOOOOOOOlllllOOlllllOOOOOOOOOOOOOOOOOOOOOOOOOOOOOOOOOOOOOOOOOOOOOOOOOOOOOOOOO","MO1","Darmstadt Hbf # Roßdorf # Ober-Ramstadt # Hahn #"]
["REG",18,"HEAG Verkehrs-GmbH",null,"056_",0,"H","Mo-Fr",715," ","Roßdorf","Gelenk-Überlandbus-NF",0,0,0,0,0,"2000-01-01T07:24:12","2000-01-01T07:32:30",0.31125000007159542,7.4700000017182902,"10    - nicht an Schultagen",54,3792,204.768,0,0,"OOOOOOOOlOOOlOOlOOllOOOOOOOOOOOOOOOOOOOOOOOOOOOOOOOOOOOOOOOOOOOOOOOOOOOOOOOOOOOOOOOOOOOOOOOOOOOOOOOOOOOOOOOOOOOOOlllllOOllllOOOOOOOOOOOOOOOOOOOOOOOOOOOOOOOOOOOOOOOOOOOOOOOOOOOOOOOOOOOOOOOOOOOOOOOOOOOOOOOOlllllOOlllllOOlllllOOlllllOOlllllOOlllllOOOOOOOOOOOOOOOOOOOOOOOOOOOOOOOOOOOOOOOOOOOOOOOOOOOlllllOOlllllOOOOOOOOOOOOOOOOOOOOOOOOOOOOOOOOOOOOOOOOOOOOOOOOOOOOOOOOO","MO1","Darmstadt Hbf # Roßdorf # Ober-Ramstadt # Hahn #"]
["REG",18,"HEAG Verkehrs-GmbH",null,"056_",0,"H","Mo-Fr",715," ","Ober-Ramstadt","Gelenk-Überlandbus-NF",0,0,0,0,0,"2000-01-01T07:32:30","2000-01-01T08:05:00",1.2187500000436557,29.250000001047738,"10    - nicht an Schultagen",54,15336,828.14400000000001,0,0,"OOOOOOOOlOOOlOOlOOllOOOOOOOOOOOOOOOOOOOOOOOOOOOOOOOOOOOOOOOOOOOOOOOOOOOOOOOOOOOOOOOOOOOOOOOOOOOOOOOOOOOOOOOOOOOOOlllllOOllllOOOOOOOOOOOOOOOOOOOOOOOOOOOOOOOOOOOOOOOOOOOOOOOOOOOOOOOOOOOOOOOOOOOOOOOOOOOOOOOOlllllOOlllllOOlllllOOlllllOOlllllOOlllllOOOOOOOOOOOOOOOOOOOOOOOOOOOOOOOOOOOOOOOOOOOOOOOOOOOlllllOOlllllOOOOOOOOOOOOOOOOOOOOOOOOOOOOOOOOOOOOOOOOOOOOOOOOOOOOOOOOO","MO1","Darmstadt Hbf # Roßdorf # Ober-Ramstadt # Hahn #"]
["REG",18,"HEAG Verkehrs-GmbH",null,"056_",0,"H","Mo-Fr",803," ","Darmstadt","Gelenk-Überlandbus-NF",0,0,0,0,0,"2000-01-01T08:03:00","2000-01-01T08:24:12",3.6511111111030914,87.626666666474193,null,248,8657,2146.9360000000001,0,0,"OlllllOOlOOOlOOlOOllOOlllllOOlllllOOlllllOOlllllOOlllllOOlllllOOlllllOOlllllOOlllllOOlllllOOlllllOOlllllOOlllllOOlllllOOllllOOOOllllOOlllOlOOlllllOOlllllOOlllllOOlllOlOOlllllOOOllllOOlllOlOOlllllOOlllllOOlllllOOlllllOOlllllOOlllllOOlllllOOlllllOOlllllOOlllllOOlllllOOlllllOOlllllOOlllllOOllllOOOlllllOOlllllOOlllllOOlllllOOlllllOOlllllOOlllllOOlllllOOlllllOOlllllO","MO1","Darmstadt Hbf # Roßdorf # Ober-Ramstadt # Hahn #"]
["REG",18,"HEAG Verkehrs-GmbH",null,"056_",0,"H","Mo-Fr",803," ","Roßdorf","Gelenk-Überlandbus-NF",0,0,0,0,0,"2000-01-01T08:24:12","2000-01-01T08:32:30",1.4294444447732531,34.306666674558073,null,248,3792,940.41600000000005,0,0,"OlllllOOlOOOlOOlOOllOOlllllOOlllllOOlllllOOlllllOOlllllOOlllllOOlllllOOlllllOOlllllOOlllllOOlllllOOlllllOOlllllOOlllllOOllllOOOOllllOOlllOlOOlllllOOlllllOOlllllOOlllOlOOlllllOOOllllOOlllOlOOlllllOOlllllOOlllllOOlllllOOlllllOOlllllOOlllllOOlllllOOlllllOOlllllOOlllllOOlllllOOlllllOOlllllOOllllOOOlllllOOlllllOOlllllOOlllllOOlllllOOlllllOOlllllOOlllllOOlllllOOlllllO","MO1","Darmstadt Hbf # Roßdorf # Ober-Ramstadt # Hahn #"]
["REG",18,"HEAG Verkehrs-GmbH",null,"056_",0,"H","Mo-Fr",803," ","Ober-Ramstadt","Gelenk-Überlandbus-NF",0,0,0,0,0,"2000-01-01T08:32:30","2000-01-01T09:05:00",5.5972222206182778,134.33333329483867,null,248,15336,3803.328,0,0,"OlllllOOlOOOlOOlOOllOOlllllOOlllllOOlllllOOlllllOOlllllOOlllllOOlllllOOlllllOOlllllOOlllllOOlllllOOlllllOOlllllOOlllllOOllllOOOOllllOOlllOlOOlllllOOlllllOOlllllOOlllOlOOlllllOOOllllOOlllOlOOlllllOOlllllOOlllllOOlllllOOlllllOOlllllOOlllllOOlllllOOlllllOOlllllOOlllllOOlllllOOlllllOOlllllOOllllOOOlllllOOlllllOOlllllOOlllllOOlllllOOlllllOOlllllOOlllllOOlllllOOlllllO","MO1","Darmstadt Hbf # Roßdorf # Ober-Ramstadt # Hahn #"]
["REG",18,"HEAG Verkehrs-GmbH",null,"056_",0,"H","Mo-Fr",903," ","Darmstadt","Gelenk-Überlandbus-NF",0,0,0,0,0,"2000-01-01T09:03:00","2000-01-01T09:24:12",3.6511111111030914,87.626666666474193,null,248,8657,2146.9360000000001,0,0,"OlllllOOlOOOlOOlOOllOOlllllOOlllllOOlllllOOlllllOOlllllOOlllllOOlllllOOlllllOOlllllOOlllllOOlllllOOlllllOOlllllOOlllllOOllllOOOOllllOOlllOlOOlllllOOlllllOOlllllOOlllOlOOlllllOOOllllOOlllOlOOlllllOOlllllOOlllllOOlllllOOlllllOOlllllOOlllllOOlllllOOlllllOOlllllOOlllllOOlllllOOlllllOOlllllOOllllOOOlllllOOlllllOOlllllOOlllllOOlllllOOlllllOOlllllOOlllllOOlllllOOlllllO","MO1","Darmstadt Hbf # Roßdorf # Ober-Ramstadt # Hahn #"]
["REG",18,"HEAG Verkehrs-GmbH",null,"056_",0,"H","Mo-Fr",903," ","Roßdorf","Gelenk-Überlandbus-NF",0,0,0,0,0,"2000-01-01T09:24:12","2000-01-01T09:32:30",1.4294444447732531,34.306666674558073,null,248,3792,940.41600000000005,0,0,"OlllllOOlOOOlOOlOOllOOlllllOOlllllOOlllllOOlllllOOlllllOOlllllOOlllllOOlllllOOlllllOOlllllOOlllllOOlllllOOlllllOOlllllOOllllOOOOllllOOlllOlOOlllllOOlllllOOlllllOOlllOlOOlllllOOOllllOOlllOlOOlllllOOlllllOOlllllOOlllllOOlllllOOlllllOOlllllOOlllllOOlllllOOlllllOOlllllOOlllllOOlllllOOlllllOOllllOOOlllllOOlllllOOlllllOOlllllOOlllllOOlllllOOlllllOOlllllOOlllllOOlllllO","MO1","Darmstadt Hbf # Roßdorf # Ober-Ramstadt # Hahn #"]
["REG",18,"HEAG Verkehrs-GmbH",null,"056_",0,"H","Mo-Fr",903," ","Ober-Ramstadt","Gelenk-Überlandbus-NF",0,0,0,0,0,"2000-01-01T09:32:30","2000-01-01T10:05:00",5.5972222224227153,134.33333333814517,null,248,15336,3803.328,0,0,"OlllllOOlOOOlOOlOOllOOlllllOOlllllOOlllllOOlllllOOlllllOOlllllOOlllllOOlllllOOlllllOOlllllOOlllllOOlllllOOlllllOOlllllOOllllOOOOllllOOlllOlOOlllllOOlllllOOlllllOOlllOlOOlllllOOOllllOOlllOlOOlllllOOlllllOOlllllOOlllllOOlllllOOlllllOOlllllOOlllllOOlllllOOlllllOOlllllOOlllllOOlllllOOlllllOOllllOOOlllllOOlllllOOlllllOOlllllOOlllllOOlllllOOlllllOOlllllOOlllllOOlllllO","MO1","Darmstadt Hbf # Roßdorf # Ober-Ramstadt # Hahn #"]
["REG",18,"HEAG Verkehrs-GmbH",null,"056_",0,"H","Mo-Fr",1003," ","Darmstadt","Gelenk-Überlandbus-NF",0,0,0,0,0,"2000-01-01T10:03:00","2000-01-01T10:24:12",3.6511111111030914,87.626666666474193,null,248,8657,2146.9360000000001,0,0,"OlllllOOlOOOlOOlOOllOOlllllOOlllllOOlllllOOlllllOOlllllOOlllllOOlllllOOlllllOOlllllOOlllllOOlllllOOlllllOOlllllOOlllllOOllllOOOOllllOOlllOlOOlllllOOlllllOOlllllOOlllOlOOlllllOOOllllOOlllOlOOlllllOOlllllOOlllllOOlllllOOlllllOOlllllOOlllllOOlllllOOlllllOOlllllOOlllllOOlllllOOlllllOOlllllOOllllOOOlllllOOlllllOOlllllOOlllllOOlllllOOlllllOOlllllOOlllllOOlllllOOlllllO","MO1","Darmstadt Hbf # Roßdorf # Ober-Ramstadt # Hahn #"]
["REG",18,"HEAG Verkehrs-GmbH",null,"056_",0,"H","Mo-Fr",1003," ","Roßdorf","Gelenk-Überlandbus-NF",0,0,0,0,0,"2000-01-01T10:24:12","2000-01-01T10:32:30",1.4294444447732531,34.306666674558073,null,248,3792,940.41600000000005,0,0,"OlllllOOlOOOlOOlOOllOOlllllOOlllllOOlllllOOlllllOOlllllOOlllllOOlllllOOlllllOOlllllOOlllllOOlllllOOlllllOOlllllOOlllllOOllllOOOOllllOOlllOlOOlllllOOlllllOOlllllOOlllOlOOlllllOOOllllOOlllOlOOlllllOOlllllOOlllllOOlllllOOlllllOOlllllOOlllllOOlllllOOlllllOOlllllOOlllllOOlllllOOlllllOOlllllOOllllOOOlllllOOlllllOOlllllOOlllllOOlllllOOlllllOOlllllOOlllllOOlllllOOlllllO","MO1","Darmstadt Hbf # Roßdorf # Ober-Ramstadt # Hahn #"]
["REG",18,"HEAG Verkehrs-GmbH",null,"056_",0,"H","Mo-Fr",1003," ","Ober-Ramstadt","Gelenk-Überlandbus-NF",0,0,0,0,0,"2000-01-01T10:32:30","2000-01-01T11:05:00",5.5972222224227153,134.33333333814517,null,248,15336,3803.328,0,0,"OlllllOOlOOOlOOlOOllOOlllllOOlllllOOlllllOOlllllOOlllllOOlllllOOlllllOOlllllOOlllllOOlllllOOlllllOOlllllOOlllllOOlllllOOllllOOOOllllOOlllOlOOlllllOOlllllOOlllllOOlllOlOOlllllOOOllllOOlllOlOOlllllOOlllllOOlllllOOlllllOOlllllOOlllllOOlllllOOlllllOOlllllOOlllllOOlllllOOlllllOOlllllOOlllllOOllllOOOlllllOOlllllOOlllllOOlllllOOlllllOOlllllOOlllllOOlllllOOlllllOOlllllO","MO1","Darmstadt Hbf # Roßdorf # Ober-Ramstadt # Hahn #"]
["REG",18,"HEAG Verkehrs-GmbH",null,"056_",0,"H","Mo-Fr",1130," ","Ober-Ramstadt","Solo-Überlandbus-NF",0,0,0,0,0,"2000-01-01T11:30:00","2000-01-01T11:46:00",2.1555555555241881,51.733333332580514,"09    - nur an Schultagen",194,7309,1417.9459999999999,0,0,"OlllllOOOOOOOOOOOOOOOOlllllOOlllllOOlllllOOlllllOOlllllOOlllllOOlllllOOlllllOOlllllOOlllllOOlllllOOlllllOOlllllOOOOOOOOOOOOOOOOOllllOOlllOlOOlllllOOlllllOOlllllOOlllOlOOlllllOOOllllOOlllOlOOlllllOOlllllOOOOOOOOOOOOOOOOOOOOOOOOOOOOOOOOOOOOOOOOOOOOlllllOOlllllOOlllllOOlllllOOlllllOOlllllOOllllOOOOOOOOOOOOOOOOOlllllOOlllllOOlllllOOlllllOOlllllOOlllllOOlllllOOlllllO","MO1","Darmstadt Hbf # Roßdorf # Ober-Ramstadt # Hahn #"]
["REG",18,"HEAG Verkehrs-GmbH",null,"056_",0,"H","Mo-Fr",1132," ","Darmstadt","Gelenk-Überlandbus-NF",0,0,0,0,0,"2000-01-01T11:03:00","2000-01-01T11:24:12",3.6511111111030914,87.626666666474193,null,248,8657,2146.9360000000001,0,0,"OlllllOOlOOOlOOlOOllOOlllllOOlllllOOlllllOOlllllOOlllllOOlllllOOlllllOOlllllOOlllllOOlllllOOlllllOOlllllOOlllllOOlllllOOllllOOOOllllOOlllOlOOlllllOOlllllOOlllllOOlllOlOOlllllOOOllllOOlllOlOOlllllOOlllllOOlllllOOlllllOOlllllOOlllllOOlllllOOlllllOOlllllOOlllllOOlllllOOlllllOOlllllOOlllllOOllllOOOlllllOOlllllOOlllllOOlllllOOlllllOOlllllOOlllllOOlllllOOlllllOOlllllO","MO1","Darmstadt Hbf # Roßdorf # Ober-Ramstadt # Hahn #"]
["REG",18,"HEAG Verkehrs-GmbH",null,"056_",0,"H","Mo-Fr",1132," ","Roßdorf","Gelenk-Überlandbus-NF",0,0,0,0,0,"2000-01-01T11:24:12","2000-01-01T11:32:30",1.4294444447732531,34.306666674558073,null,248,3792,940.41600000000005,0,0,"OlllllOOlOOOlOOlOOllOOlllllOOlllllOOlllllOOlllllOOlllllOOlllllOOlllllOOlllllOOlllllOOlllllOOlllllOOlllllOOlllllOOlllllOOllllOOOOllllOOlllOlOOlllllOOlllllOOlllllOOlllOlOOlllllOOOllllOOlllOlOOlllllOOlllllOOlllllOOlllllOOlllllOOlllllOOlllllOOlllllOOlllllOOlllllOOlllllOOlllllOOlllllOOlllllOOllllOOOlllllOOlllllOOlllllOOlllllOOlllllOOlllllOOlllllOOlllllOOlllllOOlllllO","MO1","Darmstadt Hbf # Roßdorf # Ober-Ramstadt # Hahn #"]
["REG",18,"HEAG Verkehrs-GmbH",null,"056_",0,"H","Mo-Fr",1132," ","Ober-Ramstadt","Gelenk-Überlandbus-NF",0,0,0,0,0,"2000-01-01T11:32:30","2000-01-01T12:05:00",5.5972222206182778,134.33333329483867,null,248,15336,3803.328,0,0,"OlllllOOlOOOlOOlOOllOOlllllOOlllllOOlllllOOlllllOOlllllOOlllllOOlllllOOlllllOOlllllOOlllllOOlllllOOlllllOOlllllOOlllllOOllllOOOOllllOOlllOlOOlllllOOlllllOOlllllOOlllOlOOlllllOOOllllOOlllOlOOlllllOOlllllOOlllllOOlllllOOlllllOOlllllOOlllllOOlllllOOlllllOOlllllOOlllllOOlllllOOlllllOOlllllOOllllOOOlllllOOlllllOOlllllOOlllllOOlllllOOlllllOOlllllOOlllllOOlllllOOlllllO","MO1","Darmstadt Hbf # Roßdorf # Ober-Ramstadt # Hahn #"]
["REG",18,"HEAG Verkehrs-GmbH",null,"056_",0,"H","Mo-Fr",1230," ","Ober-Ramstadt","Solo-Überlandbus-NF",0,0,0,0,0,"2000-01-01T12:30:00","2000-01-01T12:46:00",2.1555555555241881,51.733333332580514,"09    - nur an Schultagen",194,7309,1417.9459999999999,0,0,"OlllllOOOOOOOOOOOOOOOOlllllOOlllllOOlllllOOlllllOOlllllOOlllllOOlllllOOlllllOOlllllOOlllllOOlllllOOlllllOOlllllOOOOOOOOOOOOOOOOOllllOOlllOlOOlllllOOlllllOOlllllOOlllOlOOlllllOOOllllOOlllOlOOlllllOOlllllOOOOOOOOOOOOOOOOOOOOOOOOOOOOOOOOOOOOOOOOOOOOlllllOOlllllOOlllllOOlllllOOlllllOOlllllOOllllOOOOOOOOOOOOOOOOOlllllOOlllllOOlllllOOlllllOOlllllOOlllllOOlllllOOlllllO","MO1","Darmstadt Hbf # Roßdorf # Ober-Ramstadt # Hahn #"]
["REG",18,"HEAG Verkehrs-GmbH",null,"056_",0,"H","Mo-Fr",1232," ","Darmstadt","Gelenk-Überlandbus-NF",0,0,0,0,0,"2000-01-01T12:03:00","2000-01-01T12:24:12",3.6511111111030914,87.626666666474193,null,248,8657,2146.9360000000001,0,0,"OlllllOOlOOOlOOlOOllOOlllllOOlllllOOlllllOOlllllOOlllllOOlllllOOlllllOOlllllOOlllllOOlllllOOlllllOOlllllOOlllllOOlllllOOllllOOOOllllOOlllOlOOlllllOOlllllOOlllllOOlllOlOOlllllOOOllllOOlllOlOOlllllOOlllllOOlllllOOlllllOOlllllOOlllllOOlllllOOlllllOOlllllOOlllllOOlllllOOlllllOOlllllOOlllllOOllllOOOlllllOOlllllOOlllllOOlllllOOlllllOOlllllOOlllllOOlllllOOlllllOOlllllO","MO1","Darmstadt Hbf # Roßdorf # Ober-Ramstadt # Hahn #"]
["REG",18,"HEAG Verkehrs-GmbH",null,"056_",0,"H","Mo-Fr",1232," ","Roßdorf","Gelenk-Überlandbus-NF",0,0,0,0,0,"2000-01-01T12:24:12","2000-01-01T12:32:30",1.4294444447732531,34.306666674558073,null,248,3792,940.41600000000005,0,0,"OlllllOOlOOOlOOlOOllOOlllllOOlllllOOlllllOOlllllOOlllllOOlllllOOlllllOOlllllOOlllllOOlllllOOlllllOOlllllOOlllllOOlllllOOllllOOOOllllOOlllOlOOlllllOOlllllOOlllllOOlllOlOOlllllOOOllllOOlllOlOOlllllOOlllllOOlllllOOlllllOOlllllOOlllllOOlllllOOlllllOOlllllOOlllllOOlllllOOlllllOOlllllOOlllllOOllllOOOlllllOOlllllOOlllllOOlllllOOlllllOOlllllOOlllllOOlllllOOlllllOOlllllO","MO1","Darmstadt Hbf # Roßdorf # Ober-Ramstadt # Hahn #"]
["REG",18,"HEAG Verkehrs-GmbH",null,"056_",0,"H","Mo-Fr",1232," ","Ober-Ramstadt","Gelenk-Überlandbus-NF",0,0,0,0,0,"2000-01-01T12:32:30","2000-01-01T13:05:00",5.5972222224227153,134.33333333814517,null,248,15336,3803.328,0,0,"OlllllOOlOOOlOOlOOllOOlllllOOlllllOOlllllOOlllllOOlllllOOlllllOOlllllOOlllllOOlllllOOlllllOOlllllOOlllllOOlllllOOlllllOOllllOOOOllllOOlllOlOOlllllOOlllllOOlllllOOlllOlOOlllllOOOllllOOlllOlOOlllllOOlllllOOlllllOOlllllOOlllllOOlllllOOlllllOOlllllOOlllllOOlllllOOlllllOOlllllOOlllllOOlllllOOllllOOOlllllOOlllllOOlllllOOlllllOOlllllOOlllllOOlllllOOlllllOOlllllOOlllllO","MO1","Darmstadt Hbf # Roßdorf # Ober-Ramstadt # Hahn #"]
["REG",18,"HEAG Verkehrs-GmbH",null,"056_",0,"H","Mo-Fr",1315," ","Ober-Ramstadt","Solo-Überlandbus-NF",0,0,0,0,0,"2000-01-01T13:15:00","2000-01-01T13:31:00",2.1555555555241881,51.733333332580514,"09    - nur an Schultagen",194,7309,1417.9459999999999,0,0,"OlllllOOOOOOOOOOOOOOOOlllllOOlllllOOlllllOOlllllOOlllllOOlllllOOlllllOOlllllOOlllllOOlllllOOlllllOOlllllOOlllllOOOOOOOOOOOOOOOOOllllOOlllOlOOlllllOOlllllOOlllllOOlllOlOOlllllOOOllllOOlllOlOOlllllOOlllllOOOOOOOOOOOOOOOOOOOOOOOOOOOOOOOOOOOOOOOOOOOOlllllOOlllllOOlllllOOlllllOOlllllOOlllllOOllllOOOOOOOOOOOOOOOOOlllllOOlllllOOlllllOOlllllOOlllllOOlllllOOlllllOOlllllO","MO1","Darmstadt Hbf # Roßdorf # Ober-Ramstadt # Hahn #"]
["REG",18,"HEAG Verkehrs-GmbH",null,"056_",0,"H","Mo-Fr",1316," ","Ober-Ramstadt","Solo-Überlandbus-NF",0,0,0,0,0,"2000-01-01T13:15:00","2000-01-01T13:41:00",3.5027777779032476,84.066666669677943,"09    - nur an Schultagen",194,9890,1918.66,0,0,"OlllllOOOOOOOOOOOOOOOOlllllOOlllllOOlllllOOlllllOOlllllOOlllllOOlllllOOlllllOOlllllOOlllllOOlllllOOlllllOOlllllOOOOOOOOOOOOOOOOOllllOOlllOlOOlllllOOlllllOOlllllOOlllOlOOlllllOOOllllOOlllOlOOlllllOOlllllOOOOOOOOOOOOOOOOOOOOOOOOOOOOOOOOOOOOOOOOOOOOlllllOOlllllOOlllllOOlllllOOlllllOOlllllOOllllOOOOOOOOOOOOOOOOOlllllOOlllllOOlllllOOlllllOOlllllOOlllllOOlllllOOlllllO","MO1","Darmstadt Hbf # Roßdorf # Ober-Ramstadt # Hahn #"]
["REG",18,"HEAG Verkehrs-GmbH",null,"056_",0,"H","Mo-Fr",1317," ","Darmstadt","Gelenk-Überlandbus-NF",0,0,0,0,0,"2000-01-01T13:03:00","2000-01-01T13:24:12",3.6511111111030914,87.626666666474193,null,248,8657,2146.9360000000001,0,0,"OlllllOOlOOOlOOlOOllOOlllllOOlllllOOlllllOOlllllOOlllllOOlllllOOlllllOOlllllOOlllllOOlllllOOlllllOOlllllOOlllllOOlllllOOllllOOOOllllOOlllOlOOlllllOOlllllOOlllllOOlllOlOOlllllOOOllllOOlllOlOOlllllOOlllllOOlllllOOlllllOOlllllOOlllllOOlllllOOlllllOOlllllOOlllllOOlllllOOlllllOOlllllOOlllllOOllllOOOlllllOOlllllOOlllllOOlllllOOlllllOOlllllOOlllllOOlllllOOlllllOOlllllO","MO1","Darmstadt Hbf # Roßdorf # Ober-Ramstadt # Hahn #"]
["REG",18,"HEAG Verkehrs-GmbH",null,"056_",0,"H","Mo-Fr",1317," ","Roßdorf","Gelenk-Überlandbus-NF",0,0,0,0,0,"2000-01-01T13:24:12","2000-01-01T13:32:30",1.4294444447732531,34.306666674558073,null,248,3792,940.41600000000005,0,0,"OlllllOOlOOOlOOlOOllOOlllllOOlllllOOlllllOOlllllOOlllllOOlllllOOlllllOOlllllOOlllllOOlllllOOlllllOOlllllOOlllllOOlllllOOllllOOOOllllOOlllOlOOlllllOOlllllOOlllllOOlllOlOOlllllOOOllllOOlllOlOOlllllOOlllllOOlllllOOlllllOOlllllOOlllllOOlllllOOlllllOOlllllOOlllllOOlllllOOlllllOOlllllOOlllllOOllllOOOlllllOOlllllOOlllllOOlllllOOlllllOOlllllOOlllllOOlllllOOlllllOOlllllO","MO1","Darmstadt Hbf # Roßdorf # Ober-Ramstadt # Hahn #"]
["REG",18,"HEAG Verkehrs-GmbH",null,"056_",0,"H","Mo-Fr",1317," ","Ober-Ramstadt","Gelenk-Überlandbus-NF",0,0,0,0,0,"2000-01-01T13:32:30","2000-01-01T14:05:00",5.5972222224227153,134.33333333814517,null,248,15336,3803.328,0,0,"OlllllOOlOOOlOOlOOllOOlllllOOlllllOOlllllOOlllllOOlllllOOlllllOOlllllOOlllllOOlllllOOlllllOOlllllOOlllllOOlllllOOlllllOOllllOOOOllllOOlllOlOOlllllOOlllllOOlllllOOlllOlOOlllllOOOllllOOlllOlOOlllllOOlllllOOlllllOOlllllOOlllllOOlllllOOlllllOOlllllOOlllllOOlllllOOlllllOOlllllOOlllllOOlllllOOllllOOOlllllOOlllllOOlllllOOlllllOOlllllOOlllllOOlllllOOlllllOOlllllOOlllllO","MO1","Darmstadt Hbf # Roßdorf # Ober-Ramstadt # Hahn #"]
["REG",18,"HEAG Verkehrs-GmbH",null,"056_",0,"H","Mo-Fr",1430," ","Ober-Ramstadt","Gelenk-Überlandbus-NF",0,0,0,0,0,"2000-01-01T14:30:00","2000-01-01T14:46:00",2.1555555555241881,51.733333332580514,"09    - nur an Schultagen",194,7309,1417.9459999999999,0,0,"OlllllOOOOOOOOOOOOOOOOlllllOOlllllOOlllllOOlllllOOlllllOOlllllOOlllllOOlllllOOlllllOOlllllOOlllllOOlllllOOlllllOOOOOOOOOOOOOOOOOllllOOlllOlOOlllllOOlllllOOlllllOOlllOlOOlllllOOOllllOOlllOlOOlllllOOlllllOOOOOOOOOOOOOOOOOOOOOOOOOOOOOOOOOOOOOOOOOOOOlllllOOlllllOOlllllOOlllllOOlllllOOlllllOOllllOOOOOOOOOOOOOOOOOlllllOOlllllOOlllllOOlllllOOlllllOOlllllOOlllllOOlllllO","MO1","Darmstadt Hbf # Roßdorf # Ober-Ramstadt # Hahn #"]
["REG",18,"HEAG Verkehrs-GmbH",null,"056_",0,"H","Mo-Fr",1432," ","Darmstadt","Gelenk-Überlandbus-NF",0,0,0,0,0,"2000-01-01T14:03:00","2000-01-01T14:24:12",3.6511111111030914,87.626666666474193,null,248,8657,2146.9360000000001,0,0,"OlllllOOlOOOlOOlOOllOOlllllOOlllllOOlllllOOlllllOOlllllOOlllllOOlllllOOlllllOOlllllOOlllllOOlllllOOlllllOOlllllOOlllllOOllllOOOOllllOOlllOlOOlllllOOlllllOOlllllOOlllOlOOlllllOOOllllOOlllOlOOlllllOOlllllOOlllllOOlllllOOlllllOOlllllOOlllllOOlllllOOlllllOOlllllOOlllllOOlllllOOlllllOOlllllOOllllOOOlllllOOlllllOOlllllOOlllllOOlllllOOlllllOOlllllOOlllllOOlllllOOlllllO","MO1","Darmstadt Hbf # Roßdorf # Ober-Ramstadt # Hahn #"]
["REG",18,"HEAG Verkehrs-GmbH",null,"056_",0,"H","Mo-Fr",1432," ","Roßdorf","Gelenk-Überlandbus-NF",0,0,0,0,0,"2000-01-01T14:24:12","2000-01-01T14:32:30",1.4294444447732531,34.306666674558073,null,248,3792,940.41600000000005,0,0,"OlllllOOlOOOlOOlOOllOOlllllOOlllllOOlllllOOlllllOOlllllOOlllllOOlllllOOlllllOOlllllOOlllllOOlllllOOlllllOOlllllOOlllllOOllllOOOOllllOOlllOlOOlllllOOlllllOOlllllOOlllOlOOlllllOOOllllOOlllOlOOlllllOOlllllOOlllllOOlllllOOlllllOOlllllOOlllllOOlllllOOlllllOOlllllOOlllllOOlllllOOlllllOOlllllOOllllOOOlllllOOlllllOOlllllOOlllllOOlllllOOlllllOOlllllOOlllllOOlllllOOlllllO","MO1","Darmstadt Hbf # Roßdorf # Ober-Ramstadt # Hahn #"]
["REG",18,"HEAG Verkehrs-GmbH",null,"056_",0,"H","Mo-Fr",1432," ","Ober-Ramstadt","Gelenk-Überlandbus-NF",0,0,0,0,0,"2000-01-01T14:32:30","2000-01-01T15:05:00",5.5972222206182778,134.33333329483867,null,248,15336,3803.328,0,0,"OlllllOOlOOOlOOlOOllOOlllllOOlllllOOlllllOOlllllOOlllllOOlllllOOlllllOOlllllOOlllllOOlllllOOlllllOOlllllOOlllllOOlllllOOllllOOOOllllOOlllOlOOlllllOOlllllOOlllllOOlllOlOOlllllOOOllllOOlllOlOOlllllOOlllllOOlllllOOlllllOOlllllOOlllllOOlllllOOlllllOOlllllOOlllllOOlllllOOlllllOOlllllOOlllllOOllllOOOlllllOOlllllOOlllllOOlllllOOlllllOOlllllOOlllllOOlllllOOlllllOOlllllO","MO1","Darmstadt Hbf # Roßdorf # Ober-Ramstadt # Hahn #"]
["REG",18,"HEAG Verkehrs-GmbH",null,"056_",0,"H","Mo-Fr",1530," ","Ober-Ramstadt","Gelenk-Überlandbus-NF",0,0,0,0,0,"2000-01-01T15:30:00","2000-01-01T15:46:00",2.1555555555241881,51.733333332580514,"09    - nur an Schultagen",194,7309,1417.9459999999999,0,0,"OlllllOOOOOOOOOOOOOOOOlllllOOlllllOOlllllOOlllllOOlllllOOlllllOOlllllOOlllllOOlllllOOlllllOOlllllOOlllllOOlllllOOOOOOOOOOOOOOOOOllllOOlllOlOOlllllOOlllllOOlllllOOlllOlOOlllllOOOllllOOlllOlOOlllllOOlllllOOOOOOOOOOOOOOOOOOOOOOOOOOOOOOOOOOOOOOOOOOOOlllllOOlllllOOlllllOOlllllOOlllllOOlllllOOllllOOOOOOOOOOOOOOOOOlllllOOlllllOOlllllOOlllllOOlllllOOlllllOOlllllOOlllllO","MO1","Darmstadt Hbf # Roßdorf # Ober-Ramstadt # Hahn #"]
["REG",18,"HEAG Verkehrs-GmbH",null,"056_",0,"H","Mo-Fr",1532," ","Darmstadt","Gelenk-Überlandbus-NF",0,0,0,0,0,"2000-01-01T15:03:00","2000-01-01T15:24:12",3.6511111111030914,87.626666666474193,null,248,8657,2146.9360000000001,0,0,"OlllllOOlOOOlOOlOOllOOlllllOOlllllOOlllllOOlllllOOlllllOOlllllOOlllllOOlllllOOlllllOOlllllOOlllllOOlllllOOlllllOOlllllOOllllOOOOllllOOlllOlOOlllllOOlllllOOlllllOOlllOlOOlllllOOOllllOOlllOlOOlllllOOlllllOOlllllOOlllllOOlllllOOlllllOOlllllOOlllllOOlllllOOlllllOOlllllOOlllllOOlllllOOlllllOOllllOOOlllllOOlllllOOlllllOOlllllOOlllllOOlllllOOlllllOOlllllOOlllllOOlllllO","MO1","Darmstadt Hbf # Roßdorf # Ober-Ramstadt # Hahn #"]
["REG",18,"HEAG Verkehrs-GmbH",null,"056_",0,"H","Mo-Fr",1532," ","Roßdorf","Gelenk-Überlandbus-NF",0,0,0,0,0,"2000-01-01T15:24:12","2000-01-01T15:32:30",1.4294444447732531,34.306666674558073,null,248,3792,940.41600000000005,0,0,"OlllllOOlOOOlOOlOOllOOlllllOOlllllOOlllllOOlllllOOlllllOOlllllOOlllllOOlllllOOlllllOOlllllOOlllllOOlllllOOlllllOOlllllOOllllOOOOllllOOlllOlOOlllllOOlllllOOlllllOOlllOlOOlllllOOOllllOOlllOlOOlllllOOlllllOOlllllOOlllllOOlllllOOlllllOOlllllOOlllllOOlllllOOlllllOOlllllOOlllllOOlllllOOlllllOOllllOOOlllllOOlllllOOlllllOOlllllOOlllllOOlllllOOlllllOOlllllOOlllllOOlllllO","MO1","Darmstadt Hbf # Roßdorf # Ober-Ramstadt # Hahn #"]
["REG",18,"HEAG Verkehrs-GmbH",null,"056_",0,"H","Mo-Fr",1532," ","Ober-Ramstadt","Gelenk-Überlandbus-NF",0,0,0,0,0,"2000-01-01T15:32:30","2000-01-01T16:05:00",5.5972222224227153,134.33333333814517,null,248,15336,3803.328,0,0,"OlllllOOlOOOlOOlOOllOOlllllOOlllllOOlllllOOlllllOOlllllOOlllllOOlllllOOlllllOOlllllOOlllllOOlllllOOlllllOOlllllOOlllllOOllllOOOOllllOOlllOlOOlllllOOlllllOOlllllOOlllOlOOlllllOOOllllOOlllOlOOlllllOOlllllOOlllllOOlllllOOlllllOOlllllOOlllllOOlllllOOlllllOOlllllOOlllllOOlllllOOlllllOOlllllOOllllOOOlllllOOlllllOOlllllOOlllllOOlllllOOlllllOOlllllOOlllllOOlllllOOlllllO","MO1","Darmstadt Hbf # Roßdorf # Ober-Ramstadt # Hahn #"]
["REG",18,"HEAG Verkehrs-GmbH",null,"056_",0,"H","Mo-Fr",1547," ","Roßdorf","Gelenk-Überlandbus-NF",0,0,0,0,0,"2000-01-01T15:47:00","2000-01-01T15:52:30",0.740972223225981,17.783333357423544,"09    - nur an Schultagen",194,2603,504.98200000000003,0,0,"OlllllOOOOOOOOOOOOOOOOlllllOOlllllOOlllllOOlllllOOlllllOOlllllOOlllllOOlllllOOlllllOOlllllOOlllllOOlllllOOlllllOOOOOOOOOOOOOOOOOllllOOlllOlOOlllllOOlllllOOlllllOOlllOlOOlllllOOOllllOOlllOlOOlllllOOlllllOOOOOOOOOOOOOOOOOOOOOOOOOOOOOOOOOOOOOOOOOOOOlllllOOlllllOOlllllOOlllllOOlllllOOlllllOOllllOOOOOOOOOOOOOOOOOlllllOOlllllOOlllllOOlllllOOlllllOOlllllOOlllllOOlllllO","MO1","Darmstadt Hbf # Roßdorf # Ober-Ramstadt # Hahn #"]
["REG",18,"HEAG Verkehrs-GmbH",null,"056_",0,"H","Mo-Fr",1547," ","Ober-Ramstadt","Gelenk-Überlandbus-NF",0,0,0,0,0,"2000-01-01T15:52:30","2000-01-01T16:11:00",2.492361110766069,59.816666658385657,"09    - nur an Schultagen",194,7573,1469.162,0,0,"OlllllOOOOOOOOOOOOOOOOlllllOOlllllOOlllllOOlllllOOlllllOOlllllOOlllllOOlllllOOlllllOOlllllOOlllllOOlllllOOlllllOOOOOOOOOOOOOOOOOllllOOlllOlOOlllllOOlllllOOlllllOOlllOlOOlllllOOOllllOOlllOlOOlllllOOlllllOOOOOOOOOOOOOOOOOOOOOOOOOOOOOOOOOOOOOOOOOOOOlllllOOlllllOOlllllOOlllllOOlllllOOlllllOOllllOOOOOOOOOOOOOOOOOlllllOOlllllOOlllllOOlllllOOlllllOOlllllOOlllllOOlllllO","MO1","Darmstadt Hbf # Roßdorf # Ober-Ramstadt # Hahn #"]
["REG",18,"HEAG Verkehrs-GmbH",null,"056_",0,"H","Mo-Fr",1603," ","Darmstadt","Gelenk-Überlandbus-NF",0,0,0,0,0,"2000-01-01T16:03:00","2000-01-01T16:24:12",3.6511111111030914,87.626666666474193,null,248,8657,2146.9360000000001,0,0,"OlllllOOlOOOlOOlOOllOOlllllOOlllllOOlllllOOlllllOOlllllOOlllllOOlllllOOlllllOOlllllOOlllllOOlllllOOlllllOOlllllOOlllllOOllllOOOOllllOOlllOlOOlllllOOlllllOOlllllOOlllOlOOlllllOOOllllOOlllOlOOlllllOOlllllOOlllllOOlllllOOlllllOOlllllOOlllllOOlllllOOlllllOOlllllOOlllllOOlllllOOlllllOOlllllOOllllOOOlllllOOlllllOOlllllOOlllllOOlllllOOlllllOOlllllOOlllllOOlllllOOlllllO","MO1","Darmstadt Hbf # Roßdorf # Ober-Ramstadt # Hahn #"]
["REG",18,"HEAG Verkehrs-GmbH",null,"056_",0,"H","Mo-Fr",1603," ","Roßdorf","Gelenk-Überlandbus-NF",0,0,0,0,0,"2000-01-01T16:24:12","2000-01-01T16:32:30",1.4294444447732531,34.306666674558073,null,248,3792,940.41600000000005,0,0,"OlllllOOlOOOlOOlOOllOOlllllOOlllllOOlllllOOlllllOOlllllOOlllllOOlllllOOlllllOOlllllOOlllllOOlllllOOlllllOOlllllOOlllllOOllllOOOOllllOOlllOlOOlllllOOlllllOOlllllOOlllOlOOlllllOOOllllOOlllOlOOlllllOOlllllOOlllllOOlllllOOlllllOOlllllOOlllllOOlllllOOlllllOOlllllOOlllllOOlllllOOlllllOOlllllOOllllOOOlllllOOlllllOOlllllOOlllllOOlllllOOlllllOOlllllOOlllllOOlllllOOlllllO","MO1","Darmstadt Hbf # Roßdorf # Ober-Ramstadt # Hahn #"]
["REG",18,"HEAG Verkehrs-GmbH",null,"056_",0,"H","Mo-Fr",1603," ","Ober-Ramstadt","Gelenk-Überlandbus-NF",0,0,0,0,0,"2000-01-01T16:32:30","2000-01-01T17:05:00",5.5972222224227153,134.33333333814517,null,248,15336,3803.328,0,0,"OlllllOOlOOOlOOlOOllOOlllllOOlllllOOlllllOOlllllOOlllllOOlllllOOlllllOOlllllOOlllllOOlllllOOlllllOOlllllOOlllllOOlllllOOllllOOOOllllOOlllOlOOlllllOOlllllOOlllllOOlllOlOOlllllOOOllllOOlllOlOOlllllOOlllllOOlllllOOlllllOOlllllOOlllllOOlllllOOlllllOOlllllOOlllllOOlllllOOlllllOOlllllOOlllllOOllllOOOlllllOOlllllOOlllllOOlllllOOlllllOOlllllOOlllllOOlllllOOlllllOOlllllO","MO1","Darmstadt Hbf # Roßdorf # Ober-Ramstadt # Hahn #"]
["REG",18,"HEAG Verkehrs-GmbH",null,"056_",0,"H","Mo-Fr",1703," ","Darmstadt","Gelenk-Überlandbus-NF",0,0,0,0,0,"2000-01-01T17:03:00","2000-01-01T17:24:12",3.6511111111030914,87.626666666474193,null,248,8657,2146.9360000000001,0,0,"OlllllOOlOOOlOOlOOllOOlllllOOlllllOOlllllOOlllllOOlllllOOlllllOOlllllOOlllllOOlllllOOlllllOOlllllOOlllllOOlllllOOlllllOOllllOOOOllllOOlllOlOOlllllOOlllllOOlllllOOlllOlOOlllllOOOllllOOlllOlOOlllllOOlllllOOlllllOOlllllOOlllllOOlllllOOlllllOOlllllOOlllllOOlllllOOlllllOOlllllOOlllllOOlllllOOllllOOOlllllOOlllllOOlllllOOlllllOOlllllOOlllllOOlllllOOlllllOOlllllOOlllllO","MO1","Darmstadt Hbf # Roßdorf # Ober-Ramstadt # Hahn #"]
["REG",18,"HEAG Verkehrs-GmbH",null,"056_",0,"H","Mo-Fr",1703," ","Roßdorf","Gelenk-Überlandbus-NF",0,0,0,0,0,"2000-01-01T17:24:12","2000-01-01T17:32:30",1.4294444447732531,34.306666674558073,null,248,3792,940.41600000000005,0,0,"OlllllOOlOOOlOOlOOllOOlllllOOlllllOOlllllOOlllllOOlllllOOlllllOOlllllOOlllllOOlllllOOlllllOOlllllOOlllllOOlllllOOlllllOOllllOOOOllllOOlllOlOOlllllOOlllllOOlllllOOlllOlOOlllllOOOllllOOlllOlOOlllllOOlllllOOlllllOOlllllOOlllllOOlllllOOlllllOOlllllOOlllllOOlllllOOlllllOOlllllOOlllllOOlllllOOllllOOOlllllOOlllllOOlllllOOlllllOOlllllOOlllllOOlllllOOlllllOOlllllOOlllllO","MO1","Darmstadt Hbf # Roßdorf # Ober-Ramstadt # Hahn #"]
["REG",18,"HEAG Verkehrs-GmbH",null,"056_",0,"H","Mo-Fr",1703," ","Ober-Ramstadt","Gelenk-Überlandbus-NF",0,0,0,0,0,"2000-01-01T17:32:30","2000-01-01T18:05:00",5.5972222206182778,134.33333329483867,null,248,15336,3803.328,0,0,"OlllllOOlOOOlOOlOOllOOlllllOOlllllOOlllllOOlllllOOlllllOOlllllOOlllllOOlllllOOlllllOOlllllOOlllllOOlllllOOlllllOOlllllOOllllOOOOllllOOlllOlOOlllllOOlllllOOlllllOOlllOlOOlllllOOOllllOOlllOlOOlllllOOlllllOOlllllOOlllllOOlllllOOlllllOOlllllOOlllllOOlllllOOlllllOOlllllOOlllllOOlllllOOlllllOOllllOOOlllllOOlllllOOlllllOOlllllOOlllllOOlllllOOlllllOOlllllOOlllllOOlllllO","MO1","Darmstadt Hbf # Roßdorf # Ober-Ramstadt # Hahn #"]
["REG",18,"HEAG Verkehrs-GmbH",null,"056_",0,"H","Mo-Fr",1803," ","Darmstadt","Gelenk-Überlandbus-NF",0,0,0,0,0,"2000-01-01T18:03:00","2000-01-01T18:24:12",3.6511111111030914,87.626666666474193,null,248,8657,2146.9360000000001,0,0,"OlllllOOlOOOlOOlOOllOOlllllOOlllllOOlllllOOlllllOOlllllOOlllllOOlllllOOlllllOOlllllOOlllllOOlllllOOlllllOOlllllOOlllllOOllllOOOOllllOOlllOlOOlllllOOlllllOOlllllOOlllOlOOlllllOOOllllOOlllOlOOlllllOOlllllOOlllllOOlllllOOlllllOOlllllOOlllllOOlllllOOlllllOOlllllOOlllllOOlllllOOlllllOOlllllOOllllOOOlllllOOlllllOOlllllOOlllllOOlllllOOlllllOOlllllOOlllllOOlllllOOlllllO","MO1","Darmstadt Hbf # Roßdorf # Ober-Ramstadt # Hahn #"]
["REG",18,"HEAG Verkehrs-GmbH",null,"056_",0,"H","Mo-Fr",1803," ","Roßdorf","Gelenk-Überlandbus-NF",0,0,0,0,0,"2000-01-01T18:24:12","2000-01-01T18:32:30",1.4294444447732531,34.306666674558073,null,248,3792,940.41600000000005,0,0,"OlllllOOlOOOlOOlOOllOOlllllOOlllllOOlllllOOlllllOOlllllOOlllllOOlllllOOlllllOOlllllOOlllllOOlllllOOlllllOOlllllOOlllllOOllllOOOOllllOOlllOlOOlllllOOlllllOOlllllOOlllOlOOlllllOOOllllOOlllOlOOlllllOOlllllOOlllllOOlllllOOlllllOOlllllOOlllllOOlllllOOlllllOOlllllOOlllllOOlllllOOlllllOOlllllOOllllOOOlllllOOlllllOOlllllOOlllllOOlllllOOlllllOOlllllOOlllllOOlllllOOlllllO","MO1","Darmstadt Hbf # Roßdorf # Ober-Ramstadt # Hahn #"]
["REG",18,"HEAG Verkehrs-GmbH",null,"056_",0,"H","Mo-Fr",1803," ","Ober-Ramstadt","Gelenk-Überlandbus-NF",0,0,0,0,0,"2000-01-01T18:32:30","2000-01-01T19:05:00",5.5972222224227153,134.33333333814517,null,248,15336,3803.328,0,0,"OlllllOOlOOOlOOlOOllOOlllllOOlllllOOlllllOOlllllOOlllllOOlllllOOlllllOOlllllOOlllllOOlllllOOlllllOOlllllOOlllllOOlllllOOllllOOOOllllOOlllOlOOlllllOOlllllOOlllllOOlllOlOOlllllOOOllllOOlllOlOOlllllOOlllllOOlllllOOlllllOOlllllOOlllllOOlllllOOlllllOOlllllOOlllllOOlllllOOlllllOOlllllOOlllllOOllllOOOlllllOOlllllOOlllllOOlllllOOlllllOOlllllOOlllllOOlllllOOlllllOOlllllO","MO1","Darmstadt Hbf # Roßdorf # Ober-Ramstadt # Hahn #"]
["REG",18,"HEAG Verkehrs-GmbH",null,"056_",0,"H","Mo-Fr",1903," ","Darmstadt","Gelenk-Überlandbus-NF",0,0,0,0,0,"2000-01-01T19:03:00","2000-01-01T19:24:12",3.6511111111030914,87.626666666474193,null,248,8657,2146.9360000000001,0,0,"OlllllOOlOOOlOOlOOllOOlllllOOlllllOOlllllOOlllllOOlllllOOlllllOOlllllOOlllllOOlllllOOlllllOOlllllOOlllllOOlllllOOlllllOOllllOOOOllllOOlllOlOOlllllOOlllllOOlllllOOlllOlOOlllllOOOllllOOlllOlOOlllllOOlllllOOlllllOOlllllOOlllllOOlllllOOlllllOOlllllOOlllllOOlllllOOlllllOOlllllOOlllllOOlllllOOllllOOOlllllOOlllllOOlllllOOlllllOOlllllOOlllllOOlllllOOlllllOOlllllOOlllllO","MO1","Darmstadt Hbf # Roßdorf # Ober-Ramstadt # Hahn #"]
["REG",18,"HEAG Verkehrs-GmbH",null,"056_",0,"H","Mo-Fr",1903," ","Roßdorf","Gelenk-Überlandbus-NF",0,0,0,0,0,"2000-01-01T19:24:12","2000-01-01T19:32:30",1.4294444447732531,34.306666674558073,null,248,3792,940.41600000000005,0,0,"OlllllOOlOOOlOOlOOllOOlllllOOlllllOOlllllOOlllllOOlllllOOlllllOOlllllOOlllllOOlllllOOlllllOOlllllOOlllllOOlllllOOlllllOOllllOOOOllllOOlllOlOOlllllOOlllllOOlllllOOlllOlOOlllllOOOllllOOlllOlOOlllllOOlllllOOlllllOOlllllOOlllllOOlllllOOlllllOOlllllOOlllllOOlllllOOlllllOOlllllOOlllllOOlllllOOllllOOOlllllOOlllllOOlllllOOlllllOOlllllOOlllllOOlllllOOlllllOOlllllOOlllllO","MO1","Darmstadt Hbf # Roßdorf # Ober-Ramstadt # Hahn #"]
["REG",18,"HEAG Verkehrs-GmbH",null,"056_",0,"H","Mo-Fr",1903," ","Ober-Ramstadt","Gelenk-Überlandbus-NF",0,0,0,0,0,"2000-01-01T19:32:30","2000-01-01T20:05:00",5.5972222224227153,134.33333333814517,null,248,15336,3803.328,0,0,"OlllllOOlOOOlOOlOOllOOlllllOOlllllOOlllllOOlllllOOlllllOOlllllOOlllllOOlllllOOlllllOOlllllOOlllllOOlllllOOlllllOOlllllOOllllOOOOllllOOlllOlOOlllllOOlllllOOlllllOOlllOlOOlllllOOOllllOOlllOlOOlllllOOlllllOOlllllOOlllllOOlllllOOlllllOOlllllOOlllllOOlllllOOlllllOOlllllOOlllllOOlllllOOlllllOOllllOOOlllllOOlllllOOlllllOOlllllOOlllllOOlllllOOlllllOOlllllOOlllllOOlllllO","MO1","Darmstadt Hbf # Roßdorf # Ober-Ramstadt # Hahn #"]
["REG",18,"HEAG Verkehrs-GmbH",null,"056_",0,"H","Mo-Fr",2003," ","Darmstadt","Gelenk-Überlandbus-NF",0,0,0,0,0,"2000-01-01T20:03:00","2000-01-01T20:24:12",3.6511111111030914,87.626666666474193,null,248,8657,2146.9360000000001,0,0,"OlllllOOlOOOlOOlOOllOOlllllOOlllllOOlllllOOlllllOOlllllOOlllllOOlllllOOlllllOOlllllOOlllllOOlllllOOlllllOOlllllOOlllllOOllllOOOOllllOOlllOlOOlllllOOlllllOOlllllOOlllOlOOlllllOOOllllOOlllOlOOlllllOOlllllOOlllllOOlllllOOlllllOOlllllOOlllllOOlllllOOlllllOOlllllOOlllllOOlllllOOlllllOOlllllOOllllOOOlllllOOlllllOOlllllOOlllllOOlllllOOlllllOOlllllOOlllllOOlllllOOlllllO","MO1","Darmstadt Hbf # Roßdorf # Ober-Ramstadt # Hahn #"]
["REG",18,"HEAG Verkehrs-GmbH",null,"056_",0,"H","Mo-Fr",2003," ","Roßdorf","Gelenk-Überlandbus-NF",0,0,0,0,0,"2000-01-01T20:24:12","2000-01-01T20:32:30",1.4294444447732531,34.306666674558073,null,248,3792,940.41600000000005,0,0,"OlllllOOlOOOlOOlOOllOOlllllOOlllllOOlllllOOlllllOOlllllOOlllllOOlllllOOlllllOOlllllOOlllllOOlllllOOlllllOOlllllOOlllllOOllllOOOOllllOOlllOlOOlllllOOlllllOOlllllOOlllOlOOlllllOOOllllOOlllOlOOlllllOOlllllOOlllllOOlllllOOlllllOOlllllOOlllllOOlllllOOlllllOOlllllOOlllllOOlllllOOlllllOOlllllOOllllOOOlllllOOlllllOOlllllOOlllllOOlllllOOlllllOOlllllOOlllllOOlllllOOlllllO","MO1","Darmstadt Hbf # Roßdorf # Ober-Ramstadt # Hahn #"]
["REG",18,"HEAG Verkehrs-GmbH",null,"056_",0,"H","Mo-Fr",2003," ","Ober-Ramstadt","Gelenk-Überlandbus-NF",0,0,0,0,0,"2000-01-01T20:32:30","2000-01-01T21:05:00",5.5972222206182778,134.33333329483867,null,248,15336,3803.328,0,0,"OlllllOOlOOOlOOlOOllOOlllllOOlllllOOlllllOOlllllOOlllllOOlllllOOlllllOOlllllOOlllllOOlllllOOlllllOOlllllOOlllllOOlllllOOllllOOOOllllOOlllOlOOlllllOOlllllOOlllllOOlllOlOOlllllOOOllllOOlllOlOOlllllOOlllllOOlllllOOlllllOOlllllOOlllllOOlllllOOlllllOOlllllOOlllllOOlllllOOlllllOOlllllOOlllllOOllllOOOlllllOOlllllOOlllllOOlllllOOlllllOOlllllOOlllllOOlllllOOlllllOOlllllO","MO1","Darmstadt Hbf # Roßdorf # Ober-Ramstadt # Hahn #"]
["REG",18,"HEAG Verkehrs-GmbH",null,"056_",0,"H","Mo-Fr",2118," ","Ober-Ramstadt","Solo-Überlandbus-NF",0,0,0,0,0,"2000-01-01T21:18:00","2000-01-01T21:40:00",3.7888888904126361,90.933333369903266,null,248,11105,2754.04,0,0,"OlllllOOlOOOlOOlOOllOOlllllOOlllllOOlllllOOlllllOOlllllOOlllllOOlllllOOlllllOOlllllOOlllllOOlllllOOlllllOOlllllOOlllllOOllllOOOOllllOOlllOlOOlllllOOlllllOOlllllOOlllOlOOlllllOOOllllOOlllOlOOlllllOOlllllOOlllllOOlllllOOlllllOOlllllOOlllllOOlllllOOlllllOOlllllOOlllllOOlllllOOlllllOOlllllOOllllOOOlllllOOlllllOOlllllOOlllllOOlllllOOlllllOOlllllOOlllllOOlllllOOlllllO","MO1","Darmstadt Hbf # Roßdorf # Ober-Ramstadt # Hahn #"]
["REG",18,"HEAG Verkehrs-GmbH",null,"056_",0,"H","Mo-Fr",2238," ","Ober-Ramstadt","Solo-Überlandbus-NF",0,0,0,0,0,"2000-01-01T22:38:00","2000-01-01T23:00:00",3.7888888886081986,90.933333326596767,null,248,11105,2754.04,0,0,"OlllllOOlOOOlOOlOOllOOlllllOOlllllOOlllllOOlllllOOlllllOOlllllOOlllllOOlllllOOlllllOOlllllOOlllllOOlllllOOlllllOOlllllOOllllOOOOllllOOlllOlOOlllllOOlllllOOlllllOOlllOlOOlllllOOOllllOOlllOlOOlllllOOlllllOOlllllOOlllllOOlllllOOlllllOOlllllOOlllllOOlllllOOlllllOOlllllOOlllllOOlllllOOlllllOOllllOOOlllllOOlllllOOlllllOOlllllOOlllllOOlllllOOlllllOOlllllOOlllllOOlllllO","MO1","Darmstadt Hbf # Roßdorf # Ober-Ramstadt # Hahn #"]
["REG",18,"HEAG Verkehrs-GmbH",null,"056_",0,"H","Mo-Fr",2338," ","Ober-Ramstadt","Solo-Überlandbus-NF",0,0,0,0,0,"2000-01-01T23:38:00","2000-01-02",3.7888888886081986,90.933333326596767,null,248,11105,2754.04,0,0,"OlllllOOlOOOlOOlOOllOOlllllOOlllllOOlllllOOlllllOOlllllOOlllllOOlllllOOlllllOOlllllOOlllllOOlllllOOlllllOOlllllOOlllllOOllllOOOOllllOOlllOlOOlllllOOlllllOOlllllOOlllOlOOlllllOOOllllOOlllOlOOlllllOOlllllOOlllllOOlllllOOlllllOOlllllOOlllllOOlllllOOlllllOOlllllOOlllllOOlllllOOlllllOOlllllOOllllOOOlllllOOlllllOOlllllOOlllllOOlllllOOlllllOOlllllOOlllllOOlllllOOlllllO","MO1","Darmstadt Hbf # Roßdorf # Ober-Ramstadt # Hahn #"]
["REG",18,"HEAG Verkehrs-GmbH",null,"056_",0,"H","Mo-Fr",2438," ","Ober-Ramstadt","Solo-Überlandbus-NF",0,0,0,0,0,"2000-01-02T00:38:00","2000-01-02T01:00:00",3.7888888886081986,90.933333326596767,null,248,11105,2754.04,0,0,"OlllllOOlOOOlOOlOOllOOlllllOOlllllOOlllllOOlllllOOlllllOOlllllOOlllllOOlllllOOlllllOOlllllOOlllllOOlllllOOlllllOOlllllOOllllOOOOllllOOlllOlOOlllllOOlllllOOlllllOOlllOlOOlllllOOOllllOOlllOlOOlllllOOlllllOOlllllOOlllllOOlllllOOlllllOOlllllOOlllllOOlllllOOlllllOOlllllOOlllllOOlllllOOlllllOOllllOOOlllllOOlllllOOlllllOOlllllOOlllllOOlllllOOlllllOOlllllOOlllllOOlllllO","MO1","Darmstadt Hbf # Roßdorf # Ober-Ramstadt # Hahn #"]
["REG",18,"HEAG Verkehrs-GmbH",null,"056_",0,"H","Mo-Fr",2538," ","Ober-Ramstadt","Solo-Überlandbus-NF",0,0,0,0,0,"2000-01-02T01:38:00","2000-01-02T02:00:00",0.91666666659875773,{"$f":"T67*24","v":21.999999998370185},"ed    - gültig Nächte Fr/Sa, auch Nächte 03./04.03., 04./05.03., 17./18.04., 30.04./01.0",60,11105,666.3,0,0,"OOOOOlOOOOOOlOOOOOOlOOOOOOlOOOOOOlOOOOOOlOOOOOOlOOOOOOlOOOOOOlOOOOOOlOOOOOOlOOllOOlOOOOOOlOOOOOOlOOOOOOlOOOOOOlOOOOOOlOOOOOlOOOOOOOlOOOOlOlOOOOOOlOOOOOOlOOOOOOlOOOOlOlOOOOOllOOOOOOlOOOOlOlOOOOOOlOOOOOllOOlOOOlOOOOOOlOOOOOOlOOOOOOlOOOOOOlOOOOOOlOOOOOOlOOOOOOlOOOOOOlOOOOOOlOOOOOOlOOOOOOlOOOOOlOOOOOOOlOOOOOOlOOOOOOlOOOOOOlOOOOOOlOOOOOOlOOOOOOlOOOOOOlOOOOOOlOOOOOOlO","MO1","Darmstadt Hbf # Roßdorf # Ober-Ramstadt # Hahn #"]
["REG",18,"HEAG Verkehrs-GmbH",null,"056_",0,"H","Sa",703," ","Darmstadt","Gelenk-Überlandbus-NF",0,0,0,0,0,"2000-01-01T07:03:00","2000-01-01T07:24:12",0.79499999999825377,19.07999999995809,null,54,8657,467.47800000000001,0,0,"OOOOOOlOOlOOOlOOlOOOlOOOOOOlOOOOOOlOOOOOOlOOOOOOlOOOOOOlOOOOOOlOOOOOOlOOOOOOlOOOOOOlOOOOOOlOOOOOOlOOOOOOlOOOOOOlOOOOOOlOOOOOOlOOOOOOlOOOOOOlOOOOOOlOOOOOOlOOOOOOlOOOOOOlOOOOOOlOOOOOOlOOOOOOlOOOOOOlOOOOOOlOOOOOOlOOOOOOlOOOOOOlOOOOOOlOOOOOOlOOOOOOlOOOOOOlOOOOOOlOOOOOOlOOOOOOlOOOOOOlOOOOOOlOOOOOOlOOOOOOlOOOOOOlOOOOOOlOOOOOOlOOOOOOlOOOOOOlOOOOOOlOOOOOOlOOOOOOlOOOOOOl","MO1","Darmstadt Hbf # Roßdorf # Ober-Ramstadt # Hahn #"]
["REG",18,"HEAG Verkehrs-GmbH",null,"056_",0,"H","Sa",703," ","Roßdorf","Gelenk-Überlandbus-NF",0,0,0,0,0,"2000-01-01T07:24:12","2000-01-01T07:32:30",0.31125000007159542,7.4700000017182902,null,54,3792,204.768,0,0,"OOOOOOlOOlOOOlOOlOOOlOOOOOOlOOOOOOlOOOOOOlOOOOOOlOOOOOOlOOOOOOlOOOOOOlOOOOOOlOOOOOOlOOOOOOlOOOOOOlOOOOOOlOOOOOOlOOOOOOlOOOOOOlOOOOOOlOOOOOOlOOOOOOlOOOOOOlOOOOOOlOOOOOOlOOOOOOlOOOOOOlOOOOOOlOOOOOOlOOOOOOlOOOOOOlOOOOOOlOOOOOOlOOOOOOlOOOOOOlOOOOOOlOOOOOOlOOOOOOlOOOOOOlOOOOOOlOOOOOOlOOOOOOlOOOOOOlOOOOOOlOOOOOOlOOOOOOlOOOOOOlOOOOOOlOOOOOOlOOOOOOlOOOOOOlOOOOOOlOOOOOOl","MO1","Darmstadt Hbf # Roßdorf # Ober-Ramstadt # Hahn #"]
["REG",18,"HEAG Verkehrs-GmbH",null,"056_",0,"H","Sa",703," ","Ober-Ramstadt","Gelenk-Überlandbus-NF",0,0,0,0,0,"2000-01-01T07:32:30","2000-01-01T08:05:00",1.2187500000436557,29.250000001047738,null,54,15336,828.14400000000001,0,0,"OOOOOOlOOlOOOlOOlOOOlOOOOOOlOOOOOOlOOOOOOlOOOOOOlOOOOOOlOOOOOOlOOOOOOlOOOOOOlOOOOOOlOOOOOOlOOOOOOlOOOOOOlOOOOOOlOOOOOOlOOOOOOlOOOOOOlOOOOOOlOOOOOOlOOOOOOlOOOOOOlOOOOOOlOOOOOOlOOOOOOlOOOOOOlOOOOOOlOOOOOOlOOOOOOlOOOOOOlOOOOOOlOOOOOOlOOOOOOlOOOOOOlOOOOOOlOOOOOOlOOOOOOlOOOOOOlOOOOOOlOOOOOOlOOOOOOlOOOOOOlOOOOOOlOOOOOOlOOOOOOlOOOOOOlOOOOOOlOOOOOOlOOOOOOlOOOOOOlOOOOOOl","MO1","Darmstadt Hbf # Roßdorf # Ober-Ramstadt # Hahn #"]
["REG",18,"HEAG Verkehrs-GmbH",null,"056_",0,"H","Sa",903," ","Darmstadt","Gelenk-Überlandbus-NF",0,0,0,0,0,"2000-01-01T09:03:00","2000-01-01T09:24:12",0.79499999999825377,19.07999999995809,null,54,8657,467.47800000000001,0,0,"OOOOOOlOOlOOOlOOlOOOlOOOOOOlOOOOOOlOOOOOOlOOOOOOlOOOOOOlOOOOOOlOOOOOOlOOOOOOlOOOOOOlOOOOOOlOOOOOOlOOOOOOlOOOOOOlOOOOOOlOOOOOOlOOOOOOlOOOOOOlOOOOOOlOOOOOOlOOOOOOlOOOOOOlOOOOOOlOOOOOOlOOOOOOlOOOOOOlOOOOOOlOOOOOOlOOOOOOlOOOOOOlOOOOOOlOOOOOOlOOOOOOlOOOOOOlOOOOOOlOOOOOOlOOOOOOlOOOOOOlOOOOOOlOOOOOOlOOOOOOlOOOOOOlOOOOOOlOOOOOOlOOOOOOlOOOOOOlOOOOOOlOOOOOOlOOOOOOlOOOOOOl","MO1","Darmstadt Hbf # Roßdorf # Ober-Ramstadt # Hahn #"]
["REG",18,"HEAG Verkehrs-GmbH",null,"056_",0,"H","Sa",903," ","Roßdorf","Gelenk-Überlandbus-NF",0,0,0,0,0,"2000-01-01T09:24:12","2000-01-01T09:32:30",0.31125000007159542,7.4700000017182902,null,54,3792,204.768,0,0,"OOOOOOlOOlOOOlOOlOOOlOOOOOOlOOOOOOlOOOOOOlOOOOOOlOOOOOOlOOOOOOlOOOOOOlOOOOOOlOOOOOOlOOOOOOlOOOOOOlOOOOOOlOOOOOOlOOOOOOlOOOOOOlOOOOOOlOOOOOOlOOOOOOlOOOOOOlOOOOOOlOOOOOOlOOOOOOlOOOOOOlOOOOOOlOOOOOOlOOOOOOlOOOOOOlOOOOOOlOOOOOOlOOOOOOlOOOOOOlOOOOOOlOOOOOOlOOOOOOlOOOOOOlOOOOOOlOOOOOOlOOOOOOlOOOOOOlOOOOOOlOOOOOOlOOOOOOlOOOOOOlOOOOOOlOOOOOOlOOOOOOlOOOOOOlOOOOOOlOOOOOOl","MO1","Darmstadt Hbf # Roßdorf # Ober-Ramstadt # Hahn #"]
["REG",18,"HEAG Verkehrs-GmbH",null,"056_",0,"H","Sa",903," ","Ober-Ramstadt","Gelenk-Überlandbus-NF",0,0,0,0,0,"2000-01-01T09:32:30","2000-01-01T10:05:00",1.2187500000436557,29.250000001047738,null,54,15336,828.14400000000001,0,0,"OOOOOOlOOlOOOlOOlOOOlOOOOOOlOOOOOOlOOOOOOlOOOOOOlOOOOOOlOOOOOOlOOOOOOlOOOOOOlOOOOOOlOOOOOOlOOOOOOlOOOOOOlOOOOOOlOOOOOOlOOOOOOlOOOOOOlOOOOOOlOOOOOOlOOOOOOlOOOOOOlOOOOOOlOOOOOOlOOOOOOlOOOOOOlOOOOOOlOOOOOOlOOOOOOlOOOOOOlOOOOOOlOOOOOOlOOOOOOlOOOOOOlOOOOOOlOOOOOOlOOOOOOlOOOOOOlOOOOOOlOOOOOOlOOOOOOlOOOOOOlOOOOOOlOOOOOOlOOOOOOlOOOOOOlOOOOOOlOOOOOOlOOOOOOlOOOOOOlOOOOOOl","MO1","Darmstadt Hbf # Roßdorf # Ober-Ramstadt # Hahn #"]
["REG",18,"HEAG Verkehrs-GmbH",null,"056_",0,"H","Sa",1003," ","Darmstadt","Gelenk-Überlandbus-NF",0,0,0,0,0,"2000-01-01T10:03:00","2000-01-01T10:24:12",0.79499999999825377,19.07999999995809,null,54,8657,467.47800000000001,0,0,"OOOOOOlOOlOOOlOOlOOOlOOOOOOlOOOOOOlOOOOOOlOOOOOOlOOOOOOlOOOOOOlOOOOOOlOOOOOOlOOOOOOlOOOOOOlOOOOOOlOOOOOOlOOOOOOlOOOOOOlOOOOOOlOOOOOOlOOOOOOlOOOOOOlOOOOOOlOOOOOOlOOOOOOlOOOOOOlOOOOOOlOOOOOOlOOOOOOlOOOOOOlOOOOOOlOOOOOOlOOOOOOlOOOOOOlOOOOOOlOOOOOOlOOOOOOlOOOOOOlOOOOOOlOOOOOOlOOOOOOlOOOOOOlOOOOOOlOOOOOOlOOOOOOlOOOOOOlOOOOOOlOOOOOOlOOOOOOlOOOOOOlOOOOOOlOOOOOOlOOOOOOl","MO1","Darmstadt Hbf # Roßdorf # Ober-Ramstadt # Hahn #"]
["REG",18,"HEAG Verkehrs-GmbH",null,"056_",0,"H","Sa",1003," ","Roßdorf","Gelenk-Überlandbus-NF",0,0,0,0,0,"2000-01-01T10:24:12","2000-01-01T10:32:30",0.31125000007159542,7.4700000017182902,null,54,3792,204.768,0,0,"OOOOOOlOOlOOOlOOlOOOlOOOOOOlOOOOOOlOOOOOOlOOOOOOlOOOOOOlOOOOOOlOOOOOOlOOOOOOlOOOOOOlOOOOOOlOOOOOOlOOOOOOlOOOOOOlOOOOOOlOOOOOOlOOOOOOlOOOOOOlOOOOOOlOOOOOOlOOOOOOlOOOOOOlOOOOOOlOOOOOOlOOOOOOlOOOOOOlOOOOOOlOOOOOOlOOOOOOlOOOOOOlOOOOOOlOOOOOOlOOOOOOlOOOOOOlOOOOOOlOOOOOOlOOOOOOlOOOOOOlOOOOOOlOOOOOOlOOOOOOlOOOOOOlOOOOOOlOOOOOOlOOOOOOlOOOOOOlOOOOOOlOOOOOOlOOOOOOlOOOOOOl","MO1","Darmstadt Hbf # Roßdorf # Ober-Ramstadt # Hahn #"]
["REG",18,"HEAG Verkehrs-GmbH",null,"056_",0,"H","Sa",1003," ","Ober-Ramstadt","Gelenk-Überlandbus-NF",0,0,0,0,0,"2000-01-01T10:32:30","2000-01-01T11:05:00",1.2187500000436557,29.250000001047738,null,54,15336,828.14400000000001,0,0,"OOOOOOlOOlOOOlOOlOOOlOOOOOOlOOOOOOlOOOOOOlOOOOOOlOOOOOOlOOOOOOlOOOOOOlOOOOOOlOOOOOOlOOOOOOlOOOOOOlOOOOOOlOOOOOOlOOOOOOlOOOOOOlOOOOOOlOOOOOOlOOOOOOlOOOOOOlOOOOOOlOOOOOOlOOOOOOlOOOOOOlOOOOOOlOOOOOOlOOOOOOlOOOOOOlOOOOOOlOOOOOOlOOOOOOlOOOOOOlOOOOOOlOOOOOOlOOOOOOlOOOOOOlOOOOOOlOOOOOOlOOOOOOlOOOOOOlOOOOOOlOOOOOOlOOOOOOlOOOOOOlOOOOOOlOOOOOOlOOOOOOlOOOOOOlOOOOOOlOOOOOOl","MO1","Darmstadt Hbf # Roßdorf # Ober-Ramstadt # Hahn #"]
["REG",18,"HEAG Verkehrs-GmbH",null,"056_",0,"H","Sa",1103," ","Darmstadt","Gelenk-Überlandbus-NF",0,0,0,0,0,"2000-01-01T11:03:00","2000-01-01T11:24:12",0.79499999999825377,19.07999999995809,null,54,8657,467.47800000000001,0,0,"OOOOOOlOOlOOOlOOlOOOlOOOOOOlOOOOOOlOOOOOOlOOOOOOlOOOOOOlOOOOOOlOOOOOOlOOOOOOlOOOOOOlOOOOOOlOOOOOOlOOOOOOlOOOOOOlOOOOOOlOOOOOOlOOOOOOlOOOOOOlOOOOOOlOOOOOOlOOOOOOlOOOOOOlOOOOOOlOOOOOOlOOOOOOlOOOOOOlOOOOOOlOOOOOOlOOOOOOlOOOOOOlOOOOOOlOOOOOOlOOOOOOlOOOOOOlOOOOOOlOOOOOOlOOOOOOlOOOOOOlOOOOOOlOOOOOOlOOOOOOlOOOOOOlOOOOOOlOOOOOOlOOOOOOlOOOOOOlOOOOOOlOOOOOOlOOOOOOlOOOOOOl","MO1","Darmstadt Hbf # Roßdorf # Ober-Ramstadt # Hahn #"]
["REG",18,"HEAG Verkehrs-GmbH",null,"056_",0,"H","Sa",1103," ","Roßdorf","Gelenk-Überlandbus-NF",0,0,0,0,0,"2000-01-01T11:24:12","2000-01-01T11:32:30",0.31125000007159542,7.4700000017182902,null,54,3792,204.768,0,0,"OOOOOOlOOlOOOlOOlOOOlOOOOOOlOOOOOOlOOOOOOlOOOOOOlOOOOOOlOOOOOOlOOOOOOlOOOOOOlOOOOOOlOOOOOOlOOOOOOlOOOOOOlOOOOOOlOOOOOOlOOOOOOlOOOOOOlOOOOOOlOOOOOOlOOOOOOlOOOOOOlOOOOOOlOOOOOOlOOOOOOlOOOOOOlOOOOOOlOOOOOOlOOOOOOlOOOOOOlOOOOOOlOOOOOOlOOOOOOlOOOOOOlOOOOOOlOOOOOOlOOOOOOlOOOOOOlOOOOOOlOOOOOOlOOOOOOlOOOOOOlOOOOOOlOOOOOOlOOOOOOlOOOOOOlOOOOOOlOOOOOOlOOOOOOlOOOOOOlOOOOOOl","MO1","Darmstadt Hbf # Roßdorf # Ober-Ramstadt # Hahn #"]
["REG",18,"HEAG Verkehrs-GmbH",null,"056_",0,"H","Sa",1103," ","Ober-Ramstadt","Gelenk-Überlandbus-NF",0,0,0,0,0,"2000-01-01T11:32:30","2000-01-01T12:05:00",1.218749999650754,29.249999991618097,null,54,15336,828.14400000000001,0,0,"OOOOOOlOOlOOOlOOlOOOlOOOOOOlOOOOOOlOOOOOOlOOOOOOlOOOOOOlOOOOOOlOOOOOOlOOOOOOlOOOOOOlOOOOOOlOOOOOOlOOOOOOlOOOOOOlOOOOOOlOOOOOOlOOOOOOlOOOOOOlOOOOOOlOOOOOOlOOOOOOlOOOOOOlOOOOOOlOOOOOOlOOOOOOlOOOOOOlOOOOOOlOOOOOOlOOOOOOlOOOOOOlOOOOOOlOOOOOOlOOOOOOlOOOOOOlOOOOOOlOOOOOOlOOOOOOlOOOOOOlOOOOOOlOOOOOOlOOOOOOlOOOOOOlOOOOOOlOOOOOOlOOOOOOlOOOOOOlOOOOOOlOOOOOOlOOOOOOlOOOOOOl","MO1","Darmstadt Hbf # Roßdorf # Ober-Ramstadt # Hahn #"]
["REG",18,"HEAG Verkehrs-GmbH",null,"056_",0,"H","Sa",1203," ","Darmstadt","Gelenk-Überlandbus-NF",0,0,0,0,0,"2000-01-01T12:03:00","2000-01-01T12:24:12",0.79499999999825377,19.07999999995809,null,54,8657,467.47800000000001,0,0,"OOOOOOlOOlOOOlOOlOOOlOOOOOOlOOOOOOlOOOOOOlOOOOOOlOOOOOOlOOOOOOlOOOOOOlOOOOOOlOOOOOOlOOOOOOlOOOOOOlOOOOOOlOOOOOOlOOOOOOlOOOOOOlOOOOOOlOOOOOOlOOOOOOlOOOOOOlOOOOOOlOOOOOOlOOOOOOlOOOOOOlOOOOOOlOOOOOOlOOOOOOlOOOOOOlOOOOOOlOOOOOOlOOOOOOlOOOOOOlOOOOOOlOOOOOOlOOOOOOlOOOOOOlOOOOOOlOOOOOOlOOOOOOlOOOOOOlOOOOOOlOOOOOOlOOOOOOlOOOOOOlOOOOOOlOOOOOOlOOOOOOlOOOOOOlOOOOOOlOOOOOOl","MO1","Darmstadt Hbf # Roßdorf # Ober-Ramstadt # Hahn #"]
["REG",18,"HEAG Verkehrs-GmbH",null,"056_",0,"H","Sa",1203," ","Roßdorf","Gelenk-Überlandbus-NF",0,0,0,0,0,"2000-01-01T12:24:12","2000-01-01T12:32:30",0.31125000007159542,7.4700000017182902,null,54,3792,204.768,0,0,"OOOOOOlOOlOOOlOOlOOOlOOOOOOlOOOOOOlOOOOOOlOOOOOOlOOOOOOlOOOOOOlOOOOOOlOOOOOOlOOOOOOlOOOOOOlOOOOOOlOOOOOOlOOOOOOlOOOOOOlOOOOOOlOOOOOOlOOOOOOlOOOOOOlOOOOOOlOOOOOOlOOOOOOlOOOOOOlOOOOOOlOOOOOOlOOOOOOlOOOOOOlOOOOOOlOOOOOOlOOOOOOlOOOOOOlOOOOOOlOOOOOOlOOOOOOlOOOOOOlOOOOOOlOOOOOOlOOOOOOlOOOOOOlOOOOOOlOOOOOOlOOOOOOlOOOOOOlOOOOOOlOOOOOOlOOOOOOlOOOOOOlOOOOOOlOOOOOOlOOOOOOl","MO1","Darmstadt Hbf # Roßdorf # Ober-Ramstadt # Hahn #"]
["REG",18,"HEAG Verkehrs-GmbH",null,"056_",0,"H","Sa",1203," ","Ober-Ramstadt","Gelenk-Überlandbus-NF",0,0,0,0,0,"2000-01-01T12:32:30","2000-01-01T13:05:00",1.2187500000436557,29.250000001047738,null,54,15336,828.14400000000001,0,0,"OOOOOOlOOlOOOlOOlOOOlOOOOOOlOOOOOOlOOOOOOlOOOOOOlOOOOOOlOOOOOOlOOOOOOlOOOOOOlOOOOOOlOOOOOOlOOOOOOlOOOOOOlOOOOOOlOOOOOOlOOOOOOlOOOOOOlOOOOOOlOOOOOOlOOOOOOlOOOOOOlOOOOOOlOOOOOOlOOOOOOlOOOOOOlOOOOOOlOOOOOOlOOOOOOlOOOOOOlOOOOOOlOOOOOOlOOOOOOlOOOOOOlOOOOOOlOOOOOOlOOOOOOlOOOOOOlOOOOOOlOOOOOOlOOOOOOlOOOOOOlOOOOOOlOOOOOOlOOOOOOlOOOOOOlOOOOOOlOOOOOOlOOOOOOlOOOOOOlOOOOOOl","MO1","Darmstadt Hbf # Roßdorf # Ober-Ramstadt # Hahn #"]
["REG",18,"HEAG Verkehrs-GmbH",null,"056_",0,"H","Sa",1303," ","Darmstadt","Gelenk-Überlandbus-NF",0,0,0,0,0,"2000-01-01T13:03:00","2000-01-01T13:24:12",0.79499999999825377,19.07999999995809,null,54,8657,467.47800000000001,0,0,"OOOOOOlOOlOOOlOOlOOOlOOOOOOlOOOOOOlOOOOOOlOOOOOOlOOOOOOlOOOOOOlOOOOOOlOOOOOOlOOOOOOlOOOOOOlOOOOOOlOOOOOOlOOOOOOlOOOOOOlOOOOOOlOOOOOOlOOOOOOlOOOOOOlOOOOOOlOOOOOOlOOOOOOlOOOOOOlOOOOOOlOOOOOOlOOOOOOlOOOOOOlOOOOOOlOOOOOOlOOOOOOlOOOOOOlOOOOOOlOOOOOOlOOOOOOlOOOOOOlOOOOOOlOOOOOOlOOOOOOlOOOOOOlOOOOOOlOOOOOOlOOOOOOlOOOOOOlOOOOOOlOOOOOOlOOOOOOlOOOOOOlOOOOOOlOOOOOOlOOOOOOl","MO1","Darmstadt Hbf # Roßdorf # Ober-Ramstadt # Hahn #"]
["REG",18,"HEAG Verkehrs-GmbH",null,"056_",0,"H","Sa",1303," ","Roßdorf","Gelenk-Überlandbus-NF",0,0,0,0,0,"2000-01-01T13:24:12","2000-01-01T13:32:30",0.31125000007159542,7.4700000017182902,null,54,3792,204.768,0,0,"OOOOOOlOOlOOOlOOlOOOlOOOOOOlOOOOOOlOOOOOOlOOOOOOlOOOOOOlOOOOOOlOOOOOOlOOOOOOlOOOOOOlOOOOOOlOOOOOOlOOOOOOlOOOOOOlOOOOOOlOOOOOOlOOOOOOlOOOOOOlOOOOOOlOOOOOOlOOOOOOlOOOOOOlOOOOOOlOOOOOOlOOOOOOlOOOOOOlOOOOOOlOOOOOOlOOOOOOlOOOOOOlOOOOOOlOOOOOOlOOOOOOlOOOOOOlOOOOOOlOOOOOOlOOOOOOlOOOOOOlOOOOOOlOOOOOOlOOOOOOlOOOOOOlOOOOOOlOOOOOOlOOOOOOlOOOOOOlOOOOOOlOOOOOOlOOOOOOlOOOOOOl","MO1","Darmstadt Hbf # Roßdorf # Ober-Ramstadt # Hahn #"]
["REG",18,"HEAG Verkehrs-GmbH",null,"056_",0,"H","Sa",1303," ","Ober-Ramstadt","Gelenk-Überlandbus-NF",0,0,0,0,0,"2000-01-01T13:32:30","2000-01-01T14:05:00",1.2187500000436557,29.250000001047738,null,54,15336,828.14400000000001,0,0,"OOOOOOlOOlOOOlOOlOOOlOOOOOOlOOOOOOlOOOOOOlOOOOOOlOOOOOOlOOOOOOlOOOOOOlOOOOOOlOOOOOOlOOOOOOlOOOOOOlOOOOOOlOOOOOOlOOOOOOlOOOOOOlOOOOOOlOOOOOOlOOOOOOlOOOOOOlOOOOOOlOOOOOOlOOOOOOlOOOOOOlOOOOOOlOOOOOOlOOOOOOlOOOOOOlOOOOOOlOOOOOOlOOOOOOlOOOOOOlOOOOOOlOOOOOOlOOOOOOlOOOOOOlOOOOOOlOOOOOOlOOOOOOlOOOOOOlOOOOOOlOOOOOOlOOOOOOlOOOOOOlOOOOOOlOOOOOOlOOOOOOlOOOOOOlOOOOOOlOOOOOOl","MO1","Darmstadt Hbf # Roßdorf # Ober-Ramstadt # Hahn #"]
["REG",18,"HEAG Verkehrs-GmbH",null,"056_",0,"H","Sa",1403," ","Darmstadt","Gelenk-Überlandbus-NF",0,0,0,0,0,"2000-01-01T14:03:00","2000-01-01T14:24:12",0.79499999999825377,19.07999999995809,null,54,8657,467.47800000000001,0,0,"OOOOOOlOOlOOOlOOlOOOlOOOOOOlOOOOOOlOOOOOOlOOOOOOlOOOOOOlOOOOOOlOOOOOOlOOOOOOlOOOOOOlOOOOOOlOOOOOOlOOOOOOlOOOOOOlOOOOOOlOOOOOOlOOOOOOlOOOOOOlOOOOOOlOOOOOOlOOOOOOlOOOOOOlOOOOOOlOOOOOOlOOOOOOlOOOOOOlOOOOOOlOOOOOOlOOOOOOlOOOOOOlOOOOOOlOOOOOOlOOOOOOlOOOOOOlOOOOOOlOOOOOOlOOOOOOlOOOOOOlOOOOOOlOOOOOOlOOOOOOlOOOOOOlOOOOOOlOOOOOOlOOOOOOlOOOOOOlOOOOOOlOOOOOOlOOOOOOlOOOOOOl","MO1","Darmstadt Hbf # Roßdorf # Ober-Ramstadt # Hahn #"]
["REG",18,"HEAG Verkehrs-GmbH",null,"056_",0,"H","Sa",1403," ","Roßdorf","Gelenk-Überlandbus-NF",0,0,0,0,0,"2000-01-01T14:24:12","2000-01-01T14:32:30",0.31125000007159542,7.4700000017182902,null,54,3792,204.768,0,0,"OOOOOOlOOlOOOlOOlOOOlOOOOOOlOOOOOOlOOOOOOlOOOOOOlOOOOOOlOOOOOOlOOOOOOlOOOOOOlOOOOOOlOOOOOOlOOOOOOlOOOOOOlOOOOOOlOOOOOOlOOOOOOlOOOOOOlOOOOOOlOOOOOOlOOOOOOlOOOOOOlOOOOOOlOOOOOOlOOOOOOlOOOOOOlOOOOOOlOOOOOOlOOOOOOlOOOOOOlOOOOOOlOOOOOOlOOOOOOlOOOOOOlOOOOOOlOOOOOOlOOOOOOlOOOOOOlOOOOOOlOOOOOOlOOOOOOlOOOOOOlOOOOOOlOOOOOOlOOOOOOlOOOOOOlOOOOOOlOOOOOOlOOOOOOlOOOOOOlOOOOOOl","MO1","Darmstadt Hbf # Roßdorf # Ober-Ramstadt # Hahn #"]
["REG",18,"HEAG Verkehrs-GmbH",null,"056_",0,"H","Sa",1403," ","Ober-Ramstadt","Gelenk-Überlandbus-NF",0,0,0,0,0,"2000-01-01T14:32:30","2000-01-01T15:05:00",1.218749999650754,29.249999991618097,null,54,15336,828.14400000000001,0,0,"OOOOOOlOOlOOOlOOlOOOlOOOOOOlOOOOOOlOOOOOOlOOOOOOlOOOOOOlOOOOOOlOOOOOOlOOOOOOlOOOOOOlOOOOOOlOOOOOOlOOOOOOlOOOOOOlOOOOOOlOOOOOOlOOOOOOlOOOOOOlOOOOOOlOOOOOOlOOOOOOlOOOOOOlOOOOOOlOOOOOOlOOOOOOlOOOOOOlOOOOOOlOOOOOOlOOOOOOlOOOOOOlOOOOOOlOOOOOOlOOOOOOlOOOOOOlOOOOOOlOOOOOOlOOOOOOlOOOOOOlOOOOOOlOOOOOOlOOOOOOlOOOOOOlOOOOOOlOOOOOOlOOOOOOlOOOOOOlOOOOOOlOOOOOOlOOOOOOlOOOOOOl","MO1","Darmstadt Hbf # Roßdorf # Ober-Ramstadt # Hahn #"]
["REG",18,"HEAG Verkehrs-GmbH",null,"056_",0,"H","Sa",1503," ","Darmstadt","Gelenk-Überlandbus-NF",0,0,0,0,0,"2000-01-01T15:03:00","2000-01-01T15:24:12",0.79499999999825377,19.07999999995809,null,54,8657,467.47800000000001,0,0,"OOOOOOlOOlOOOlOOlOOOlOOOOOOlOOOOOOlOOOOOOlOOOOOOlOOOOOOlOOOOOOlOOOOOOlOOOOOOlOOOOOOlOOOOOOlOOOOOOlOOOOOOlOOOOOOlOOOOOOlOOOOOOlOOOOOOlOOOOOOlOOOOOOlOOOOOOlOOOOOOlOOOOOOlOOOOOOlOOOOOOlOOOOOOlOOOOOOlOOOOOOlOOOOOOlOOOOOOlOOOOOOlOOOOOOlOOOOOOlOOOOOOlOOOOOOlOOOOOOlOOOOOOlOOOOOOlOOOOOOlOOOOOOlOOOOOOlOOOOOOlOOOOOOlOOOOOOlOOOOOOlOOOOOOlOOOOOOlOOOOOOlOOOOOOlOOOOOOlOOOOOOl","MO1","Darmstadt Hbf # Roßdorf # Ober-Ramstadt # Hahn #"]
["REG",18,"HEAG Verkehrs-GmbH",null,"056_",0,"H","Sa",1503," ","Roßdorf","Gelenk-Überlandbus-NF",0,0,0,0,0,"2000-01-01T15:24:12","2000-01-01T15:32:30",0.31125000007159542,7.4700000017182902,null,54,3792,204.768,0,0,"OOOOOOlOOlOOOlOOlOOOlOOOOOOlOOOOOOlOOOOOOlOOOOOOlOOOOOOlOOOOOOlOOOOOOlOOOOOOlOOOOOOlOOOOOOlOOOOOOlOOOOOOlOOOOOOlOOOOOOlOOOOOOlOOOOOOlOOOOOOlOOOOOOlOOOOOOlOOOOOOlOOOOOOlOOOOOOlOOOOOOlOOOOOOlOOOOOOlOOOOOOlOOOOOOlOOOOOOlOOOOOOlOOOOOOlOOOOOOlOOOOOOlOOOOOOlOOOOOOlOOOOOOlOOOOOOlOOOOOOlOOOOOOlOOOOOOlOOOOOOlOOOOOOlOOOOOOlOOOOOOlOOOOOOlOOOOOOlOOOOOOlOOOOOOlOOOOOOlOOOOOOl","MO1","Darmstadt Hbf # Roßdorf # Ober-Ramstadt # Hahn #"]
["REG",18,"HEAG Verkehrs-GmbH",null,"056_",0,"H","Sa",1503," ","Ober-Ramstadt","Gelenk-Überlandbus-NF",0,0,0,0,0,"2000-01-01T15:32:30","2000-01-01T16:05:00",1.2187500000436557,29.250000001047738,null,54,15336,828.14400000000001,0,0,"OOOOOOlOOlOOOlOOlOOOlOOOOOOlOOOOOOlOOOOOOlOOOOOOlOOOOOOlOOOOOOlOOOOOOlOOOOOOlOOOOOOlOOOOOOlOOOOOOlOOOOOOlOOOOOOlOOOOOOlOOOOOOlOOOOOOlOOOOOOlOOOOOOlOOOOOOlOOOOOOlOOOOOOlOOOOOOlOOOOOOlOOOOOOlOOOOOOlOOOOOOlOOOOOOlOOOOOOlOOOOOOlOOOOOOlOOOOOOlOOOOOOlOOOOOOlOOOOOOlOOOOOOlOOOOOOlOOOOOOlOOOOOOlOOOOOOlOOOOOOlOOOOOOlOOOOOOlOOOOOOlOOOOOOlOOOOOOlOOOOOOlOOOOOOlOOOOOOlOOOOOOl","MO1","Darmstadt Hbf # Roßdorf # Ober-Ramstadt # Hahn #"]
["REG",18,"HEAG Verkehrs-GmbH",null,"056_",0,"H","Sa",1603," ","Darmstadt","Gelenk-Überlandbus-NF",0,0,0,0,0,"2000-01-01T16:03:00","2000-01-01T16:24:12",0.79499999999825377,19.07999999995809,null,54,8657,467.47800000000001,0,0,"OOOOOOlOOlOOOlOOlOOOlOOOOOOlOOOOOOlOOOOOOlOOOOOOlOOOOOOlOOOOOOlOOOOOOlOOOOOOlOOOOOOlOOOOOOlOOOOOOlOOOOOOlOOOOOOlOOOOOOlOOOOOOlOOOOOOlOOOOOOlOOOOOOlOOOOOOlOOOOOOlOOOOOOlOOOOOOlOOOOOOlOOOOOOlOOOOOOlOOOOOOlOOOOOOlOOOOOOlOOOOOOlOOOOOOlOOOOOOlOOOOOOlOOOOOOlOOOOOOlOOOOOOlOOOOOOlOOOOOOlOOOOOOlOOOOOOlOOOOOOlOOOOOOlOOOOOOlOOOOOOlOOOOOOlOOOOOOlOOOOOOlOOOOOOlOOOOOOlOOOOOOl","MO1","Darmstadt Hbf # Roßdorf # Ober-Ramstadt # Hahn #"]
["REG",18,"HEAG Verkehrs-GmbH",null,"056_",0,"H","Sa",1603," ","Roßdorf","Gelenk-Überlandbus-NF",0,0,0,0,0,"2000-01-01T16:24:12","2000-01-01T16:32:30",0.31125000007159542,7.4700000017182902,null,54,3792,204.768,0,0,"OOOOOOlOOlOOOlOOlOOOlOOOOOOlOOOOOOlOOOOOOlOOOOOOlOOOOOOlOOOOOOlOOOOOOlOOOOOOlOOOOOOlOOOOOOlOOOOOOlOOOOOOlOOOOOOlOOOOOOlOOOOOOlOOOOOOlOOOOOOlOOOOOOlOOOOOOlOOOOOOlOOOOOOlOOOOOOlOOOOOOlOOOOOOlOOOOOOlOOOOOOlOOOOOOlOOOOOOlOOOOOOlOOOOOOlOOOOOOlOOOOOOlOOOOOOlOOOOOOlOOOOOOlOOOOOOlOOOOOOlOOOOOOlOOOOOOlOOOOOOlOOOOOOlOOOOOOlOOOOOOlOOOOOOlOOOOOOlOOOOOOlOOOOOOlOOOOOOlOOOOOOl","MO1","Darmstadt Hbf # Roßdorf # Ober-Ramstadt # Hahn #"]
["REG",18,"HEAG Verkehrs-GmbH",null,"056_",0,"H","Sa",1603," ","Ober-Ramstadt","Gelenk-Überlandbus-NF",0,0,0,0,0,"2000-01-01T16:32:30","2000-01-01T17:05:00",1.2187500000436557,29.250000001047738,null,54,15336,828.14400000000001,0,0,"OOOOOOlOOlOOOlOOlOOOlOOOOOOlOOOOOOlOOOOOOlOOOOOOlOOOOOOlOOOOOOlOOOOOOlOOOOOOlOOOOOOlOOOOOOlOOOOOOlOOOOOOlOOOOOOlOOOOOOlOOOOOOlOOOOOOlOOOOOOlOOOOOOlOOOOOOlOOOOOOlOOOOOOlOOOOOOlOOOOOOlOOOOOOlOOOOOOlOOOOOOlOOOOOOlOOOOOOlOOOOOOlOOOOOOlOOOOOOlOOOOOOlOOOOOOlOOOOOOlOOOOOOlOOOOOOlOOOOOOlOOOOOOlOOOOOOlOOOOOOlOOOOOOlOOOOOOlOOOOOOlOOOOOOlOOOOOOlOOOOOOlOOOOOOlOOOOOOlOOOOOOl","MO1","Darmstadt Hbf # Roßdorf # Ober-Ramstadt # Hahn #"]
["REG",18,"HEAG Verkehrs-GmbH",null,"056_",0,"H","Sa",1703," ","Darmstadt","Gelenk-Überlandbus-NF",0,0,0,0,0,"2000-01-01T17:03:00","2000-01-01T17:24:12",0.79499999999825377,19.07999999995809,null,54,8657,467.47800000000001,0,0,"OOOOOOlOOlOOOlOOlOOOlOOOOOOlOOOOOOlOOOOOOlOOOOOOlOOOOOOlOOOOOOlOOOOOOlOOOOOOlOOOOOOlOOOOOOlOOOOOOlOOOOOOlOOOOOOlOOOOOOlOOOOOOlOOOOOOlOOOOOOlOOOOOOlOOOOOOlOOOOOOlOOOOOOlOOOOOOlOOOOOOlOOOOOOlOOOOOOlOOOOOOlOOOOOOlOOOOOOlOOOOOOlOOOOOOlOOOOOOlOOOOOOlOOOOOOlOOOOOOlOOOOOOlOOOOOOlOOOOOOlOOOOOOlOOOOOOlOOOOOOlOOOOOOlOOOOOOlOOOOOOlOOOOOOlOOOOOOlOOOOOOlOOOOOOlOOOOOOlOOOOOOl","MO1","Darmstadt Hbf # Roßdorf # Ober-Ramstadt # Hahn #"]
["REG",18,"HEAG Verkehrs-GmbH",null,"056_",0,"H","Sa",1703," ","Roßdorf","Gelenk-Überlandbus-NF",0,0,0,0,0,"2000-01-01T17:24:12","2000-01-01T17:32:30",0.31125000007159542,7.4700000017182902,null,54,3792,204.768,0,0,"OOOOOOlOOlOOOlOOlOOOlOOOOOOlOOOOOOlOOOOOOlOOOOOOlOOOOOOlOOOOOOlOOOOOOlOOOOOOlOOOOOOlOOOOOOlOOOOOOlOOOOOOlOOOOOOlOOOOOOlOOOOOOlOOOOOOlOOOOOOlOOOOOOlOOOOOOlOOOOOOlOOOOOOlOOOOOOlOOOOOOlOOOOOOlOOOOOOlOOOOOOlOOOOOOlOOOOOOlOOOOOOlOOOOOOlOOOOOOlOOOOOOlOOOOOOlOOOOOOlOOOOOOlOOOOOOlOOOOOOlOOOOOOlOOOOOOlOOOOOOlOOOOOOlOOOOOOlOOOOOOlOOOOOOlOOOOOOlOOOOOOlOOOOOOlOOOOOOlOOOOOOl","MO1","Darmstadt Hbf # Roßdorf # Ober-Ramstadt # Hahn #"]
["REG",18,"HEAG Verkehrs-GmbH",null,"056_",0,"H","Sa",1703," ","Ober-Ramstadt","Gelenk-Überlandbus-NF",0,0,0,0,0,"2000-01-01T17:32:30","2000-01-01T18:05:00",1.218749999650754,29.249999991618097,null,54,15336,828.14400000000001,0,0,"OOOOOOlOOlOOOlOOlOOOlOOOOOOlOOOOOOlOOOOOOlOOOOOOlOOOOOOlOOOOOOlOOOOOOlOOOOOOlOOOOOOlOOOOOOlOOOOOOlOOOOOOlOOOOOOlOOOOOOlOOOOOOlOOOOOOlOOOOOOlOOOOOOlOOOOOOlOOOOOOlOOOOOOlOOOOOOlOOOOOOlOOOOOOlOOOOOOlOOOOOOlOOOOOOlOOOOOOlOOOOOOlOOOOOOlOOOOOOlOOOOOOlOOOOOOlOOOOOOlOOOOOOlOOOOOOlOOOOOOlOOOOOOlOOOOOOlOOOOOOlOOOOOOlOOOOOOlOOOOOOlOOOOOOlOOOOOOlOOOOOOlOOOOOOlOOOOOOlOOOOOOl","MO1","Darmstadt Hbf # Roßdorf # Ober-Ramstadt # Hahn #"]
["REG",18,"HEAG Verkehrs-GmbH",null,"056_",0,"H","Sa",1803," ","Darmstadt","Gelenk-Überlandbus-NF",0,0,0,0,0,"2000-01-01T18:03:00","2000-01-01T18:24:12",0.79499999999825377,19.07999999995809,null,54,8657,467.47800000000001,0,0,"OOOOOOlOOlOOOlOOlOOOlOOOOOOlOOOOOOlOOOOOOlOOOOOOlOOOOOOlOOOOOOlOOOOOOlOOOOOOlOOOOOOlOOOOOOlOOOOOOlOOOOOOlOOOOOOlOOOOOOlOOOOOOlOOOOOOlOOOOOOlOOOOOOlOOOOOOlOOOOOOlOOOOOOlOOOOOOlOOOOOOlOOOOOOlOOOOOOlOOOOOOlOOOOOOlOOOOOOlOOOOOOlOOOOOOlOOOOOOlOOOOOOlOOOOOOlOOOOOOlOOOOOOlOOOOOOlOOOOOOlOOOOOOlOOOOOOlOOOOOOlOOOOOOlOOOOOOlOOOOOOlOOOOOOlOOOOOOlOOOOOOlOOOOOOlOOOOOOlOOOOOOl","MO1","Darmstadt Hbf # Roßdorf # Ober-Ramstadt # Hahn #"]
["REG",18,"HEAG Verkehrs-GmbH",null,"056_",0,"H","Sa",1803," ","Roßdorf","Gelenk-Überlandbus-NF",0,0,0,0,0,"2000-01-01T18:24:12","2000-01-01T18:32:30",0.31125000007159542,7.4700000017182902,null,54,3792,204.768,0,0,"OOOOOOlOOlOOOlOOlOOOlOOOOOOlOOOOOOlOOOOOOlOOOOOOlOOOOOOlOOOOOOlOOOOOOlOOOOOOlOOOOOOlOOOOOOlOOOOOOlOOOOOOlOOOOOOlOOOOOOlOOOOOOlOOOOOOlOOOOOOlOOOOOOlOOOOOOlOOOOOOlOOOOOOlOOOOOOlOOOOOOlOOOOOOlOOOOOOlOOOOOOlOOOOOOlOOOOOOlOOOOOOlOOOOOOlOOOOOOlOOOOOOlOOOOOOlOOOOOOlOOOOOOlOOOOOOlOOOOOOlOOOOOOlOOOOOOlOOOOOOlOOOOOOlOOOOOOlOOOOOOlOOOOOOlOOOOOOlOOOOOOlOOOOOOlOOOOOOlOOOOOOl","MO1","Darmstadt Hbf # Roßdorf # Ober-Ramstadt # Hahn #"]
["REG",18,"HEAG Verkehrs-GmbH",null,"056_",0,"H","Sa",1803," ","Ober-Ramstadt","Gelenk-Überlandbus-NF",0,0,0,0,0,"2000-01-01T18:32:30","2000-01-01T19:05:00",1.2187500000436557,29.250000001047738,null,54,15336,828.14400000000001,0,0,"OOOOOOlOOlOOOlOOlOOOlOOOOOOlOOOOOOlOOOOOOlOOOOOOlOOOOOOlOOOOOOlOOOOOOlOOOOOOlOOOOOOlOOOOOOlOOOOOOlOOOOOOlOOOOOOlOOOOOOlOOOOOOlOOOOOOlOOOOOOlOOOOOOlOOOOOOlOOOOOOlOOOOOOlOOOOOOlOOOOOOlOOOOOOlOOOOOOlOOOOOOlOOOOOOlOOOOOOlOOOOOOlOOOOOOlOOOOOOlOOOOOOlOOOOOOlOOOOOOlOOOOOOlOOOOOOlOOOOOOlOOOOOOlOOOOOOlOOOOOOlOOOOOOlOOOOOOlOOOOOOlOOOOOOlOOOOOOlOOOOOOlOOOOOOlOOOOOOlOOOOOOl","MO1","Darmstadt Hbf # Roßdorf # Ober-Ramstadt # Hahn #"]
["REG",18,"HEAG Verkehrs-GmbH",null,"056_",0,"H","Sa",1903," ","Darmstadt","Gelenk-Überlandbus-NF",0,0,0,0,0,"2000-01-01T19:03:00","2000-01-01T19:24:12",0.79499999999825377,19.07999999995809,null,54,8657,467.47800000000001,0,0,"OOOOOOlOOlOOOlOOlOOOlOOOOOOlOOOOOOlOOOOOOlOOOOOOlOOOOOOlOOOOOOlOOOOOOlOOOOOOlOOOOOOlOOOOOOlOOOOOOlOOOOOOlOOOOOOlOOOOOOlOOOOOOlOOOOOOlOOOOOOlOOOOOOlOOOOOOlOOOOOOlOOOOOOlOOOOOOlOOOOOOlOOOOOOlOOOOOOlOOOOOOlOOOOOOlOOOOOOlOOOOOOlOOOOOOlOOOOOOlOOOOOOlOOOOOOlOOOOOOlOOOOOOlOOOOOOlOOOOOOlOOOOOOlOOOOOOlOOOOOOlOOOOOOlOOOOOOlOOOOOOlOOOOOOlOOOOOOlOOOOOOlOOOOOOlOOOOOOlOOOOOOl","MO1","Darmstadt Hbf # Roßdorf # Ober-Ramstadt # Hahn #"]
["REG",18,"HEAG Verkehrs-GmbH",null,"056_",0,"H","Sa",1903," ","Roßdorf","Gelenk-Überlandbus-NF",0,0,0,0,0,"2000-01-01T19:24:12","2000-01-01T19:32:30",0.31125000007159542,7.4700000017182902,null,54,3792,204.768,0,0,"OOOOOOlOOlOOOlOOlOOOlOOOOOOlOOOOOOlOOOOOOlOOOOOOlOOOOOOlOOOOOOlOOOOOOlOOOOOOlOOOOOOlOOOOOOlOOOOOOlOOOOOOlOOOOOOlOOOOOOlOOOOOOlOOOOOOlOOOOOOlOOOOOOlOOOOOOlOOOOOOlOOOOOOlOOOOOOlOOOOOOlOOOOOOlOOOOOOlOOOOOOlOOOOOOlOOOOOOlOOOOOOlOOOOOOlOOOOOOlOOOOOOlOOOOOOlOOOOOOlOOOOOOlOOOOOOlOOOOOOlOOOOOOlOOOOOOlOOOOOOlOOOOOOlOOOOOOlOOOOOOlOOOOOOlOOOOOOlOOOOOOlOOOOOOlOOOOOOlOOOOOOl","MO1","Darmstadt Hbf # Roßdorf # Ober-Ramstadt # Hahn #"]
["REG",18,"HEAG Verkehrs-GmbH",null,"056_",0,"H","Sa",1903," ","Ober-Ramstadt","Gelenk-Überlandbus-NF",0,0,0,0,0,"2000-01-01T19:32:30","2000-01-01T20:05:00",1.2187500000436557,29.250000001047738,null,54,15336,828.14400000000001,0,0,"OOOOOOlOOlOOOlOOlOOOlOOOOOOlOOOOOOlOOOOOOlOOOOOOlOOOOOOlOOOOOOlOOOOOOlOOOOOOlOOOOOOlOOOOOOlOOOOOOlOOOOOOlOOOOOOlOOOOOOlOOOOOOlOOOOOOlOOOOOOlOOOOOOlOOOOOOlOOOOOOlOOOOOOlOOOOOOlOOOOOOlOOOOOOlOOOOOOlOOOOOOlOOOOOOlOOOOOOlOOOOOOlOOOOOOlOOOOOOlOOOOOOlOOOOOOlOOOOOOlOOOOOOlOOOOOOlOOOOOOlOOOOOOlOOOOOOlOOOOOOlOOOOOOlOOOOOOlOOOOOOlOOOOOOlOOOOOOlOOOOOOlOOOOOOlOOOOOOlOOOOOOl","MO1","Darmstadt Hbf # Roßdorf # Ober-Ramstadt # Hahn #"]
["REG",18,"HEAG Verkehrs-GmbH",null,"056_",0,"H","Sa",2003," ","Darmstadt","Gelenk-Überlandbus-NF",0,0,0,0,0,"2000-01-01T20:03:00","2000-01-01T20:24:12",0.79499999999825377,19.07999999995809,null,54,8657,467.47800000000001,0,0,"OOOOOOlOOlOOOlOOlOOOlOOOOOOlOOOOOOlOOOOOOlOOOOOOlOOOOOOlOOOOOOlOOOOOOlOOOOOOlOOOOOOlOOOOOOlOOOOOOlOOOOOOlOOOOOOlOOOOOOlOOOOOOlOOOOOOlOOOOOOlOOOOOOlOOOOOOlOOOOOOlOOOOOOlOOOOOOlOOOOOOlOOOOOOlOOOOOOlOOOOOOlOOOOOOlOOOOOOlOOOOOOlOOOOOOlOOOOOOlOOOOOOlOOOOOOlOOOOOOlOOOOOOlOOOOOOlOOOOOOlOOOOOOlOOOOOOlOOOOOOlOOOOOOlOOOOOOlOOOOOOlOOOOOOlOOOOOOlOOOOOOlOOOOOOlOOOOOOlOOOOOOl","MO1","Darmstadt Hbf # Roßdorf # Ober-Ramstadt # Hahn #"]
["REG",18,"HEAG Verkehrs-GmbH",null,"056_",0,"H","Sa",2003," ","Roßdorf","Gelenk-Überlandbus-NF",0,0,0,0,0,"2000-01-01T20:24:12","2000-01-01T20:32:30",0.31125000007159542,7.4700000017182902,null,54,3792,204.768,0,0,"OOOOOOlOOlOOOlOOlOOOlOOOOOOlOOOOOOlOOOOOOlOOOOOOlOOOOOOlOOOOOOlOOOOOOlOOOOOOlOOOOOOlOOOOOOlOOOOOOlOOOOOOlOOOOOOlOOOOOOlOOOOOOlOOOOOOlOOOOOOlOOOOOOlOOOOOOlOOOOOOlOOOOOOlOOOOOOlOOOOOOlOOOOOOlOOOOOOlOOOOOOlOOOOOOlOOOOOOlOOOOOOlOOOOOOlOOOOOOlOOOOOOlOOOOOOlOOOOOOlOOOOOOlOOOOOOlOOOOOOlOOOOOOlOOOOOOlOOOOOOlOOOOOOlOOOOOOlOOOOOOlOOOOOOlOOOOOOlOOOOOOlOOOOOOlOOOOOOlOOOOOOl","MO1","Darmstadt Hbf # Roßdorf # Ober-Ramstadt # Hahn #"]
["REG",18,"HEAG Verkehrs-GmbH",null,"056_",0,"H","Sa",2003," ","Ober-Ramstadt","Gelenk-Überlandbus-NF",0,0,0,0,0,"2000-01-01T20:32:30","2000-01-01T21:05:00",1.218749999650754,29.249999991618097,null,54,15336,828.14400000000001,0,0,"OOOOOOlOOlOOOlOOlOOOlOOOOOOlOOOOOOlOOOOOOlOOOOOOlOOOOOOlOOOOOOlOOOOOOlOOOOOOlOOOOOOlOOOOOOlOOOOOOlOOOOOOlOOOOOOlOOOOOOlOOOOOOlOOOOOOlOOOOOOlOOOOOOlOOOOOOlOOOOOOlOOOOOOlOOOOOOlOOOOOOlOOOOOOlOOOOOOlOOOOOOlOOOOOOlOOOOOOlOOOOOOlOOOOOOlOOOOOOlOOOOOOlOOOOOOlOOOOOOlOOOOOOlOOOOOOlOOOOOOlOOOOOOlOOOOOOlOOOOOOlOOOOOOlOOOOOOlOOOOOOlOOOOOOlOOOOOOlOOOOOOlOOOOOOlOOOOOOlOOOOOOl","MO1","Darmstadt Hbf # Roßdorf # Ober-Ramstadt # Hahn #"]
["REG",18,"HEAG Verkehrs-GmbH",null,"056_",0,"H","Sa",2113," ","Ober-Ramstadt","Gelenk-Überlandbus-NF",0,0,0,0,0,"2000-01-01T21:13:00","2000-01-01T21:35:00",0.82499999993888196,19.799999998533167,null,54,11105,599.66999999999996,0,0,"OOOOOOlOOlOOOlOOlOOOlOOOOOOlOOOOOOlOOOOOOlOOOOOOlOOOOOOlOOOOOOlOOOOOOlOOOOOOlOOOOOOlOOOOOOlOOOOOOlOOOOOOlOOOOOOlOOOOOOlOOOOOOlOOOOOOlOOOOOOlOOOOOOlOOOOOOlOOOOOOlOOOOOOlOOOOOOlOOOOOOlOOOOOOlOOOOOOlOOOOOOlOOOOOOlOOOOOOlOOOOOOlOOOOOOlOOOOOOlOOOOOOlOOOOOOlOOOOOOlOOOOOOlOOOOOOlOOOOOOlOOOOOOlOOOOOOlOOOOOOlOOOOOOlOOOOOOlOOOOOOlOOOOOOlOOOOOOlOOOOOOlOOOOOOlOOOOOOlOOOOOOl","MO1","Darmstadt Hbf # Roßdorf # Ober-Ramstadt # Hahn #"]
["REG",18,"HEAG Verkehrs-GmbH",null,"056_",0,"H","Sa",2238," ","Ober-Ramstadt","Gelenk-Überlandbus-NF",0,0,0,0,0,"2000-01-01T22:38:00","2000-01-01T23:00:00",0.82499999993888196,19.799999998533167,null,54,11105,599.66999999999996,0,0,"OOOOOOlOOlOOOlOOlOOOlOOOOOOlOOOOOOlOOOOOOlOOOOOOlOOOOOOlOOOOOOlOOOOOOlOOOOOOlOOOOOOlOOOOOOlOOOOOOlOOOOOOlOOOOOOlOOOOOOlOOOOOOlOOOOOOlOOOOOOlOOOOOOlOOOOOOlOOOOOOlOOOOOOlOOOOOOlOOOOOOlOOOOOOlOOOOOOlOOOOOOlOOOOOOlOOOOOOlOOOOOOlOOOOOOlOOOOOOlOOOOOOlOOOOOOlOOOOOOlOOOOOOlOOOOOOlOOOOOOlOOOOOOlOOOOOOlOOOOOOlOOOOOOlOOOOOOlOOOOOOlOOOOOOlOOOOOOlOOOOOOlOOOOOOlOOOOOOlOOOOOOl","MO1","Darmstadt Hbf # Roßdorf # Ober-Ramstadt # Hahn #"]
["REG",18,"HEAG Verkehrs-GmbH",null,"056_",0,"H","Sa",2338," ","Ober-Ramstadt","Gelenk-Überlandbus-NF",0,0,0,0,0,"2000-01-01T23:38:00","2000-01-02",0.82499999993888196,19.799999998533167,null,54,11105,599.66999999999996,0,0,"OOOOOOlOOlOOOlOOlOOOlOOOOOOlOOOOOOlOOOOOOlOOOOOOlOOOOOOlOOOOOOlOOOOOOlOOOOOOlOOOOOOlOOOOOOlOOOOOOlOOOOOOlOOOOOOlOOOOOOlOOOOOOlOOOOOOlOOOOOOlOOOOOOlOOOOOOlOOOOOOlOOOOOOlOOOOOOlOOOOOOlOOOOOOlOOOOOOlOOOOOOlOOOOOOlOOOOOOlOOOOOOlOOOOOOlOOOOOOlOOOOOOlOOOOOOlOOOOOOlOOOOOOlOOOOOOlOOOOOOlOOOOOOlOOOOOOlOOOOOOlOOOOOOlOOOOOOlOOOOOOlOOOOOOlOOOOOOlOOOOOOlOOOOOOlOOOOOOlOOOOOOl","MO1","Darmstadt Hbf # Roßdorf # Ober-Ramstadt # Hahn #"]
["REG",18,"HEAG Verkehrs-GmbH",null,"056_",0,"H","Sa",2438," ","Ober-Ramstadt","Gelenk-Überlandbus-NF",0,0,0,0,0,"2000-01-02T00:38:00","2000-01-02T01:00:00",0.82499999993888196,19.799999998533167,null,54,11105,599.66999999999996,0,0,"OOOOOOlOOlOOOlOOlOOOlOOOOOOlOOOOOOlOOOOOOlOOOOOOlOOOOOOlOOOOOOlOOOOOOlOOOOOOlOOOOOOlOOOOOOlOOOOOOlOOOOOOlOOOOOOlOOOOOOlOOOOOOlOOOOOOlOOOOOOlOOOOOOlOOOOOOlOOOOOOlOOOOOOlOOOOOOlOOOOOOlOOOOOOlOOOOOOlOOOOOOlOOOOOOlOOOOOOlOOOOOOlOOOOOOlOOOOOOlOOOOOOlOOOOOOlOOOOOOlOOOOOOlOOOOOOlOOOOOOlOOOOOOlOOOOOOlOOOOOOlOOOOOOlOOOOOOlOOOOOOlOOOOOOlOOOOOOlOOOOOOlOOOOOOlOOOOOOlOOOOOOl","MO1","Darmstadt Hbf # Roßdorf # Ober-Ramstadt # Hahn #"]
["REG",18,"HEAG Verkehrs-GmbH",null,"056_",0,"H","Sa",2538," ","Ober-Ramstadt","Gelenk-Überlandbus-NF",0,0,0,0,0,"2000-01-02T01:38:00","2000-01-02T02:00:00",0.82499999993888196,19.799999998533167,null,54,11105,599.66999999999996,0,0,"OOOOOOlOOlOOOlOOlOOOlOOOOOOlOOOOOOlOOOOOOlOOOOOOlOOOOOOlOOOOOOlOOOOOOlOOOOOOlOOOOOOlOOOOOOlOOOOOOlOOOOOOlOOOOOOlOOOOOOlOOOOOOlOOOOOOlOOOOOOlOOOOOOlOOOOOOlOOOOOOlOOOOOOlOOOOOOlOOOOOOlOOOOOOlOOOOOOlOOOOOOlOOOOOOlOOOOOOlOOOOOOlOOOOOOlOOOOOOlOOOOOOlOOOOOOlOOOOOOlOOOOOOlOOOOOOlOOOOOOlOOOOOOlOOOOOOlOOOOOOlOOOOOOlOOOOOOlOOOOOOlOOOOOOlOOOOOOlOOOOOOlOOOOOOlOOOOOOlOOOOOOl","MO1","Darmstadt Hbf # Roßdorf # Ober-Ramstadt # Hahn #"]
["REG",18,"HEAG Verkehrs-GmbH",null,"056_",0,"H","So",703," ","Darmstadt","Solo-Überlandbus-NF",0,0,0,0,0,"2000-01-01T07:03:00","2000-01-01T07:24:12",0.91277777777577285,21.906666666618548,null,62,8657,536.73400000000004,0,0,"lOOOOOOlOOllOOlOOlOOOlOOOOOOlOOOOOOlOOOOOOlOOOOOOlOOOOOOlOOOOOOlOOOOOOlOOOOOOlOOOOOOlOOOOOOlOOOOOOlOOOOOOlOOOOOOlOOOOOOlOOOOlOllOOOOOlOOOlOOlOOOOOOlOOOOOOlOOOOOOlOOOlOOlOOOOOOllOOOOOlOOOlOOlOOOOOOlOOOOOOlOOOOOOlOOOOOOlOOOOOOlOOOOOOlOOOOOOlOOOOOOlOOOOOOlOOOOOOlOOOOOOlOOOOOOlOOOOOOlOOOOOOlOOOOlOlOOOOOOlOOOOOOlOOOOOOlOOOOOOlOOOOOOlOOOOOOlOOOOOOlOOOOOOlOOOOOOlOOOOOO","MO1","Darmstadt Hbf # Roßdorf # Ober-Ramstadt # Hahn #"]
["REG",18,"HEAG Verkehrs-GmbH",null,"056_",0,"H","So",703," ","Roßdorf","Solo-Überlandbus-NF",0,0,0,0,0,"2000-01-01T07:24:12","2000-01-01T07:32:30",0.35736111119331326,8.5766666686395183,null,62,3792,235.10400000000001,0,0,"lOOOOOOlOOllOOlOOlOOOlOOOOOOlOOOOOOlOOOOOOlOOOOOOlOOOOOOlOOOOOOlOOOOOOlOOOOOOlOOOOOOlOOOOOOlOOOOOOlOOOOOOlOOOOOOlOOOOOOlOOOOlOllOOOOOlOOOlOOlOOOOOOlOOOOOOlOOOOOOlOOOlOOlOOOOOOllOOOOOlOOOlOOlOOOOOOlOOOOOOlOOOOOOlOOOOOOlOOOOOOlOOOOOOlOOOOOOlOOOOOOlOOOOOOlOOOOOOlOOOOOOlOOOOOOlOOOOOOlOOOOOOlOOOOlOlOOOOOOlOOOOOOlOOOOOOlOOOOOOlOOOOOOlOOOOOOlOOOOOOlOOOOOOlOOOOOOlOOOOOO","MO1","Darmstadt Hbf # Roßdorf # Ober-Ramstadt # Hahn #"]
["REG",18,"HEAG Verkehrs-GmbH",null,"056_",0,"H","So",703," ","Ober-Ramstadt","Solo-Überlandbus-NF",0,0,0,0,0,"2000-01-01T07:32:30","2000-01-01T08:05:00",1.3993055556056788,33.583333334536292,null,62,15336,950.83199999999999,0,0,"lOOOOOOlOOllOOlOOlOOOlOOOOOOlOOOOOOlOOOOOOlOOOOOOlOOOOOOlOOOOOOlOOOOOOlOOOOOOlOOOOOOlOOOOOOlOOOOOOlOOOOOOlOOOOOOlOOOOOOlOOOOlOllOOOOOlOOOlOOlOOOOOOlOOOOOOlOOOOOOlOOOlOOlOOOOOOllOOOOOlOOOlOOlOOOOOOlOOOOOOlOOOOOOlOOOOOOlOOOOOOlOOOOOOlOOOOOOlOOOOOOlOOOOOOlOOOOOOlOOOOOOlOOOOOOlOOOOOOlOOOOOOlOOOOlOlOOOOOOlOOOOOOlOOOOOOlOOOOOOlOOOOOOlOOOOOOlOOOOOOlOOOOOOlOOOOOOlOOOOOO","MO1","Darmstadt Hbf # Roßdorf # Ober-Ramstadt # Hahn #"]
["REG",18,"HEAG Verkehrs-GmbH",null,"056_",0,"H","So",903," ","Darmstadt","Solo-Überlandbus-NF",0,0,0,0,0,"2000-01-01T09:03:00","2000-01-01T09:24:12",0.91277777777577285,21.906666666618548,null,62,8657,536.73400000000004,0,0,"lOOOOOOlOOllOOlOOlOOOlOOOOOOlOOOOOOlOOOOOOlOOOOOOlOOOOOOlOOOOOOlOOOOOOlOOOOOOlOOOOOOlOOOOOOlOOOOOOlOOOOOOlOOOOOOlOOOOOOlOOOOlOllOOOOOlOOOlOOlOOOOOOlOOOOOOlOOOOOOlOOOlOOlOOOOOOllOOOOOlOOOlOOlOOOOOOlOOOOOOlOOOOOOlOOOOOOlOOOOOOlOOOOOOlOOOOOOlOOOOOOlOOOOOOlOOOOOOlOOOOOOlOOOOOOlOOOOOOlOOOOOOlOOOOlOlOOOOOOlOOOOOOlOOOOOOlOOOOOOlOOOOOOlOOOOOOlOOOOOOlOOOOOOlOOOOOOlOOOOOO","MO1","Darmstadt Hbf # Roßdorf # Ober-Ramstadt # Hahn #"]
["REG",18,"HEAG Verkehrs-GmbH",null,"056_",0,"H","So",903," ","Roßdorf","Solo-Überlandbus-NF",0,0,0,0,0,"2000-01-01T09:24:12","2000-01-01T09:32:30",0.35736111119331326,8.5766666686395183,null,62,3792,235.10400000000001,0,0,"lOOOOOOlOOllOOlOOlOOOlOOOOOOlOOOOOOlOOOOOOlOOOOOOlOOOOOOlOOOOOOlOOOOOOlOOOOOOlOOOOOOlOOOOOOlOOOOOOlOOOOOOlOOOOOOlOOOOOOlOOOOlOllOOOOOlOOOlOOlOOOOOOlOOOOOOlOOOOOOlOOOlOOlOOOOOOllOOOOOlOOOlOOlOOOOOOlOOOOOOlOOOOOOlOOOOOOlOOOOOOlOOOOOOlOOOOOOlOOOOOOlOOOOOOlOOOOOOlOOOOOOlOOOOOOlOOOOOOlOOOOOOlOOOOlOlOOOOOOlOOOOOOlOOOOOOlOOOOOOlOOOOOOlOOOOOOlOOOOOOlOOOOOOlOOOOOOlOOOOOO","MO1","Darmstadt Hbf # Roßdorf # Ober-Ramstadt # Hahn #"]
["REG",18,"HEAG Verkehrs-GmbH",null,"056_",0,"H","So",903," ","Ober-Ramstadt","Solo-Überlandbus-NF",0,0,0,0,0,"2000-01-01T09:32:30","2000-01-01T10:05:00",1.3993055556056788,33.583333334536292,null,62,15336,950.83199999999999,0,0,"lOOOOOOlOOllOOlOOlOOOlOOOOOOlOOOOOOlOOOOOOlOOOOOOlOOOOOOlOOOOOOlOOOOOOlOOOOOOlOOOOOOlOOOOOOlOOOOOOlOOOOOOlOOOOOOlOOOOOOlOOOOlOllOOOOOlOOOlOOlOOOOOOlOOOOOOlOOOOOOlOOOlOOlOOOOOOllOOOOOlOOOlOOlOOOOOOlOOOOOOlOOOOOOlOOOOOOlOOOOOOlOOOOOOlOOOOOOlOOOOOOlOOOOOOlOOOOOOlOOOOOOlOOOOOOlOOOOOOlOOOOOOlOOOOlOlOOOOOOlOOOOOOlOOOOOOlOOOOOOlOOOOOOlOOOOOOlOOOOOOlOOOOOOlOOOOOOlOOOOOO","MO1","Darmstadt Hbf # Roßdorf # Ober-Ramstadt # Hahn #"]
["REG",18,"HEAG Verkehrs-GmbH",null,"056_",0,"H","So",1103," ","Darmstadt","Solo-Überlandbus-NF",0,0,0,0,0,"2000-01-01T11:03:00","2000-01-01T11:24:12",0.91277777777577285,21.906666666618548,null,62,8657,536.73400000000004,0,0,"lOOOOOOlOOllOOlOOlOOOlOOOOOOlOOOOOOlOOOOOOlOOOOOOlOOOOOOlOOOOOOlOOOOOOlOOOOOOlOOOOOOlOOOOOOlOOOOOOlOOOOOOlOOOOOOlOOOOOOlOOOOlOllOOOOOlOOOlOOlOOOOOOlOOOOOOlOOOOOOlOOOlOOlOOOOOOllOOOOOlOOOlOOlOOOOOOlOOOOOOlOOOOOOlOOOOOOlOOOOOOlOOOOOOlOOOOOOlOOOOOOlOOOOOOlOOOOOOlOOOOOOlOOOOOOlOOOOOOlOOOOOOlOOOOlOlOOOOOOlOOOOOOlOOOOOOlOOOOOOlOOOOOOlOOOOOOlOOOOOOlOOOOOOlOOOOOOlOOOOOO","MO1","Darmstadt Hbf # Roßdorf # Ober-Ramstadt # Hahn #"]
["REG",18,"HEAG Verkehrs-GmbH",null,"056_",0,"H","So",1103," ","Roßdorf","Solo-Überlandbus-NF",0,0,0,0,0,"2000-01-01T11:24:12","2000-01-01T11:32:30",0.35736111119331326,8.5766666686395183,null,62,3792,235.10400000000001,0,0,"lOOOOOOlOOllOOlOOlOOOlOOOOOOlOOOOOOlOOOOOOlOOOOOOlOOOOOOlOOOOOOlOOOOOOlOOOOOOlOOOOOOlOOOOOOlOOOOOOlOOOOOOlOOOOOOlOOOOOOlOOOOlOllOOOOOlOOOlOOlOOOOOOlOOOOOOlOOOOOOlOOOlOOlOOOOOOllOOOOOlOOOlOOlOOOOOOlOOOOOOlOOOOOOlOOOOOOlOOOOOOlOOOOOOlOOOOOOlOOOOOOlOOOOOOlOOOOOOlOOOOOOlOOOOOOlOOOOOOlOOOOOOlOOOOlOlOOOOOOlOOOOOOlOOOOOOlOOOOOOlOOOOOOlOOOOOOlOOOOOOlOOOOOOlOOOOOOlOOOOOO","MO1","Darmstadt Hbf # Roßdorf # Ober-Ramstadt # Hahn #"]
["REG",18,"HEAG Verkehrs-GmbH",null,"056_",0,"H","So",1103," ","Ober-Ramstadt","Solo-Überlandbus-NF",0,0,0,0,0,"2000-01-01T11:32:30","2000-01-01T12:05:00",1.3993055551545694,33.583333323709667,null,62,15336,950.83199999999999,0,0,"lOOOOOOlOOllOOlOOlOOOlOOOOOOlOOOOOOlOOOOOOlOOOOOOlOOOOOOlOOOOOOlOOOOOOlOOOOOOlOOOOOOlOOOOOOlOOOOOOlOOOOOOlOOOOOOlOOOOOOlOOOOlOllOOOOOlOOOlOOlOOOOOOlOOOOOOlOOOOOOlOOOlOOlOOOOOOllOOOOOlOOOlOOlOOOOOOlOOOOOOlOOOOOOlOOOOOOlOOOOOOlOOOOOOlOOOOOOlOOOOOOlOOOOOOlOOOOOOlOOOOOOlOOOOOOlOOOOOOlOOOOOOlOOOOlOlOOOOOOlOOOOOOlOOOOOOlOOOOOOlOOOOOOlOOOOOOlOOOOOOlOOOOOOlOOOOOOlOOOOOO","MO1","Darmstadt Hbf # Roßdorf # Ober-Ramstadt # Hahn #"]
["REG",18,"HEAG Verkehrs-GmbH",null,"056_",0,"H","So",1203," ","Darmstadt","Solo-Überlandbus-NF",0,0,0,0,0,"2000-01-01T12:03:00","2000-01-01T12:24:12",0.91277777777577285,21.906666666618548,null,62,8657,536.73400000000004,0,0,"lOOOOOOlOOllOOlOOlOOOlOOOOOOlOOOOOOlOOOOOOlOOOOOOlOOOOOOlOOOOOOlOOOOOOlOOOOOOlOOOOOOlOOOOOOlOOOOOOlOOOOOOlOOOOOOlOOOOOOlOOOOlOllOOOOOlOOOlOOlOOOOOOlOOOOOOlOOOOOOlOOOlOOlOOOOOOllOOOOOlOOOlOOlOOOOOOlOOOOOOlOOOOOOlOOOOOOlOOOOOOlOOOOOOlOOOOOOlOOOOOOlOOOOOOlOOOOOOlOOOOOOlOOOOOOlOOOOOOlOOOOOOlOOOOlOlOOOOOOlOOOOOOlOOOOOOlOOOOOOlOOOOOOlOOOOOOlOOOOOOlOOOOOOlOOOOOOlOOOOOO","MO1","Darmstadt Hbf # Roßdorf # Ober-Ramstadt # Hahn #"]
["REG",18,"HEAG Verkehrs-GmbH",null,"056_",0,"H","So",1203," ","Roßdorf","Solo-Überlandbus-NF",0,0,0,0,0,"2000-01-01T12:24:12","2000-01-01T12:32:30",0.35736111119331326,8.5766666686395183,null,62,3792,235.10400000000001,0,0,"lOOOOOOlOOllOOlOOlOOOlOOOOOOlOOOOOOlOOOOOOlOOOOOOlOOOOOOlOOOOOOlOOOOOOlOOOOOOlOOOOOOlOOOOOOlOOOOOOlOOOOOOlOOOOOOlOOOOOOlOOOOlOllOOOOOlOOOlOOlOOOOOOlOOOOOOlOOOOOOlOOOlOOlOOOOOOllOOOOOlOOOlOOlOOOOOOlOOOOOOlOOOOOOlOOOOOOlOOOOOOlOOOOOOlOOOOOOlOOOOOOlOOOOOOlOOOOOOlOOOOOOlOOOOOOlOOOOOOlOOOOOOlOOOOlOlOOOOOOlOOOOOOlOOOOOOlOOOOOOlOOOOOOlOOOOOOlOOOOOOlOOOOOOlOOOOOOlOOOOOO","MO1","Darmstadt Hbf # Roßdorf # Ober-Ramstadt # Hahn #"]
["REG",18,"HEAG Verkehrs-GmbH",null,"056_",0,"H","So",1203," ","Ober-Ramstadt","Solo-Überlandbus-NF",0,0,0,0,0,"2000-01-01T12:32:30","2000-01-01T13:05:00",1.3993055556056788,33.583333334536292,null,62,15336,950.83199999999999,0,0,"lOOOOOOlOOllOOlOOlOOOlOOOOOOlOOOOOOlOOOOOOlOOOOOOlOOOOOOlOOOOOOlOOOOOOlOOOOOOlOOOOOOlOOOOOOlOOOOOOlOOOOOOlOOOOOOlOOOOOOlOOOOlOllOOOOOlOOOlOOlOOOOOOlOOOOOOlOOOOOOlOOOlOOlOOOOOOllOOOOOlOOOlOOlOOOOOOlOOOOOOlOOOOOOlOOOOOOlOOOOOOlOOOOOOlOOOOOOlOOOOOOlOOOOOOlOOOOOOlOOOOOOlOOOOOOlOOOOOOlOOOOOOlOOOOlOlOOOOOOlOOOOOOlOOOOOOlOOOOOOlOOOOOOlOOOOOOlOOOOOOlOOOOOOlOOOOOOlOOOOOO","MO1","Darmstadt Hbf # Roßdorf # Ober-Ramstadt # Hahn #"]
["REG",18,"HEAG Verkehrs-GmbH",null,"056_",0,"H","So",1303," ","Darmstadt","Solo-Überlandbus-NF",0,0,0,0,0,"2000-01-01T13:03:00","2000-01-01T13:24:12",0.91277777777577285,21.906666666618548,null,62,8657,536.73400000000004,0,0,"lOOOOOOlOOllOOlOOlOOOlOOOOOOlOOOOOOlOOOOOOlOOOOOOlOOOOOOlOOOOOOlOOOOOOlOOOOOOlOOOOOOlOOOOOOlOOOOOOlOOOOOOlOOOOOOlOOOOOOlOOOOlOllOOOOOlOOOlOOlOOOOOOlOOOOOOlOOOOOOlOOOlOOlOOOOOOllOOOOOlOOOlOOlOOOOOOlOOOOOOlOOOOOOlOOOOOOlOOOOOOlOOOOOOlOOOOOOlOOOOOOlOOOOOOlOOOOOOlOOOOOOlOOOOOOlOOOOOOlOOOOOOlOOOOlOlOOOOOOlOOOOOOlOOOOOOlOOOOOOlOOOOOOlOOOOOOlOOOOOOlOOOOOOlOOOOOOlOOOOOO","MO1","Darmstadt Hbf # Roßdorf # Ober-Ramstadt # Hahn #"]
["REG",18,"HEAG Verkehrs-GmbH",null,"056_",0,"H","So",1303," ","Roßdorf","Solo-Überlandbus-NF",0,0,0,0,0,"2000-01-01T13:24:12","2000-01-01T13:32:30",0.35736111119331326,8.5766666686395183,null,62,3792,235.10400000000001,0,0,"lOOOOOOlOOllOOlOOlOOOlOOOOOOlOOOOOOlOOOOOOlOOOOOOlOOOOOOlOOOOOOlOOOOOOlOOOOOOlOOOOOOlOOOOOOlOOOOOOlOOOOOOlOOOOOOlOOOOOOlOOOOlOllOOOOOlOOOlOOlOOOOOOlOOOOOOlOOOOOOlOOOlOOlOOOOOOllOOOOOlOOOlOOlOOOOOOlOOOOOOlOOOOOOlOOOOOOlOOOOOOlOOOOOOlOOOOOOlOOOOOOlOOOOOOlOOOOOOlOOOOOOlOOOOOOlOOOOOOlOOOOOOlOOOOlOlOOOOOOlOOOOOOlOOOOOOlOOOOOOlOOOOOOlOOOOOOlOOOOOOlOOOOOOlOOOOOOlOOOOOO","MO1","Darmstadt Hbf # Roßdorf # Ober-Ramstadt # Hahn #"]
["REG",18,"HEAG Verkehrs-GmbH",null,"056_",0,"H","So",1303," ","Ober-Ramstadt","Solo-Überlandbus-NF",0,0,0,0,0,"2000-01-01T13:32:30","2000-01-01T14:05:00",1.3993055556056788,33.583333334536292,null,62,15336,950.83199999999999,0,0,"lOOOOOOlOOllOOlOOlOOOlOOOOOOlOOOOOOlOOOOOOlOOOOOOlOOOOOOlOOOOOOlOOOOOOlOOOOOOlOOOOOOlOOOOOOlOOOOOOlOOOOOOlOOOOOOlOOOOOOlOOOOlOllOOOOOlOOOlOOlOOOOOOlOOOOOOlOOOOOOlOOOlOOlOOOOOOllOOOOOlOOOlOOlOOOOOOlOOOOOOlOOOOOOlOOOOOOlOOOOOOlOOOOOOlOOOOOOlOOOOOOlOOOOOOlOOOOOOlOOOOOOlOOOOOOlOOOOOOlOOOOOOlOOOOlOlOOOOOOlOOOOOOlOOOOOOlOOOOOOlOOOOOOlOOOOOOlOOOOOOlOOOOOOlOOOOOOlOOOOOO","MO1","Darmstadt Hbf # Roßdorf # Ober-Ramstadt # Hahn #"]
["REG",18,"HEAG Verkehrs-GmbH",null,"056_",0,"H","So",1403," ","Darmstadt","Solo-Überlandbus-NF",0,0,0,0,0,"2000-01-01T14:03:00","2000-01-01T14:24:12",0.91277777777577285,21.906666666618548,null,62,8657,536.73400000000004,0,0,"lOOOOOOlOOllOOlOOlOOOlOOOOOOlOOOOOOlOOOOOOlOOOOOOlOOOOOOlOOOOOOlOOOOOOlOOOOOOlOOOOOOlOOOOOOlOOOOOOlOOOOOOlOOOOOOlOOOOOOlOOOOlOllOOOOOlOOOlOOlOOOOOOlOOOOOOlOOOOOOlOOOlOOlOOOOOOllOOOOOlOOOlOOlOOOOOOlOOOOOOlOOOOOOlOOOOOOlOOOOOOlOOOOOOlOOOOOOlOOOOOOlOOOOOOlOOOOOOlOOOOOOlOOOOOOlOOOOOOlOOOOOOlOOOOlOlOOOOOOlOOOOOOlOOOOOOlOOOOOOlOOOOOOlOOOOOOlOOOOOOlOOOOOOlOOOOOOlOOOOOO","MO1","Darmstadt Hbf # Roßdorf # Ober-Ramstadt # Hahn #"]
["REG",18,"HEAG Verkehrs-GmbH",null,"056_",0,"H","So",1403," ","Roßdorf","Solo-Überlandbus-NF",0,0,0,0,0,"2000-01-01T14:24:12","2000-01-01T14:32:30",0.35736111119331326,8.5766666686395183,null,62,3792,235.10400000000001,0,0,"lOOOOOOlOOllOOlOOlOOOlOOOOOOlOOOOOOlOOOOOOlOOOOOOlOOOOOOlOOOOOOlOOOOOOlOOOOOOlOOOOOOlOOOOOOlOOOOOOlOOOOOOlOOOOOOlOOOOOOlOOOOlOllOOOOOlOOOlOOlOOOOOOlOOOOOOlOOOOOOlOOOlOOlOOOOOOllOOOOOlOOOlOOlOOOOOOlOOOOOOlOOOOOOlOOOOOOlOOOOOOlOOOOOOlOOOOOOlOOOOOOlOOOOOOlOOOOOOlOOOOOOlOOOOOOlOOOOOOlOOOOOOlOOOOlOlOOOOOOlOOOOOOlOOOOOOlOOOOOOlOOOOOOlOOOOOOlOOOOOOlOOOOOOlOOOOOOlOOOOOO","MO1","Darmstadt Hbf # Roßdorf # Ober-Ramstadt # Hahn #"]
["REG",18,"HEAG Verkehrs-GmbH",null,"056_",0,"H","So",1403," ","Ober-Ramstadt","Solo-Überlandbus-NF",0,0,0,0,0,"2000-01-01T14:32:30","2000-01-01T15:05:00",1.3993055551545694,33.583333323709667,null,62,15336,950.83199999999999,0,0,"lOOOOOOlOOllOOlOOlOOOlOOOOOOlOOOOOOlOOOOOOlOOOOOOlOOOOOOlOOOOOOlOOOOOOlOOOOOOlOOOOOOlOOOOOOlOOOOOOlOOOOOOlOOOOOOlOOOOOOlOOOOlOllOOOOOlOOOlOOlOOOOOOlOOOOOOlOOOOOOlOOOlOOlOOOOOOllOOOOOlOOOlOOlOOOOOOlOOOOOOlOOOOOOlOOOOOOlOOOOOOlOOOOOOlOOOOOOlOOOOOOlOOOOOOlOOOOOOlOOOOOOlOOOOOOlOOOOOOlOOOOOOlOOOOlOlOOOOOOlOOOOOOlOOOOOOlOOOOOOlOOOOOOlOOOOOOlOOOOOOlOOOOOOlOOOOOOlOOOOOO","MO1","Darmstadt Hbf # Roßdorf # Ober-Ramstadt # Hahn #"]
["REG",18,"HEAG Verkehrs-GmbH",null,"056_",0,"H","So",1503," ","Darmstadt","Solo-Überlandbus-NF",0,0,0,0,0,"2000-01-01T15:03:00","2000-01-01T15:24:12",0.91277777777577285,21.906666666618548,null,62,8657,536.73400000000004,0,0,"lOOOOOOlOOllOOlOOlOOOlOOOOOOlOOOOOOlOOOOOOlOOOOOOlOOOOOOlOOOOOOlOOOOOOlOOOOOOlOOOOOOlOOOOOOlOOOOOOlOOOOOOlOOOOOOlOOOOOOlOOOOlOllOOOOOlOOOlOOlOOOOOOlOOOOOOlOOOOOOlOOOlOOlOOOOOOllOOOOOlOOOlOOlOOOOOOlOOOOOOlOOOOOOlOOOOOOlOOOOOOlOOOOOOlOOOOOOlOOOOOOlOOOOOOlOOOOOOlOOOOOOlOOOOOOlOOOOOOlOOOOOOlOOOOlOlOOOOOOlOOOOOOlOOOOOOlOOOOOOlOOOOOOlOOOOOOlOOOOOOlOOOOOOlOOOOOOlOOOOOO","MO1","Darmstadt Hbf # Roßdorf # Ober-Ramstadt # Hahn #"]
["REG",18,"HEAG Verkehrs-GmbH",null,"056_",0,"H","So",1503," ","Roßdorf","Solo-Überlandbus-NF",0,0,0,0,0,"2000-01-01T15:24:12","2000-01-01T15:32:30",0.35736111119331326,{"$f":"T131*24","v":8.5766666686395183},null,62,3792,235.10400000000001,0,0,"lOOOOOOlOOllOOlOOlOOOlOOOOOOlOOOOOOlOOOOOOlOOOOOOlOOOOOOlOOOOOOlOOOOOOlOOOOOOlOOOOOOlOOOOOOlOOOOOOlOOOOOOlOOOOOOlOOOOOOlOOOOlOllOOOOOlOOOlOOlOOOOOOlOOOOOOlOOOOOOlOOOlOOlOOOOOOllOOOOOlOOOlOOlOOOOOOlOOOOOOlOOOOOOlOOOOOOlOOOOOOlOOOOOOlOOOOOOlOOOOOOlOOOOOOlOOOOOOlOOOOOOlOOOOOOlOOOOOOlOOOOOOlOOOOlOlOOOOOOlOOOOOOlOOOOOOlOOOOOOlOOOOOOlOOOOOOlOOOOOOlOOOOOOlOOOOOOlOOOOOO","MO1","Darmstadt Hbf # Roßdorf # Ober-Ramstadt # Hahn #"]
["REG",18,"HEAG Verkehrs-GmbH",null,"056_",0,"H","So",1503," ","Ober-Ramstadt","Solo-Überlandbus-NF",0,0,0,0,0,"2000-01-01T15:32:30","2000-01-01T16:05:00",1.3993055556056788,33.583333334536292,null,62,15336,950.83199999999999,0,0,"lOOOOOOlOOllOOlOOlOOOlOOOOOOlOOOOOOlOOOOOOlOOOOOOlOOOOOOlOOOOOOlOOOOOOlOOOOOOlOOOOOOlOOOOOOlOOOOOOlOOOOOOlOOOOOOlOOOOOOlOOOOlOllOOOOOlOOOlOOlOOOOOOlOOOOOOlOOOOOOlOOOlOOlOOOOOOllOOOOOlOOOlOOlOOOOOOlOOOOOOlOOOOOOlOOOOOOlOOOOOOlOOOOOOlOOOOOOlOOOOOOlOOOOOOlOOOOOOlOOOOOOlOOOOOOlOOOOOOlOOOOOOlOOOOlOlOOOOOOlOOOOOOlOOOOOOlOOOOOOlOOOOOOlOOOOOOlOOOOOOlOOOOOOlOOOOOOlOOOOOO","MO1","Darmstadt Hbf # Roßdorf # Ober-Ramstadt # Hahn #"]
["REG",18,"HEAG Verkehrs-GmbH",null,"056_",0,"H","So",1603," ","Darmstadt","Solo-Überlandbus-NF",0,0,0,0,0,"2000-01-01T16:03:00","2000-01-01T16:24:12",0.91277777777577285,21.906666666618548,null,62,8657,536.73400000000004,0,0,"lOOOOOOlOOllOOlOOlOOOlOOOOOOlOOOOOOlOOOOOOlOOOOOOlOOOOOOlOOOOOOlOOOOOOlOOOOOOlOOOOOOlOOOOOOlOOOOOOlOOOOOOlOOOOOOlOOOOOOlOOOOlOllOOOOOlOOOlOOlOOOOOOlOOOOOOlOOOOOOlOOOlOOlOOOOOOllOOOOOlOOOlOOlOOOOOOlOOOOOOlOOOOOOlOOOOOOlOOOOOOlOOOOOOlOOOOOOlOOOOOOlOOOOOOlOOOOOOlOOOOOOlOOOOOOlOOOOOOlOOOOOOlOOOOlOlOOOOOOlOOOOOOlOOOOOOlOOOOOOlOOOOOOlOOOOOOlOOOOOOlOOOOOOlOOOOOOlOOOOOO","MO1","Darmstadt Hbf # Roßdorf # Ober-Ramstadt # Hahn #"]
["REG",18,"HEAG Verkehrs-GmbH",null,"056_",0,"H","So",1603," ","Roßdorf","Solo-Überlandbus-NF",0,0,0,0,0,"2000-01-01T16:24:12","2000-01-01T16:32:30",0.35736111119331326,8.5766666686395183,null,62,3792,235.10400000000001,0,0,"lOOOOOOlOOllOOlOOlOOOlOOOOOOlOOOOOOlOOOOOOlOOOOOOlOOOOOOlOOOOOOlOOOOOOlOOOOOOlOOOOOOlOOOOOOlOOOOOOlOOOOOOlOOOOOOlOOOOOOlOOOOlOllOOOOOlOOOlOOlOOOOOOlOOOOOOlOOOOOOlOOOlOOlOOOOOOllOOOOOlOOOlOOlOOOOOOlOOOOOOlOOOOOOlOOOOOOlOOOOOOlOOOOOOlOOOOOOlOOOOOOlOOOOOOlOOOOOOlOOOOOOlOOOOOOlOOOOOOlOOOOOOlOOOOlOlOOOOOOlOOOOOOlOOOOOOlOOOOOOlOOOOOOlOOOOOOlOOOOOOlOOOOOOlOOOOOOlOOOOOO","MO1","Darmstadt Hbf # Roßdorf # Ober-Ramstadt # Hahn #"]
["REG",18,"HEAG Verkehrs-GmbH",null,"056_",0,"H","So",1603," ","Ober-Ramstadt","Solo-Überlandbus-NF",0,0,0,0,0,"2000-01-01T16:32:30","2000-01-01T17:05:00",1.3993055556056788,33.583333334536292,null,62,15336,950.83199999999999,0,0,"lOOOOOOlOOllOOlOOlOOOlOOOOOOlOOOOOOlOOOOOOlOOOOOOlOOOOOOlOOOOOOlOOOOOOlOOOOOOlOOOOOOlOOOOOOlOOOOOOlOOOOOOlOOOOOOlOOOOOOlOOOOlOllOOOOOlOOOlOOlOOOOOOlOOOOOOlOOOOOOlOOOlOOlOOOOOOllOOOOOlOOOlOOlOOOOOOlOOOOOOlOOOOOOlOOOOOOlOOOOOOlOOOOOOlOOOOOOlOOOOOOlOOOOOOlOOOOOOlOOOOOOlOOOOOOlOOOOOOlOOOOOOlOOOOlOlOOOOOOlOOOOOOlOOOOOOlOOOOOOlOOOOOOlOOOOOOlOOOOOOlOOOOOOlOOOOOOlOOOOOO","MO1","Darmstadt Hbf # Roßdorf # Ober-Ramstadt # Hahn #"]
["REG",18,"HEAG Verkehrs-GmbH",null,"056_",0,"H","So",1703," ","Darmstadt","Solo-Überlandbus-NF",0,0,0,0,0,"2000-01-01T17:03:00","2000-01-01T17:24:12",0.91277777777577285,21.906666666618548,null,62,8657,536.73400000000004,0,0,"lOOOOOOlOOllOOlOOlOOOlOOOOOOlOOOOOOlOOOOOOlOOOOOOlOOOOOOlOOOOOOlOOOOOOlOOOOOOlOOOOOOlOOOOOOlOOOOOOlOOOOOOlOOOOOOlOOOOOOlOOOOlOllOOOOOlOOOlOOlOOOOOOlOOOOOOlOOOOOOlOOOlOOlOOOOOOllOOOOOlOOOlOOlOOOOOOlOOOOOOlOOOOOOlOOOOOOlOOOOOOlOOOOOOlOOOOOOlOOOOOOlOOOOOOlOOOOOOlOOOOOOlOOOOOOlOOOOOOlOOOOOOlOOOOlOlOOOOOOlOOOOOOlOOOOOOlOOOOOOlOOOOOOlOOOOOOlOOOOOOlOOOOOOlOOOOOOlOOOOOO","MO1","Darmstadt Hbf # Roßdorf # Ober-Ramstadt # Hahn #"]
["REG",18,"HEAG Verkehrs-GmbH",null,"056_",0,"H","So",1703," ","Roßdorf","Solo-Überlandbus-NF",0,0,0,0,0,"2000-01-01T17:24:12","2000-01-01T17:32:30",0.35736111119331326,8.5766666686395183,null,62,3792,235.10400000000001,0,0,"lOOOOOOlOOllOOlOOlOOOlOOOOOOlOOOOOOlOOOOOOlOOOOOOlOOOOOOlOOOOOOlOOOOOOlOOOOOOlOOOOOOlOOOOOOlOOOOOOlOOOOOOlOOOOOOlOOOOOOlOOOOlOllOOOOOlOOOlOOlOOOOOOlOOOOOOlOOOOOOlOOOlOOlOOOOOOllOOOOOlOOOlOOlOOOOOOlOOOOOOlOOOOOOlOOOOOOlOOOOOOlOOOOOOlOOOOOOlOOOOOOlOOOOOOlOOOOOOlOOOOOOlOOOOOOlOOOOOOlOOOOOOlOOOOlOlOOOOOOlOOOOOOlOOOOOOlOOOOOOlOOOOOOlOOOOOOlOOOOOOlOOOOOOlOOOOOOlOOOOOO","MO1","Darmstadt Hbf # Roßdorf # Ober-Ramstadt # Hahn #"]
["REG",18,"HEAG Verkehrs-GmbH",null,"056_",0,"H","So",1703," ","Ober-Ramstadt","Solo-Überlandbus-NF",0,0,0,0,0,"2000-01-01T17:32:30","2000-01-01T18:05:00",1.3993055551545694,33.583333323709667,null,62,15336,950.83199999999999,0,0,"lOOOOOOlOOllOOlOOlOOOlOOOOOOlOOOOOOlOOOOOOlOOOOOOlOOOOOOlOOOOOOlOOOOOOlOOOOOOlOOOOOOlOOOOOOlOOOOOOlOOOOOOlOOOOOOlOOOOOOlOOOOlOllOOOOOlOOOlOOlOOOOOOlOOOOOOlOOOOOOlOOOlOOlOOOOOOllOOOOOlOOOlOOlOOOOOOlOOOOOOlOOOOOOlOOOOOOlOOOOOOlOOOOOOlOOOOOOlOOOOOOlOOOOOOlOOOOOOlOOOOOOlOOOOOOlOOOOOOlOOOOOOlOOOOlOlOOOOOOlOOOOOOlOOOOOOlOOOOOOlOOOOOOlOOOOOOlOOOOOOlOOOOOOlOOOOOOlOOOOOO","MO1","Darmstadt Hbf # Roßdorf # Ober-Ramstadt # Hahn #"]
["REG",18,"HEAG Verkehrs-GmbH",null,"056_",0,"H","So",1803," ","Darmstadt","Solo-Überlandbus-NF",0,0,0,0,0,"2000-01-01T18:03:00","2000-01-01T18:24:12",0.91277777777577285,21.906666666618548,null,62,8657,536.73400000000004,0,0,"lOOOOOOlOOllOOlOOlOOOlOOOOOOlOOOOOOlOOOOOOlOOOOOOlOOOOOOlOOOOOOlOOOOOOlOOOOOOlOOOOOOlOOOOOOlOOOOOOlOOOOOOlOOOOOOlOOOOOOlOOOOlOllOOOOOlOOOlOOlOOOOOOlOOOOOOlOOOOOOlOOOlOOlOOOOOOllOOOOOlOOOlOOlOOOOOOlOOOOOOlOOOOOOlOOOOOOlOOOOOOlOOOOOOlOOOOOOlOOOOOOlOOOOOOlOOOOOOlOOOOOOlOOOOOOlOOOOOOlOOOOOOlOOOOlOlOOOOOOlOOOOOOlOOOOOOlOOOOOOlOOOOOOlOOOOOOlOOOOOOlOOOOOOlOOOOOOlOOOOOO","MO1","Darmstadt Hbf # Roßdorf # Ober-Ramstadt # Hahn #"]
["REG",18,"HEAG Verkehrs-GmbH",null,"056_",0,"H","So",1803," ","Roßdorf","Solo-Überlandbus-NF",0,0,0,0,0,"2000-01-01T18:24:12","2000-01-01T18:32:30",0.35736111119331326,8.5766666686395183,null,62,3792,235.10400000000001,0,0,"lOOOOOOlOOllOOlOOlOOOlOOOOOOlOOOOOOlOOOOOOlOOOOOOlOOOOOOlOOOOOOlOOOOOOlOOOOOOlOOOOOOlOOOOOOlOOOOOOlOOOOOOlOOOOOOlOOOOOOlOOOOlOllOOOOOlOOOlOOlOOOOOOlOOOOOOlOOOOOOlOOOlOOlOOOOOOllOOOOOlOOOlOOlOOOOOOlOOOOOOlOOOOOOlOOOOOOlOOOOOOlOOOOOOlOOOOOOlOOOOOOlOOOOOOlOOOOOOlOOOOOOlOOOOOOlOOOOOOlOOOOOOlOOOOlOlOOOOOOlOOOOOOlOOOOOOlOOOOOOlOOOOOOlOOOOOOlOOOOOOlOOOOOOlOOOOOOlOOOOOO","MO1","Darmstadt Hbf # Roßdorf # Ober-Ramstadt # Hahn #"]
["REG",18,"HEAG Verkehrs-GmbH",null,"056_",0,"H","So",1803," ","Ober-Ramstadt","Solo-Überlandbus-NF",0,0,0,0,0,"2000-01-01T18:32:30","2000-01-01T19:05:00",1.3993055556056788,33.583333334536292,null,62,15336,950.83199999999999,0,0,"lOOOOOOlOOllOOlOOlOOOlOOOOOOlOOOOOOlOOOOOOlOOOOOOlOOOOOOlOOOOOOlOOOOOOlOOOOOOlOOOOOOlOOOOOOlOOOOOOlOOOOOOlOOOOOOlOOOOOOlOOOOlOllOOOOOlOOOlOOlOOOOOOlOOOOOOlOOOOOOlOOOlOOlOOOOOOllOOOOOlOOOlOOlOOOOOOlOOOOOOlOOOOOOlOOOOOOlOOOOOOlOOOOOOlOOOOOOlOOOOOOlOOOOOOlOOOOOOlOOOOOOlOOOOOOlOOOOOOlOOOOOOlOOOOlOlOOOOOOlOOOOOOlOOOOOOlOOOOOOlOOOOOOlOOOOOOlOOOOOOlOOOOOOlOOOOOOlOOOOOO","MO1","Darmstadt Hbf # Roßdorf # Ober-Ramstadt # Hahn #"]
["REG",18,"HEAG Verkehrs-GmbH",null,"056_",0,"H","So",1903," ","Darmstadt","Solo-Überlandbus-NF",0,0,0,0,0,"2000-01-01T19:03:00","2000-01-01T19:24:12",0.91277777777577285,21.906666666618548,null,62,8657,536.73400000000004,0,0,"lOOOOOOlOOllOOlOOlOOOlOOOOOOlOOOOOOlOOOOOOlOOOOOOlOOOOOOlOOOOOOlOOOOOOlOOOOOOlOOOOOOlOOOOOOlOOOOOOlOOOOOOlOOOOOOlOOOOOOlOOOOlOllOOOOOlOOOlOOlOOOOOOlOOOOOOlOOOOOOlOOOlOOlOOOOOOllOOOOOlOOOlOOlOOOOOOlOOOOOOlOOOOOOlOOOOOOlOOOOOOlOOOOOOlOOOOOOlOOOOOOlOOOOOOlOOOOOOlOOOOOOlOOOOOOlOOOOOOlOOOOOOlOOOOlOlOOOOOOlOOOOOOlOOOOOOlOOOOOOlOOOOOOlOOOOOOlOOOOOOlOOOOOOlOOOOOOlOOOOOO","MO1","Darmstadt Hbf # Roßdorf # Ober-Ramstadt # Hahn #"]
["REG",18,"HEAG Verkehrs-GmbH",null,"056_",0,"H","So",1903," ","Roßdorf","Solo-Überlandbus-NF",0,0,0,0,0,"2000-01-01T19:24:12","2000-01-01T19:32:30",0.35736111119331326,8.5766666686395183,null,62,3792,235.10400000000001,0,0,"lOOOOOOlOOllOOlOOlOOOlOOOOOOlOOOOOOlOOOOOOlOOOOOOlOOOOOOlOOOOOOlOOOOOOlOOOOOOlOOOOOOlOOOOOOlOOOOOOlOOOOOOlOOOOOOlOOOOOOlOOOOlOllOOOOOlOOOlOOlOOOOOOlOOOOOOlOOOOOOlOOOlOOlOOOOOOllOOOOOlOOOlOOlOOOOOOlOOOOOOlOOOOOOlOOOOOOlOOOOOOlOOOOOOlOOOOOOlOOOOOOlOOOOOOlOOOOOOlOOOOOOlOOOOOOlOOOOOOlOOOOOOlOOOOlOlOOOOOOlOOOOOOlOOOOOOlOOOOOOlOOOOOOlOOOOOOlOOOOOOlOOOOOOlOOOOOOlOOOOOO","MO1","Darmstadt Hbf # Roßdorf # Ober-Ramstadt # Hahn #"]
["REG",18,"HEAG Verkehrs-GmbH",null,"056_",0,"H","So",1903," ","Ober-Ramstadt","Solo-Überlandbus-NF",0,0,0,0,0,"2000-01-01T19:32:30","2000-01-01T20:05:00",1.3993055556056788,33.583333334536292,null,62,15336,950.83199999999999,0,0,"lOOOOOOlOOllOOlOOlOOOlOOOOOOlOOOOOOlOOOOOOlOOOOOOlOOOOOOlOOOOOOlOOOOOOlOOOOOOlOOOOOOlOOOOOOlOOOOOOlOOOOOOlOOOOOOlOOOOOOlOOOOlOllOOOOOlOOOlOOlOOOOOOlOOOOOOlOOOOOOlOOOlOOlOOOOOOllOOOOOlOOOlOOlOOOOOOlOOOOOOlOOOOOOlOOOOOOlOOOOOOlOOOOOOlOOOOOOlOOOOOOlOOOOOOlOOOOOOlOOOOOOlOOOOOOlOOOOOOlOOOOOOlOOOOlOlOOOOOOlOOOOOOlOOOOOOlOOOOOOlOOOOOOlOOOOOOlOOOOOOlOOOOOOlOOOOOOlOOOOOO","MO1","Darmstadt Hbf # Roßdorf # Ober-Ramstadt # Hahn #"]
["REG",18,"HEAG Verkehrs-GmbH",null,"056_",0,"H","So",2003," ","Darmstadt","Solo-Überlandbus-NF",0,0,0,0,0,"2000-01-01T20:03:00","2000-01-01T20:24:12",0.91277777777577285,21.906666666618548,null,62,8657,536.73400000000004,0,0,"lOOOOOOlOOllOOlOOlOOOlOOOOOOlOOOOOOlOOOOOOlOOOOOOlOOOOOOlOOOOOOlOOOOOOlOOOOOOlOOOOOOlOOOOOOlOOOOOOlOOOOOOlOOOOOOlOOOOOOlOOOOlOllOOOOOlOOOlOOlOOOOOOlOOOOOOlOOOOOOlOOOlOOlOOOOOOllOOOOOlOOOlOOlOOOOOOlOOOOOOlOOOOOOlOOOOOOlOOOOOOlOOOOOOlOOOOOOlOOOOOOlOOOOOOlOOOOOOlOOOOOOlOOOOOOlOOOOOOlOOOOOOlOOOOlOlOOOOOOlOOOOOOlOOOOOOlOOOOOOlOOOOOOlOOOOOOlOOOOOOlOOOOOOlOOOOOOlOOOOOO","MO1","Darmstadt Hbf # Roßdorf # Ober-Ramstadt # Hahn #"]
["REG",18,"HEAG Verkehrs-GmbH",null,"056_",0,"H","So",2003," ","Roßdorf","Solo-Überlandbus-NF",0,0,0,0,0,"2000-01-01T20:24:12","2000-01-01T20:32:30",0.35736111119331326,8.5766666686395183,null,62,3792,235.10400000000001,0,0,"lOOOOOOlOOllOOlOOlOOOlOOOOOOlOOOOOOlOOOOOOlOOOOOOlOOOOOOlOOOOOOlOOOOOOlOOOOOOlOOOOOOlOOOOOOlOOOOOOlOOOOOOlOOOOOOlOOOOOOlOOOOlOllOOOOOlOOOlOOlOOOOOOlOOOOOOlOOOOOOlOOOlOOlOOOOOOllOOOOOlOOOlOOlOOOOOOlOOOOOOlOOOOOOlOOOOOOlOOOOOOlOOOOOOlOOOOOOlOOOOOOlOOOOOOlOOOOOOlOOOOOOlOOOOOOlOOOOOOlOOOOOOlOOOOlOlOOOOOOlOOOOOOlOOOOOOlOOOOOOlOOOOOOlOOOOOOlOOOOOOlOOOOOOlOOOOOOlOOOOOO","MO1","Darmstadt Hbf # Roßdorf # Ober-Ramstadt # Hahn #"]
["REG",18,"HEAG Verkehrs-GmbH",null,"056_",0,"H","So",2003," ","Ober-Ramstadt","Solo-Überlandbus-NF",0,0,0,0,0,"2000-01-01T20:32:30","2000-01-01T21:05:00",1.3993055551545694,33.583333323709667,null,62,15336,950.83199999999999,0,0,"lOOOOOOlOOllOOlOOlOOOlOOOOOOlOOOOOOlOOOOOOlOOOOOOlOOOOOOlOOOOOOlOOOOOOlOOOOOOlOOOOOOlOOOOOOlOOOOOOlOOOOOOlOOOOOOlOOOOOOlOOOOlOllOOOOOlOOOlOOlOOOOOOlOOOOOOlOOOOOOlOOOlOOlOOOOOOllOOOOOlOOOlOOlOOOOOOlOOOOOOlOOOOOOlOOOOOOlOOOOOOlOOOOOOlOOOOOOlOOOOOOlOOOOOOlOOOOOOlOOOOOOlOOOOOOlOOOOOOlOOOOOOlOOOOlOlOOOOOOlOOOOOOlOOOOOOlOOOOOOlOOOOOOlOOOOOOlOOOOOOlOOOOOOlOOOOOOlOOOOOO","MO1","Darmstadt Hbf # Roßdorf # Ober-Ramstadt # Hahn #"]
["REG",18,"HEAG Verkehrs-GmbH",null,"056_",0,"H","So",2113," ","Ober-Ramstadt","Solo-Überlandbus-NF",0,0,0,0,0,"2000-01-01T21:13:00","2000-01-01T21:35:00",0.94722222215204965,22.733333331649192,null,62,11105,688.51,0,0,"lOOOOOOlOOllOOlOOlOOOlOOOOOOlOOOOOOlOOOOOOlOOOOOOlOOOOOOlOOOOOOlOOOOOOlOOOOOOlOOOOOOlOOOOOOlOOOOOOlOOOOOOlOOOOOOlOOOOOOlOOOOlOllOOOOOlOOOlOOlOOOOOOlOOOOOOlOOOOOOlOOOlOOlOOOOOOllOOOOOlOOOlOOlOOOOOOlOOOOOOlOOOOOOlOOOOOOlOOOOOOlOOOOOOlOOOOOOlOOOOOOlOOOOOOlOOOOOOlOOOOOOlOOOOOOlOOOOOOlOOOOOOlOOOOlOlOOOOOOlOOOOOOlOOOOOOlOOOOOOlOOOOOOlOOOOOOlOOOOOOlOOOOOOlOOOOOOlOOOOOO","MO1","Darmstadt Hbf # Roßdorf # Ober-Ramstadt # Hahn #"]
["REG",18,"HEAG Verkehrs-GmbH",null,"056_",0,"H","So",2238," ","Ober-Ramstadt","Solo-Überlandbus-NF",0,0,0,0,0,"2000-01-01T22:38:00","2000-01-01T23:00:00",0.94722222215204965,22.733333331649192,null,62,11105,688.51,0,0,"lOOOOOOlOOllOOlOOlOOOlOOOOOOlOOOOOOlOOOOOOlOOOOOOlOOOOOOlOOOOOOlOOOOOOlOOOOOOlOOOOOOlOOOOOOlOOOOOOlOOOOOOlOOOOOOlOOOOOOlOOOOlOllOOOOOlOOOlOOlOOOOOOlOOOOOOlOOOOOOlOOOlOOlOOOOOOllOOOOOlOOOlOOlOOOOOOlOOOOOOlOOOOOOlOOOOOOlOOOOOOlOOOOOOlOOOOOOlOOOOOOlOOOOOOlOOOOOOlOOOOOOlOOOOOOlOOOOOOlOOOOOOlOOOOlOlOOOOOOlOOOOOOlOOOOOOlOOOOOOlOOOOOOlOOOOOOlOOOOOOlOOOOOOlOOOOOOlOOOOOO","MO1","Darmstadt Hbf # Roßdorf # Ober-Ramstadt # Hahn #"]
["REG",18,"HEAG Verkehrs-GmbH",null,"056_",0,"H","So",2338," ","Ober-Ramstadt","Solo-Überlandbus-NF",0,0,0,0,0,"2000-01-01T23:38:00","2000-01-02",0.94722222215204965,22.733333331649192,null,62,11105,688.51,0,0,"lOOOOOOlOOllOOlOOlOOOlOOOOOOlOOOOOOlOOOOOOlOOOOOOlOOOOOOlOOOOOOlOOOOOOlOOOOOOlOOOOOOlOOOOOOlOOOOOOlOOOOOOlOOOOOOlOOOOOOlOOOOlOllOOOOOlOOOlOOlOOOOOOlOOOOOOlOOOOOOlOOOlOOlOOOOOOllOOOOOlOOOlOOlOOOOOOlOOOOOOlOOOOOOlOOOOOOlOOOOOOlOOOOOOlOOOOOOlOOOOOOlOOOOOOlOOOOOOlOOOOOOlOOOOOOlOOOOOOlOOOOOOlOOOOlOlOOOOOOlOOOOOOlOOOOOOlOOOOOOlOOOOOOlOOOOOOlOOOOOOlOOOOOOlOOOOOOlOOOOOO","MO1","Darmstadt Hbf # Roßdorf # Ober-Ramstadt # Hahn #"]
["REG",18,"HEAG Verkehrs-GmbH",null,"056_",0,"H","So",2438," ","Ober-Ramstadt","Solo-Überlandbus-NF",0,0,0,0,0,"2000-01-02T00:38:00","2000-01-02T01:00:00",0.94722222215204965,22.733333331649192,null,62,11105,688.51,0,0,"lOOOOOOlOOllOOlOOlOOOlOOOOOOlOOOOOOlOOOOOOlOOOOOOlOOOOOOlOOOOOOlOOOOOOlOOOOOOlOOOOOOlOOOOOOlOOOOOOlOOOOOOlOOOOOOlOOOOOOlOOOOlOllOOOOOlOOOlOOlOOOOOOlOOOOOOlOOOOOOlOOOlOOlOOOOOOllOOOOOlOOOlOOlOOOOOOlOOOOOOlOOOOOOlOOOOOOlOOOOOOlOOOOOOlOOOOOOlOOOOOOlOOOOOOlOOOOOOlOOOOOOlOOOOOOlOOOOOOlOOOOOOlOOOOlOlOOOOOOlOOOOOOlOOOOOOlOOOOOOlOOOOOOlOOOOOOlOOOOOOlOOOOOOlOOOOOOlOOOOOO","MO1","Darmstadt Hbf # Roßdorf # Ober-Ramstadt # Hahn #"]
["REG",18,"HEAG Verkehrs-GmbH",null,"056_",0,"H","So",2538," ","Ober-Ramstadt","Solo-Überlandbus-NF",0,0,0,0,0,"2000-01-02T01:38:00","2000-01-02T02:00:00",0.10694444443652174,2.5666666664765216,"ef    - gültig in den Nächten 25./26.12.2024, 02./03.03., 18./19.04., 20./21.04., 08./09",7,11105,77.734999999999999,0,0,"OOOOOOOOOOlOOOOOOOOOOOOOOOOOOOOOOOOOOOOOOOOOOOOOOOOOOOOOOOOOOOOOOOOOOOOOOOOOOlOOOOOOOOOOOOOOOOOOOOOOOOOOOOOOOOOOOOOOOOOOOOOOlOlOOOOOOOOOOOOOOOOOOOOOOOOOOOOOOOOOOOOOOOOOOOOOOOOlOOOOOOOOOOOOOOOOOOOOOOOOOOOlOOOOOOOOOOOOOOOOOOOOOOOOOOOOOOOOOOOOOOOOOOOOOOOOOOOOOOOOOOOOOOOOOOOOOOOOOOOOOOOOOOOOOOOOlOOOOOOOOOOOOOOOOOOOOOOOOOOOOOOOOOOOOOOOOOOOOOOOOOOOOOOOOOOOOOOOOOOOOOOO","MO1","Darmstadt Hbf # Roßdorf # Ober-Ramstadt # Hahn #"]
["REG",18,"HEAG Verkehrs-GmbH",null,"056_",0,"R","Mo-Fr",456," ","Ober-Ramstadt","Solo-Überlandbus-NF",0,0,0,0,0,"2000-01-01T04:49:00","2000-01-01T05:23:30",5.9416666661854833,142.5999999884516,null,248,15360,3809.28,0,0,"OlllllOOlOOOlOOlOOllOOlllllOOlllllOOlllllOOlllllOOlllllOOlllllOOlllllOOlllllOOlllllOOlllllOOlllllOOlllllOOlllllOOlllllOOllllOOOOllllOOlllOlOOlllllOOlllllOOlllllOOlllOlOOlllllOOOllllOOlllOlOOlllllOOlllllOOlllllOOlllllOOlllllOOlllllOOlllllOOlllllOOlllllOOlllllOOlllllOOlllllOOlllllOOlllllOOllllOOOlllllOOlllllOOlllllOOlllllOOlllllOOlllllOOlllllOOlllllOOlllllOOlllllO","MO1","Ober-Ramstadt Rondell # Modau # Rohrbach # Wembach #"]
["REG",18,"HEAG Verkehrs-GmbH",null,"056_",0,"R","Mo-Fr",456," ","Roßdorf","Solo-Überlandbus-NF",0,0,0,0,0,"2000-01-01T05:23:30","2000-01-01T05:31:18",1.3433333333814517,32.24000000115484,null,248,3449,855.35199999999998,0,0,"OlllllOOlOOOlOOlOOllOOlllllOOlllllOOlllllOOlllllOOlllllOOlllllOOlllllOOlllllOOlllllOOlllllOOlllllOOlllllOOlllllOOlllllOOllllOOOOllllOOlllOlOOlllllOOlllllOOlllllOOlllOlOOlllllOOOllllOOlllOlOOlllllOOlllllOOlllllOOlllllOOlllllOOlllllOOlllllOOlllllOOlllllOOlllllOOlllllOOlllllOOlllllOOlllllOOllllOOOlllllOOlllllOOlllllOOlllllOOlllllOOlllllOOlllllOOlllllOOlllllOOlllllO","MO1","Ober-Ramstadt Rondell # Modau # Rohrbach # Wembach #"]
["REG",18,"HEAG Verkehrs-GmbH",null,"056_",0,"R","Mo-Fr",456," ","Darmstadt","Solo-Überlandbus-NF",0,0,0,0,0,"2000-01-01T05:31:18","2000-01-01T05:52:00",3.56499999971129,85.55999999307096,null,248,8726,2164.0479999999998,0,0,"OlllllOOlOOOlOOlOOllOOlllllOOlllllOOlllllOOlllllOOlllllOOlllllOOlllllOOlllllOOlllllOOlllllOOlllllOOlllllOOlllllOOlllllOOllllOOOOllllOOlllOlOOlllllOOlllllOOlllllOOlllOlOOlllllOOOllllOOlllOlOOlllllOOlllllOOlllllOOlllllOOlllllOOlllllOOlllllOOlllllOOlllllOOlllllOOlllllOOlllllOOlllllOOlllllOOllllOOOlllllOOlllllOOlllllOOlllllOOlllllOOlllllOOlllllOOlllllOOlllllOOlllllO","MO1","Ober-Ramstadt Rondell # Modau # Rohrbach # Wembach #"]
["REG",18,"HEAG Verkehrs-GmbH",null,"056_",0,"R","Mo-Fr",549," ","Ober-Ramstadt","Gelenk-Überlandbus-NF",0,0,0,0,0,"2000-01-01T05:49:00","2000-01-01T06:23:30",5.9416666679899208,142.6000000317581,null,248,15360,3809.28,0,0,"OlllllOOlOOOlOOlOOllOOlllllOOlllllOOlllllOOlllllOOlllllOOlllllOOlllllOOlllllOOlllllOOlllllOOlllllOOlllllOOlllllOOlllllOOllllOOOOllllOOlllOlOOlllllOOlllllOOlllllOOlllOlOOlllllOOOllllOOlllOlOOlllllOOlllllOOlllllOOlllllOOlllllOOlllllOOlllllOOlllllOOlllllOOlllllOOlllllOOlllllOOlllllOOlllllOOllllOOOlllllOOlllllOOlllllOOlllllOOlllllOOlllllOOlllllOOlllllOOlllllOOlllllO","MO1","Ober-Ramstadt Rondell # Modau # Rohrbach # Wembach #"]
["REG",18,"HEAG Verkehrs-GmbH",null,"056_",0,"R","Mo-Fr",549," ","Roßdorf","Gelenk-Überlandbus-NF",0,0,0,0,0,"2000-01-01T06:23:30","2000-01-01T06:31:18",1.3433333333814517,32.24000000115484,null,248,3449,855.35199999999998,0,0,"OlllllOOlOOOlOOlOOllOOlllllOOlllllOOlllllOOlllllOOlllllOOlllllOOlllllOOlllllOOlllllOOlllllOOlllllOOlllllOOlllllOOlllllOOllllOOOOllllOOlllOlOOlllllOOlllllOOlllllOOlllOlOOlllllOOOllllOOlllOlOOlllllOOlllllOOlllllOOlllllOOlllllOOlllllOOlllllOOlllllOOlllllOOlllllOOlllllOOlllllOOlllllOOlllllOOllllOOOlllllOOlllllOOlllllOOlllllOOlllllOOlllllOOlllllOOlllllOOlllllOOlllllO","MO1","Ober-Ramstadt Rondell # Modau # Rohrbach # Wembach #"]
["REG",18,"HEAG Verkehrs-GmbH",null,"056_",0,"R","Mo-Fr",549," ","Darmstadt","Gelenk-Überlandbus-NF",0,0,0,0,0,"2000-01-01T06:31:18","2000-01-01T06:52:00",3.56499999971129,85.55999999307096,null,248,8726,2164.0479999999998,0,0,"OlllllOOlOOOlOOlOOllOOlllllOOlllllOOlllllOOlllllOOlllllOOlllllOOlllllOOlllllOOlllllOOlllllOOlllllOOlllllOOlllllOOlllllOOllllOOOOllllOOlllOlOOlllllOOlllllOOlllllOOlllOlOOlllllOOOllllOOlllOlOOlllllOOlllllOOlllllOOlllllOOlllllOOlllllOOlllllOOlllllOOlllllOOlllllOOlllllOOlllllOOlllllOOlllllOOllllOOOlllllOOlllllOOlllllOOlllllOOlllllOOlllllOOlllllOOlllllOOlllllOOlllllO","MO1","Ober-Ramstadt Rondell # Modau # Rohrbach # Wembach #"]
["REG",18,"HEAG Verkehrs-GmbH",null,"056_",0,"R","Mo-Fr",649," ","Ober-Ramstadt","Gelenk-Überlandbus-NF",0,0,0,0,0,"2000-01-01T06:49:00","2000-01-01T07:23:30",5.9416666661854833,142.5999999884516,null,248,15360,3809.28,0,0,"OlllllOOlOOOlOOlOOllOOlllllOOlllllOOlllllOOlllllOOlllllOOlllllOOlllllOOlllllOOlllllOOlllllOOlllllOOlllllOOlllllOOlllllOOllllOOOOllllOOlllOlOOlllllOOlllllOOlllllOOlllOlOOlllllOOOllllOOlllOlOOlllllOOlllllOOlllllOOlllllOOlllllOOlllllOOlllllOOlllllOOlllllOOlllllOOlllllOOlllllOOlllllOOlllllOOllllOOOlllllOOlllllOOlllllOOlllllOOlllllOOlllllOOlllllOOlllllOOlllllOOlllllO","MO1","Ober-Ramstadt Rondell # Modau # Rohrbach # Wembach #"]
["REG",18,"HEAG Verkehrs-GmbH",null,"056_",0,"R","Mo-Fr",649," ","Roßdorf","Gelenk-Überlandbus-NF",0,0,0,0,0,"2000-01-01T07:23:30","2000-01-01T07:31:18",1.3433333333814517,32.24000000115484,null,248,3449,855.35199999999998,0,0,"OlllllOOlOOOlOOlOOllOOlllllOOlllllOOlllllOOlllllOOlllllOOlllllOOlllllOOlllllOOlllllOOlllllOOlllllOOlllllOOlllllOOlllllOOllllOOOOllllOOlllOlOOlllllOOlllllOOlllllOOlllOlOOlllllOOOllllOOlllOlOOlllllOOlllllOOlllllOOlllllOOlllllOOlllllOOlllllOOlllllOOlllllOOlllllOOlllllOOlllllOOlllllOOlllllOOllllOOOlllllOOlllllOOlllllOOlllllOOlllllOOlllllOOlllllOOlllllOOlllllOOlllllO","MO1","Ober-Ramstadt Rondell # Modau # Rohrbach # Wembach #"]
["REG",18,"HEAG Verkehrs-GmbH",null,"056_",0,"R","Mo-Fr",649," ","Darmstadt","Gelenk-Überlandbus-NF",0,0,0,0,0,"2000-01-01T07:31:18","2000-01-01T07:52:00",3.56499999971129,85.55999999307096,null,248,8726,2164.0479999999998,0,0,"OlllllOOlOOOlOOlOOllOOlllllOOlllllOOlllllOOlllllOOlllllOOlllllOOlllllOOlllllOOlllllOOlllllOOlllllOOlllllOOlllllOOlllllOOllllOOOOllllOOlllOlOOlllllOOlllllOOlllllOOlllOlOOlllllOOOllllOOlllOlOOlllllOOlllllOOlllllOOlllllOOlllllOOlllllOOlllllOOlllllOOlllllOOlllllOOlllllOOlllllOOlllllOOlllllOOllllOOOlllllOOlllllOOlllllOOlllllOOlllllOOlllllOOlllllOOlllllOOlllllOOlllllO","MO1","Ober-Ramstadt Rondell # Modau # Rohrbach # Wembach #"]
["REG",18,"HEAG Verkehrs-GmbH",null,"056_",0,"R","Mo-Fr",731," ","Ober-Ramstadt","Solo-Überlandbus-NF",0,0,0,0,0,"2000-01-01T07:31:00","2000-01-01T07:51:00",2.6944444433465833,64.666666640317999,"09    - nur an Schultagen",194,7052,1368.088,0,0,"OlllllOOOOOOOOOOOOOOOOlllllOOlllllOOlllllOOlllllOOlllllOOlllllOOlllllOOlllllOOlllllOOlllllOOlllllOOlllllOOlllllOOOOOOOOOOOOOOOOOllllOOlllOlOOlllllOOlllllOOlllllOOlllOlOOlllllOOOllllOOlllOlOOlllllOOlllllOOOOOOOOOOOOOOOOOOOOOOOOOOOOOOOOOOOOOOOOOOOOlllllOOlllllOOlllllOOlllllOOlllllOOlllllOOllllOOOOOOOOOOOOOOOOOlllllOOlllllOOlllllOOlllllOOlllllOOlllllOOlllllOOlllllO","MO1","Ober-Ramstadt Rondell # Modau # Rohrbach # Wembach #"]
["REG",18,"HEAG Verkehrs-GmbH",null,"056_",0,"R","Mo-Fr",732," ","Ober-Ramstadt","Solo-Überlandbus-NF",0,0,0,0,0,"2000-01-01T07:29:00","2000-01-01T07:56:00",3.6375000005646143,87.300000013550743,"09    - nur an Schultagen",194,10164,1971.816,0,0,"OlllllOOOOOOOOOOOOOOOOlllllOOlllllOOlllllOOlllllOOlllllOOlllllOOlllllOOlllllOOlllllOOlllllOOlllllOOlllllOOlllllOOOOOOOOOOOOOOOOOllllOOlllOlOOlllllOOlllllOOlllllOOlllOlOOlllllOOOllllOOlllOlOOlllllOOlllllOOOOOOOOOOOOOOOOOOOOOOOOOOOOOOOOOOOOOOOOOOOOlllllOOlllllOOlllllOOlllllOOlllllOOlllllOOllllOOOOOOOOOOOOOOOOOlllllOOlllllOOlllllOOlllllOOlllllOOlllllOOlllllOOlllllO","MO1","Ober-Ramstadt Rondell # Modau # Rohrbach # Wembach #"]
["REG",18,"HEAG Verkehrs-GmbH",null,"056_",0,"R","Mo-Fr",749," ","Ober-Ramstadt","Gelenk-Überlandbus-NF",0,0,0,0,0,"2000-01-01T07:49:00","2000-01-01T08:23:30",5.9416666661854833,142.5999999884516,null,248,15360,3809.28,0,0,"OlllllOOlOOOlOOlOOllOOlllllOOlllllOOlllllOOlllllOOlllllOOlllllOOlllllOOlllllOOlllllOOlllllOOlllllOOlllllOOlllllOOlllllOOllllOOOOllllOOlllOlOOlllllOOlllllOOlllllOOlllOlOOlllllOOOllllOOlllOlOOlllllOOlllllOOlllllOOlllllOOlllllOOlllllOOlllllOOlllllOOlllllOOlllllOOlllllOOlllllOOlllllOOlllllOOllllOOOlllllOOlllllOOlllllOOlllllOOlllllOOlllllOOlllllOOlllllOOlllllOOlllllO","MO1","Ober-Ramstadt Rondell # Modau # Rohrbach # Wembach #"]
["REG",18,"HEAG Verkehrs-GmbH",null,"056_",0,"R","Mo-Fr",749," ","Roßdorf","Gelenk-Überlandbus-NF",0,0,0,0,0,"2000-01-01T08:23:30","2000-01-01T08:31:18",1.3433333333814517,32.24000000115484,null,248,3449,855.35199999999998,0,0,"OlllllOOlOOOlOOlOOllOOlllllOOlllllOOlllllOOlllllOOlllllOOlllllOOlllllOOlllllOOlllllOOlllllOOlllllOOlllllOOlllllOOlllllOOllllOOOOllllOOlllOlOOlllllOOlllllOOlllllOOlllOlOOlllllOOOllllOOlllOlOOlllllOOlllllOOlllllOOlllllOOlllllOOlllllOOlllllOOlllllOOlllllOOlllllOOlllllOOlllllOOlllllOOlllllOOllllOOOlllllOOlllllOOlllllOOlllllOOlllllOOlllllOOlllllOOlllllOOlllllOOlllllO","MO1","Ober-Ramstadt Rondell # Modau # Rohrbach # Wembach #"]
["REG",18,"HEAG Verkehrs-GmbH",null,"056_",0,"R","Mo-Fr",749," ","Darmstadt","Gelenk-Überlandbus-NF",0,0,0,0,0,"2000-01-01T08:31:18","2000-01-01T08:52:00",3.56499999971129,85.55999999307096,null,248,8726,2164.0479999999998,0,0,"OlllllOOlOOOlOOlOOllOOlllllOOlllllOOlllllOOlllllOOlllllOOlllllOOlllllOOlllllOOlllllOOlllllOOlllllOOlllllOOlllllOOlllllOOllllOOOOllllOOlllOlOOlllllOOlllllOOlllllOOlllOlOOlllllOOOllllOOlllOlOOlllllOOlllllOOlllllOOlllllOOlllllOOlllllOOlllllOOlllllOOlllllOOlllllOOlllllOOlllllOOlllllOOlllllOOllllOOOlllllOOlllllOOlllllOOlllllOOlllllOOlllllOOlllllOOlllllOOlllllOOlllllO","MO1","Ober-Ramstadt Rondell # Modau # Rohrbach # Wembach #"]
["REG",18,"HEAG Verkehrs-GmbH",null,"056_",0,"R","Mo-Fr",814," ","Ober-Ramstadt","Solo-Überlandbus-NF",0,0,0,0,0,"2000-01-01T08:14:00","2000-01-01T08:41:00",3.6375000005646143,87.300000013550743,"09    - nur an Schultagen",194,10164,1971.816,0,0,"OlllllOOOOOOOOOOOOOOOOlllllOOlllllOOlllllOOlllllOOlllllOOlllllOOlllllOOlllllOOlllllOOlllllOOlllllOOlllllOOlllllOOOOOOOOOOOOOOOOOllllOOlllOlOOlllllOOlllllOOlllllOOlllOlOOlllllOOOllllOOlllOlOOlllllOOlllllOOOOOOOOOOOOOOOOOOOOOOOOOOOOOOOOOOOOOOOOOOOOlllllOOlllllOOlllllOOlllllOOlllllOOlllllOOllllOOOOOOOOOOOOOOOOOlllllOOlllllOOlllllOOlllllOOlllllOOlllllOOlllllOOlllllO","MO1","Ober-Ramstadt Rondell # Modau # Rohrbach # Wembach #"]
["REG",18,"HEAG Verkehrs-GmbH",null,"056_",0,"R","Mo-Fr",849," ","Ober-Ramstadt","Gelenk-Überlandbus-NF",0,0,0,0,0,"2000-01-01T08:49:00","2000-01-01T09:23:30",5.9416666679899208,142.6000000317581,null,248,15360,3809.28,0,0,"OlllllOOlOOOlOOlOOllOOlllllOOlllllOOlllllOOlllllOOlllllOOlllllOOlllllOOlllllOOlllllOOlllllOOlllllOOlllllOOlllllOOlllllOOllllOOOOllllOOlllOlOOlllllOOlllllOOlllllOOlllOlOOlllllOOOllllOOlllOlOOlllllOOlllllOOlllllOOlllllOOlllllOOlllllOOlllllOOlllllOOlllllOOlllllOOlllllOOlllllOOlllllOOlllllOOllllOOOlllllOOlllllOOlllllOOlllllOOlllllOOlllllOOlllllOOlllllOOlllllOOlllllO","MO1","Ober-Ramstadt Rondell # Modau # Rohrbach # Wembach #"]
["REG",18,"HEAG Verkehrs-GmbH",null,"056_",0,"R","Mo-Fr",849," ","Roßdorf","Gelenk-Überlandbus-NF",0,0,0,0,0,"2000-01-01T09:23:30","2000-01-01T09:31:18",1.3433333333814517,32.24000000115484,null,248,3449,855.35199999999998,0,0,"OlllllOOlOOOlOOlOOllOOlllllOOlllllOOlllllOOlllllOOlllllOOlllllOOlllllOOlllllOOlllllOOlllllOOlllllOOlllllOOlllllOOlllllOOllllOOOOllllOOlllOlOOlllllOOlllllOOlllllOOlllOlOOlllllOOOllllOOlllOlOOlllllOOlllllOOlllllOOlllllOOlllllOOlllllOOlllllOOlllllOOlllllOOlllllOOlllllOOlllllOOlllllOOlllllOOllllOOOlllllOOlllllOOlllllOOlllllOOlllllOOlllllOOlllllOOlllllOOlllllOOlllllO","MO1","Ober-Ramstadt Rondell # Modau # Rohrbach # Wembach #"]
["REG",18,"HEAG Verkehrs-GmbH",null,"056_",0,"R","Mo-Fr",849," ","Darmstadt","Gelenk-Überlandbus-NF",0,0,0,0,0,"2000-01-01T09:31:18","2000-01-01T09:52:00",3.56499999971129,85.55999999307096,null,248,8726,2164.0479999999998,0,0,"OlllllOOlOOOlOOlOOllOOlllllOOlllllOOlllllOOlllllOOlllllOOlllllOOlllllOOlllllOOlllllOOlllllOOlllllOOlllllOOlllllOOlllllOOllllOOOOllllOOlllOlOOlllllOOlllllOOlllllOOlllOlOOlllllOOOllllOOlllOlOOlllllOOlllllOOlllllOOlllllOOlllllOOlllllOOlllllOOlllllOOlllllOOlllllOOlllllOOlllllOOlllllOOlllllOOllllOOOlllllOOlllllOOlllllOOlllllOOlllllOOlllllOOlllllOOlllllOOlllllOOlllllO","MO1","Ober-Ramstadt Rondell # Modau # Rohrbach # Wembach #"]
["REG",18,"HEAG Verkehrs-GmbH",null,"056_",0,"R","Mo-Fr",949," ","Ober-Ramstadt","Gelenk-Überlandbus-NF",0,0,0,0,0,"2000-01-01T09:49:00","2000-01-01T10:23:30",5.9416666661854833,142.5999999884516,null,248,15360,3809.28,0,0,"OlllllOOlOOOlOOlOOllOOlllllOOlllllOOlllllOOlllllOOlllllOOlllllOOlllllOOlllllOOlllllOOlllllOOlllllOOlllllOOlllllOOlllllOOllllOOOOllllOOlllOlOOlllllOOlllllOOlllllOOlllOlOOlllllOOOllllOOlllOlOOlllllOOlllllOOlllllOOlllllOOlllllOOlllllOOlllllOOlllllOOlllllOOlllllOOlllllOOlllllOOlllllOOlllllOOllllOOOlllllOOlllllOOlllllOOlllllOOlllllOOlllllOOlllllOOlllllOOlllllOOlllllO","MO1","Ober-Ramstadt Rondell # Modau # Rohrbach # Wembach #"]
["REG",18,"HEAG Verkehrs-GmbH",null,"056_",0,"R","Mo-Fr",949," ","Roßdorf","Gelenk-Überlandbus-NF",0,0,0,0,0,"2000-01-01T10:23:30","2000-01-01T10:31:18",1.3433333333814517,32.24000000115484,null,248,3449,855.35199999999998,0,0,"OlllllOOlOOOlOOlOOllOOlllllOOlllllOOlllllOOlllllOOlllllOOlllllOOlllllOOlllllOOlllllOOlllllOOlllllOOlllllOOlllllOOlllllOOllllOOOOllllOOlllOlOOlllllOOlllllOOlllllOOlllOlOOlllllOOOllllOOlllOlOOlllllOOlllllOOlllllOOlllllOOlllllOOlllllOOlllllOOlllllOOlllllOOlllllOOlllllOOlllllOOlllllOOlllllOOllllOOOlllllOOlllllOOlllllOOlllllOOlllllOOlllllOOlllllOOlllllOOlllllOOlllllO","MO1","Ober-Ramstadt Rondell # Modau # Rohrbach # Wembach #"]
["REG",18,"HEAG Verkehrs-GmbH",null,"056_",0,"R","Mo-Fr",949," ","Darmstadt","Gelenk-Überlandbus-NF",0,0,0,0,0,"2000-01-01T10:31:18","2000-01-01T10:52:00",3.56499999971129,85.55999999307096,null,248,8726,2164.0479999999998,0,0,"OlllllOOlOOOlOOlOOllOOlllllOOlllllOOlllllOOlllllOOlllllOOlllllOOlllllOOlllllOOlllllOOlllllOOlllllOOlllllOOlllllOOlllllOOllllOOOOllllOOlllOlOOlllllOOlllllOOlllllOOlllOlOOlllllOOOllllOOlllOlOOlllllOOlllllOOlllllOOlllllOOlllllOOlllllOOlllllOOlllllOOlllllOOlllllOOlllllOOlllllOOlllllOOlllllOOllllOOOlllllOOlllllOOlllllOOlllllOOlllllOOlllllOOlllllOOlllllOOlllllOOlllllO","MO1","Ober-Ramstadt Rondell # Modau # Rohrbach # Wembach #"]
["REG",18,"HEAG Verkehrs-GmbH",null,"056_",0,"R","Mo-Fr",1049," ","Ober-Ramstadt","Gelenk-Überlandbus-NF",0,0,0,0,0,"2000-01-01T10:49:00","2000-01-01T11:23:30",5.9416666661854833,142.5999999884516,null,248,15360,3809.28,0,0,"OlllllOOlOOOlOOlOOllOOlllllOOlllllOOlllllOOlllllOOlllllOOlllllOOlllllOOlllllOOlllllOOlllllOOlllllOOlllllOOlllllOOlllllOOllllOOOOllllOOlllOlOOlllllOOlllllOOlllllOOlllOlOOlllllOOOllllOOlllOlOOlllllOOlllllOOlllllOOlllllOOlllllOOlllllOOlllllOOlllllOOlllllOOlllllOOlllllOOlllllOOlllllOOlllllOOllllOOOlllllOOlllllOOlllllOOlllllOOlllllOOlllllOOlllllOOlllllOOlllllOOlllllO","MO1","Ober-Ramstadt Rondell # Modau # Rohrbach # Wembach #"]
["REG",18,"HEAG Verkehrs-GmbH",null,"056_",0,"R","Mo-Fr",1049," ","Roßdorf","Gelenk-Überlandbus-NF",0,0,0,0,0,"2000-01-01T11:23:30","2000-01-01T11:31:18",1.3433333333814517,32.24000000115484,null,248,3449,855.35199999999998,0,0,"OlllllOOlOOOlOOlOOllOOlllllOOlllllOOlllllOOlllllOOlllllOOlllllOOlllllOOlllllOOlllllOOlllllOOlllllOOlllllOOlllllOOlllllOOllllOOOOllllOOlllOlOOlllllOOlllllOOlllllOOlllOlOOlllllOOOllllOOlllOlOOlllllOOlllllOOlllllOOlllllOOlllllOOlllllOOlllllOOlllllOOlllllOOlllllOOlllllOOlllllOOlllllOOlllllOOllllOOOlllllOOlllllOOlllllOOlllllOOlllllOOlllllOOlllllOOlllllOOlllllOOlllllO","MO1","Ober-Ramstadt Rondell # Modau # Rohrbach # Wembach #"]
["REG",18,"HEAG Verkehrs-GmbH",null,"056_",0,"R","Mo-Fr",1049," ","Darmstadt","Gelenk-Überlandbus-NF",0,0,0,0,0,"2000-01-01T11:31:18","2000-01-01T11:52:00",3.56499999971129,85.55999999307096,null,248,8726,2164.0479999999998,0,0,"OlllllOOlOOOlOOlOOllOOlllllOOlllllOOlllllOOlllllOOlllllOOlllllOOlllllOOlllllOOlllllOOlllllOOlllllOOlllllOOlllllOOlllllOOllllOOOOllllOOlllOlOOlllllOOlllllOOlllllOOlllOlOOlllllOOOllllOOlllOlOOlllllOOlllllOOlllllOOlllllOOlllllOOlllllOOlllllOOlllllOOlllllOOlllllOOlllllOOlllllOOlllllOOlllllOOllllOOOlllllOOlllllOOlllllOOlllllOOlllllOOlllllOOlllllOOlllllOOlllllOOlllllO","MO1","Ober-Ramstadt Rondell # Modau # Rohrbach # Wembach #"]
["REG",18,"HEAG Verkehrs-GmbH",null,"056_",0,"R","Mo-Fr",1149," ","Ober-Ramstadt","Gelenk-Überlandbus-NF",0,0,0,0,0,"2000-01-01T11:49:00","2000-01-01T12:23:30",5.9416666679899208,142.6000000317581,null,248,15360,3809.28,0,0,"OlllllOOlOOOlOOlOOllOOlllllOOlllllOOlllllOOlllllOOlllllOOlllllOOlllllOOlllllOOlllllOOlllllOOlllllOOlllllOOlllllOOlllllOOllllOOOOllllOOlllOlOOlllllOOlllllOOlllllOOlllOlOOlllllOOOllllOOlllOlOOlllllOOlllllOOlllllOOlllllOOlllllOOlllllOOlllllOOlllllOOlllllOOlllllOOlllllOOlllllOOlllllOOlllllOOllllOOOlllllOOlllllOOlllllOOlllllOOlllllOOlllllOOlllllOOlllllOOlllllOOlllllO","MO1","Ober-Ramstadt Rondell # Modau # Rohrbach # Wembach #"]
["REG",18,"HEAG Verkehrs-GmbH",null,"056_",0,"R","Mo-Fr",1149," ","Roßdorf","Gelenk-Überlandbus-NF",0,0,0,0,0,"2000-01-01T12:23:30","2000-01-01T12:31:18",1.3433333333814517,32.24000000115484,null,248,3449,855.35199999999998,0,0,"OlllllOOlOOOlOOlOOllOOlllllOOlllllOOlllllOOlllllOOlllllOOlllllOOlllllOOlllllOOlllllOOlllllOOlllllOOlllllOOlllllOOlllllOOllllOOOOllllOOlllOlOOlllllOOlllllOOlllllOOlllOlOOlllllOOOllllOOlllOlOOlllllOOlllllOOlllllOOlllllOOlllllOOlllllOOlllllOOlllllOOlllllOOlllllOOlllllOOlllllOOlllllOOlllllOOllllOOOlllllOOlllllOOlllllOOlllllOOlllllOOlllllOOlllllOOlllllOOlllllOOlllllO","MO1","Ober-Ramstadt Rondell # Modau # Rohrbach # Wembach #"]
["REG",18,"HEAG Verkehrs-GmbH",null,"056_",0,"R","Mo-Fr",1149," ","Darmstadt","Gelenk-Überlandbus-NF",0,0,0,0,0,"2000-01-01T12:31:18","2000-01-01T12:52:00",3.56499999971129,85.55999999307096,null,248,8726,2164.0479999999998,0,0,"OlllllOOlOOOlOOlOOllOOlllllOOlllllOOlllllOOlllllOOlllllOOlllllOOlllllOOlllllOOlllllOOlllllOOlllllOOlllllOOlllllOOlllllOOllllOOOOllllOOlllOlOOlllllOOlllllOOlllllOOlllOlOOlllllOOOllllOOlllOlOOlllllOOlllllOOlllllOOlllllOOlllllOOlllllOOlllllOOlllllOOlllllOOlllllOOlllllOOlllllOOlllllOOlllllOOllllOOOlllllOOlllllOOlllllOOlllllOOlllllOOlllllOOlllllOOlllllOOlllllOOlllllO","MO1","Ober-Ramstadt Rondell # Modau # Rohrbach # Wembach #"]
["REG",18,"HEAG Verkehrs-GmbH",null,"056_",0,"R","Mo-Fr",1249," ","Ober-Ramstadt","Gelenk-Überlandbus-NF",0,0,0,0,0,"2000-01-01T12:49:00","2000-01-01T13:23:30",5.9416666661854833,142.5999999884516,null,248,15360,3809.28,0,0,"OlllllOOlOOOlOOlOOllOOlllllOOlllllOOlllllOOlllllOOlllllOOlllllOOlllllOOlllllOOlllllOOlllllOOlllllOOlllllOOlllllOOlllllOOllllOOOOllllOOlllOlOOlllllOOlllllOOlllllOOlllOlOOlllllOOOllllOOlllOlOOlllllOOlllllOOlllllOOlllllOOlllllOOlllllOOlllllOOlllllOOlllllOOlllllOOlllllOOlllllOOlllllOOlllllOOllllOOOlllllOOlllllOOlllllOOlllllOOlllllOOlllllOOlllllOOlllllOOlllllOOlllllO","MO1","Ober-Ramstadt Rondell # Modau # Rohrbach # Wembach #"]
["REG",18,"HEAG Verkehrs-GmbH",null,"056_",0,"R","Mo-Fr",1249," ","Roßdorf","Gelenk-Überlandbus-NF",0,0,0,0,0,"2000-01-01T13:23:30","2000-01-01T13:31:18",1.3433333333814517,32.24000000115484,null,248,3449,855.35199999999998,0,0,"OlllllOOlOOOlOOlOOllOOlllllOOlllllOOlllllOOlllllOOlllllOOlllllOOlllllOOlllllOOlllllOOlllllOOlllllOOlllllOOlllllOOlllllOOllllOOOOllllOOlllOlOOlllllOOlllllOOlllllOOlllOlOOlllllOOOllllOOlllOlOOlllllOOlllllOOlllllOOlllllOOlllllOOlllllOOlllllOOlllllOOlllllOOlllllOOlllllOOlllllOOlllllOOlllllOOllllOOOlllllOOlllllOOlllllOOlllllOOlllllOOlllllOOlllllOOlllllOOlllllOOlllllO","MO1","Ober-Ramstadt Rondell # Modau # Rohrbach # Wembach #"]
["REG",18,"HEAG Verkehrs-GmbH",null,"056_",0,"R","Mo-Fr",1249," ","Darmstadt","Gelenk-Überlandbus-NF",0,0,0,0,0,"2000-01-01T13:31:18","2000-01-01T13:52:00",3.56499999971129,85.55999999307096,null,248,8726,2164.0479999999998,0,0,"OlllllOOlOOOlOOlOOllOOlllllOOlllllOOlllllOOlllllOOlllllOOlllllOOlllllOOlllllOOlllllOOlllllOOlllllOOlllllOOlllllOOlllllOOllllOOOOllllOOlllOlOOlllllOOlllllOOlllllOOlllOlOOlllllOOOllllOOlllOlOOlllllOOlllllOOlllllOOlllllOOlllllOOlllllOOlllllOOlllllOOlllllOOlllllOOlllllOOlllllOOlllllOOlllllOOllllOOOlllllOOlllllOOlllllOOlllllOOlllllOOlllllOOlllllOOlllllOOlllllOOlllllO","MO1","Ober-Ramstadt Rondell # Modau # Rohrbach # Wembach #"]
["REG",18,"HEAG Verkehrs-GmbH",null,"056_",0,"R","Mo-Fr",1349," ","Ober-Ramstadt","Gelenk-Überlandbus-NF",0,0,0,0,0,"2000-01-01T13:49:00","2000-01-01T14:23:30",5.9416666661854833,142.5999999884516,null,248,15360,3809.28,0,0,"OlllllOOlOOOlOOlOOllOOlllllOOlllllOOlllllOOlllllOOlllllOOlllllOOlllllOOlllllOOlllllOOlllllOOlllllOOlllllOOlllllOOlllllOOllllOOOOllllOOlllOlOOlllllOOlllllOOlllllOOlllOlOOlllllOOOllllOOlllOlOOlllllOOlllllOOlllllOOlllllOOlllllOOlllllOOlllllOOlllllOOlllllOOlllllOOlllllOOlllllOOlllllOOlllllOOllllOOOlllllOOlllllOOlllllOOlllllOOlllllOOlllllOOlllllOOlllllOOlllllOOlllllO","MO1","Ober-Ramstadt Rondell # Modau # Rohrbach # Wembach #"]
["REG",18,"HEAG Verkehrs-GmbH",null,"056_",0,"R","Mo-Fr",1349," ","Roßdorf","Gelenk-Überlandbus-NF",0,0,0,0,0,"2000-01-01T14:23:30","2000-01-01T14:31:18",1.3433333333814517,32.24000000115484,null,248,3449,855.35199999999998,0,0,"OlllllOOlOOOlOOlOOllOOlllllOOlllllOOlllllOOlllllOOlllllOOlllllOOlllllOOlllllOOlllllOOlllllOOlllllOOlllllOOlllllOOlllllOOllllOOOOllllOOlllOlOOlllllOOlllllOOlllllOOlllOlOOlllllOOOllllOOlllOlOOlllllOOlllllOOlllllOOlllllOOlllllOOlllllOOlllllOOlllllOOlllllOOlllllOOlllllOOlllllOOlllllOOlllllOOllllOOOlllllOOlllllOOlllllOOlllllOOlllllOOlllllOOlllllOOlllllOOlllllOOlllllO","MO1","Ober-Ramstadt Rondell # Modau # Rohrbach # Wembach #"]
["REG",18,"HEAG Verkehrs-GmbH",null,"056_",0,"R","Mo-Fr",1349," ","Darmstadt","Gelenk-Überlandbus-NF",0,0,0,0,0,"2000-01-01T14:31:18","2000-01-01T14:52:00",3.56499999971129,85.55999999307096,null,248,8726,2164.0479999999998,0,0,"OlllllOOlOOOlOOlOOllOOlllllOOlllllOOlllllOOlllllOOlllllOOlllllOOlllllOOlllllOOlllllOOlllllOOlllllOOlllllOOlllllOOlllllOOllllOOOOllllOOlllOlOOlllllOOlllllOOlllllOOlllOlOOlllllOOOllllOOlllOlOOlllllOOlllllOOlllllOOlllllOOlllllOOlllllOOlllllOOlllllOOlllllOOlllllOOlllllOOlllllOOlllllOOlllllOOllllOOOlllllOOlllllOOlllllOOlllllOOlllllOOlllllOOlllllOOlllllOOlllllOOlllllO","MO1","Ober-Ramstadt Rondell # Modau # Rohrbach # Wembach #"]
["REG",18,"HEAG Verkehrs-GmbH",null,"056_",0,"R","Mo-Fr",1449," ","Ober-Ramstadt","Gelenk-Überlandbus-NF",0,0,0,0,0,"2000-01-01T14:49:00","2000-01-01T15:23:30",5.9416666679899208,142.6000000317581,null,248,15360,3809.28,0,0,"OlllllOOlOOOlOOlOOllOOlllllOOlllllOOlllllOOlllllOOlllllOOlllllOOlllllOOlllllOOlllllOOlllllOOlllllOOlllllOOlllllOOlllllOOllllOOOOllllOOlllOlOOlllllOOlllllOOlllllOOlllOlOOlllllOOOllllOOlllOlOOlllllOOlllllOOlllllOOlllllOOlllllOOlllllOOlllllOOlllllOOlllllOOlllllOOlllllOOlllllOOlllllOOlllllOOllllOOOlllllOOlllllOOlllllOOlllllOOlllllOOlllllOOlllllOOlllllOOlllllOOlllllO","MO1","Ober-Ramstadt Rondell # Modau # Rohrbach # Wembach #"]
["REG",18,"HEAG Verkehrs-GmbH",null,"056_",0,"R","Mo-Fr",1449," ","Roßdorf","Gelenk-Überlandbus-NF",0,0,0,0,0,"2000-01-01T15:23:30","2000-01-01T15:31:18",1.3433333333814517,32.24000000115484,null,248,3449,855.35199999999998,0,0,"OlllllOOlOOOlOOlOOllOOlllllOOlllllOOlllllOOlllllOOlllllOOlllllOOlllllOOlllllOOlllllOOlllllOOlllllOOlllllOOlllllOOlllllOOllllOOOOllllOOlllOlOOlllllOOlllllOOlllllOOlllOlOOlllllOOOllllOOlllOlOOlllllOOlllllOOlllllOOlllllOOlllllOOlllllOOlllllOOlllllOOlllllOOlllllOOlllllOOlllllOOlllllOOlllllOOllllOOOlllllOOlllllOOlllllOOlllllOOlllllOOlllllOOlllllOOlllllOOlllllOOlllllO","MO1","Ober-Ramstadt Rondell # Modau # Rohrbach # Wembach #"]
["REG",18,"HEAG Verkehrs-GmbH",null,"056_",0,"R","Mo-Fr",1449," ","Darmstadt","Gelenk-Überlandbus-NF",0,0,0,0,0,"2000-01-01T15:31:18","2000-01-01T15:52:00",3.56499999971129,85.55999999307096,null,248,8726,2164.0479999999998,0,0,"OlllllOOlOOOlOOlOOllOOlllllOOlllllOOlllllOOlllllOOlllllOOlllllOOlllllOOlllllOOlllllOOlllllOOlllllOOlllllOOlllllOOlllllOOllllOOOOllllOOlllOlOOlllllOOlllllOOlllllOOlllOlOOlllllOOOllllOOlllOlOOlllllOOlllllOOlllllOOlllllOOlllllOOlllllOOlllllOOlllllOOlllllOOlllllOOlllllOOlllllOOlllllOOlllllOOllllOOOlllllOOlllllOOlllllOOlllllOOlllllOOlllllOOlllllOOlllllOOlllllOOlllllO","MO1","Ober-Ramstadt Rondell # Modau # Rohrbach # Wembach #"]
["REG",18,"HEAG Verkehrs-GmbH",null,"056_",0,"R","Mo-Fr",1513," ","Ober-Ramstadt","Gelenk-Überlandbus-NF",0,0,0,0,0,"2000-01-01T15:13:00","2000-01-01T15:40:30",3.7048611104837619,88.916666651610285,"09    - nur an Schultagen",194,11152,2163.4879999999998,0,0,"OlllllOOOOOOOOOOOOOOOOlllllOOlllllOOlllllOOlllllOOlllllOOlllllOOlllllOOlllllOOlllllOOlllllOOlllllOOlllllOOlllllOOOOOOOOOOOOOOOOOllllOOlllOlOOlllllOOlllllOOlllllOOlllOlOOlllllOOOllllOOlllOlOOlllllOOlllllOOOOOOOOOOOOOOOOOOOOOOOOOOOOOOOOOOOOOOOOOOOOlllllOOlllllOOlllllOOlllllOOlllllOOlllllOOllllOOOOOOOOOOOOOOOOOlllllOOlllllOOlllllOOlllllOOlllllOOlllllOOlllllOOlllllO","MO1","Ober-Ramstadt Rondell # Modau # Rohrbach # Wembach #"]
["REG",18,"HEAG Verkehrs-GmbH",null,"056_",0,"R","Mo-Fr",1513," ","Roßdorf","Gelenk-Überlandbus-NF",0,0,0,0,0,"2000-01-01T15:40:30","2000-01-01T15:47:00",0.87569444447581191,21.016666667419486,"09    - nur an Schultagen",194,2052,398.08800000000002,0,0,"OlllllOOOOOOOOOOOOOOOOlllllOOlllllOOlllllOOlllllOOlllllOOlllllOOlllllOOlllllOOlllllOOlllllOOlllllOOlllllOOlllllOOOOOOOOOOOOOOOOOllllOOlllOlOOlllllOOlllllOOlllllOOlllOlOOlllllOOOllllOOlllOlOOlllllOOlllllOOOOOOOOOOOOOOOOOOOOOOOOOOOOOOOOOOOOOOOOOOOOlllllOOlllllOOlllllOOlllllOOlllllOOlllllOOllllOOOOOOOOOOOOOOOOOlllllOOlllllOOlllllOOlllllOOlllllOOlllllOOlllllOOlllllO","MO1","Ober-Ramstadt Rondell # Modau # Rohrbach # Wembach #"]
["REG",18,"HEAG Verkehrs-GmbH",null,"056_",0,"R","Mo-Fr",1549," ","Ober-Ramstadt","Gelenk-Überlandbus-NF",0,0,0,0,0,"2000-01-01T15:49:00","2000-01-01T16:23:30",5.9416666661854833,142.5999999884516,null,248,15360,3809.28,0,0,"OlllllOOlOOOlOOlOOllOOlllllOOlllllOOlllllOOlllllOOlllllOOlllllOOlllllOOlllllOOlllllOOlllllOOlllllOOlllllOOlllllOOlllllOOllllOOOOllllOOlllOlOOlllllOOlllllOOlllllOOlllOlOOlllllOOOllllOOlllOlOOlllllOOlllllOOlllllOOlllllOOlllllOOlllllOOlllllOOlllllOOlllllOOlllllOOlllllOOlllllOOlllllOOlllllOOllllOOOlllllOOlllllOOlllllOOlllllOOlllllOOlllllOOlllllOOlllllOOlllllOOlllllO","MO1","Ober-Ramstadt Rondell # Modau # Rohrbach # Wembach #"]
["REG",18,"HEAG Verkehrs-GmbH",null,"056_",0,"R","Mo-Fr",1549," ","Roßdorf","Gelenk-Überlandbus-NF",0,0,0,0,0,"2000-01-01T16:23:30","2000-01-01T16:31:18",1.3433333333814517,32.24000000115484,null,248,3449,855.35199999999998,0,0,"OlllllOOlOOOlOOlOOllOOlllllOOlllllOOlllllOOlllllOOlllllOOlllllOOlllllOOlllllOOlllllOOlllllOOlllllOOlllllOOlllllOOlllllOOllllOOOOllllOOlllOlOOlllllOOlllllOOlllllOOlllOlOOlllllOOOllllOOlllOlOOlllllOOlllllOOlllllOOlllllOOlllllOOlllllOOlllllOOlllllOOlllllOOlllllOOlllllOOlllllOOlllllOOlllllOOllllOOOlllllOOlllllOOlllllOOlllllOOlllllOOlllllOOlllllOOlllllOOlllllOOlllllO","MO1","Ober-Ramstadt Rondell # Modau # Rohrbach # Wembach #"]
["REG",18,"HEAG Verkehrs-GmbH",null,"056_",0,"R","Mo-Fr",1549," ","Darmstadt","Gelenk-Überlandbus-NF",0,0,0,0,0,"2000-01-01T16:31:18","2000-01-01T16:52:00",3.56499999971129,85.55999999307096,null,248,8726,2164.0479999999998,0,0,"OlllllOOlOOOlOOlOOllOOlllllOOlllllOOlllllOOlllllOOlllllOOlllllOOlllllOOlllllOOlllllOOlllllOOlllllOOlllllOOlllllOOlllllOOllllOOOOllllOOlllOlOOlllllOOlllllOOlllllOOlllOlOOlllllOOOllllOOlllOlOOlllllOOlllllOOlllllOOlllllOOlllllOOlllllOOlllllOOlllllOOlllllOOlllllOOlllllOOlllllOOlllllOOlllllOOllllOOOlllllOOlllllOOlllllOOlllllOOlllllOOlllllOOlllllOOlllllOOlllllOOlllllO","MO1","Ober-Ramstadt Rondell # Modau # Rohrbach # Wembach #"]
["REG",18,"HEAG Verkehrs-GmbH",null,"056_",0,"R","Mo-Fr",1649," ","Ober-Ramstadt","Gelenk-Überlandbus-NF",0,0,0,0,0,"2000-01-01T16:49:00","2000-01-01T17:23:30",5.9416666661854833,142.5999999884516,null,248,15360,3809.28,0,0,"OlllllOOlOOOlOOlOOllOOlllllOOlllllOOlllllOOlllllOOlllllOOlllllOOlllllOOlllllOOlllllOOlllllOOlllllOOlllllOOlllllOOlllllOOllllOOOOllllOOlllOlOOlllllOOlllllOOlllllOOlllOlOOlllllOOOllllOOlllOlOOlllllOOlllllOOlllllOOlllllOOlllllOOlllllOOlllllOOlllllOOlllllOOlllllOOlllllOOlllllOOlllllOOlllllOOllllOOOlllllOOlllllOOlllllOOlllllOOlllllOOlllllOOlllllOOlllllOOlllllOOlllllO","MO1","Ober-Ramstadt Rondell # Modau # Rohrbach # Wembach #"]
["REG",18,"HEAG Verkehrs-GmbH",null,"056_",0,"R","Mo-Fr",1649," ","Roßdorf","Gelenk-Überlandbus-NF",0,0,0,0,0,"2000-01-01T17:23:30","2000-01-01T17:31:18",1.3433333333814517,{"$f":"T195*24","v":32.24000000115484},null,248,3449,855.35199999999998,0,0,"OlllllOOlOOOlOOlOOllOOlllllOOlllllOOlllllOOlllllOOlllllOOlllllOOlllllOOlllllOOlllllOOlllllOOlllllOOlllllOOlllllOOlllllOOllllOOOOllllOOlllOlOOlllllOOlllllOOlllllOOlllOlOOlllllOOOllllOOlllOlOOlllllOOlllllOOlllllOOlllllOOlllllOOlllllOOlllllOOlllllOOlllllOOlllllOOlllllOOlllllOOlllllOOlllllOOllllOOOlllllOOlllllOOlllllOOlllllOOlllllOOlllllOOlllllOOlllllOOlllllOOlllllO","MO1","Ober-Ramstadt Rondell # Modau # Rohrbach # Wembach #"]
["REG",18,"HEAG Verkehrs-GmbH",null,"056_",0,"R","Mo-Fr",1649," ","Darmstadt","Gelenk-Überlandbus-NF",0,0,0,0,0,"2000-01-01T17:31:18","2000-01-01T17:52:00",3.56499999971129,85.55999999307096,null,248,8726,2164.0479999999998,0,0,"OlllllOOlOOOlOOlOOllOOlllllOOlllllOOlllllOOlllllOOlllllOOlllllOOlllllOOlllllOOlllllOOlllllOOlllllOOlllllOOlllllOOlllllOOllllOOOOllllOOlllOlOOlllllOOlllllOOlllllOOlllOlOOlllllOOOllllOOlllOlOOlllllOOlllllOOlllllOOlllllOOlllllOOlllllOOlllllOOlllllOOlllllOOlllllOOlllllOOlllllOOlllllOOlllllOOllllOOOlllllOOlllllOOlllllOOlllllOOlllllOOlllllOOlllllOOlllllOOlllllOOlllllO","MO1","Ober-Ramstadt Rondell # Modau # Rohrbach # Wembach #"]
["REG",18,"HEAG Verkehrs-GmbH",null,"056_",0,"R","Mo-Fr",1749," ","Ober-Ramstadt","Gelenk-Überlandbus-NF",0,0,0,0,0,"2000-01-01T17:49:00","2000-01-01T18:23:30",5.9416666679899208,142.6000000317581,null,248,15360,3809.28,0,0,"OlllllOOlOOOlOOlOOllOOlllllOOlllllOOlllllOOlllllOOlllllOOlllllOOlllllOOlllllOOlllllOOlllllOOlllllOOlllllOOlllllOOlllllOOllllOOOOllllOOlllOlOOlllllOOlllllOOlllllOOlllOlOOlllllOOOllllOOlllOlOOlllllOOlllllOOlllllOOlllllOOlllllOOlllllOOlllllOOlllllOOlllllOOlllllOOlllllOOlllllOOlllllOOlllllOOllllOOOlllllOOlllllOOlllllOOlllllOOlllllOOlllllOOlllllOOlllllOOlllllOOlllllO","MO1","Ober-Ramstadt Rondell # Modau # Rohrbach # Wembach #"]
["REG",18,"HEAG Verkehrs-GmbH",null,"056_",0,"R","Mo-Fr",1749," ","Roßdorf","Gelenk-Überlandbus-NF",0,0,0,0,0,"2000-01-01T18:23:30","2000-01-01T18:31:18",1.3433333333814517,32.24000000115484,null,248,3449,855.35199999999998,0,0,"OlllllOOlOOOlOOlOOllOOlllllOOlllllOOlllllOOlllllOOlllllOOlllllOOlllllOOlllllOOlllllOOlllllOOlllllOOlllllOOlllllOOlllllOOllllOOOOllllOOlllOlOOlllllOOlllllOOlllllOOlllOlOOlllllOOOllllOOlllOlOOlllllOOlllllOOlllllOOlllllOOlllllOOlllllOOlllllOOlllllOOlllllOOlllllOOlllllOOlllllOOlllllOOlllllOOllllOOOlllllOOlllllOOlllllOOlllllOOlllllOOlllllOOlllllOOlllllOOlllllOOlllllO","MO1","Ober-Ramstadt Rondell # Modau # Rohrbach # Wembach #"]
["REG",18,"HEAG Verkehrs-GmbH",null,"056_",0,"R","Mo-Fr",1749," ","Darmstadt","Gelenk-Überlandbus-NF",0,0,0,0,0,"2000-01-01T18:31:18","2000-01-01T18:52:00",3.56499999971129,85.55999999307096,null,248,8726,2164.0479999999998,0,0,"OlllllOOlOOOlOOlOOllOOlllllOOlllllOOlllllOOlllllOOlllllOOlllllOOlllllOOlllllOOlllllOOlllllOOlllllOOlllllOOlllllOOlllllOOllllOOOOllllOOlllOlOOlllllOOlllllOOlllllOOlllOlOOlllllOOOllllOOlllOlOOlllllOOlllllOOlllllOOlllllOOlllllOOlllllOOlllllOOlllllOOlllllOOlllllOOlllllOOlllllOOlllllOOlllllOOllllOOOlllllOOlllllOOlllllOOlllllOOlllllOOlllllOOlllllOOlllllOOlllllOOlllllO","MO1","Ober-Ramstadt Rondell # Modau # Rohrbach # Wembach #"]
["REG",18,"HEAG Verkehrs-GmbH",null,"056_",0,"R","Mo-Fr",1849," ","Ober-Ramstadt","Gelenk-Überlandbus-NF",0,0,0,0,0,"2000-01-01T18:49:00","2000-01-01T19:23:30",5.9416666661854833,142.5999999884516,null,248,15360,3809.28,0,0,"OlllllOOlOOOlOOlOOllOOlllllOOlllllOOlllllOOlllllOOlllllOOlllllOOlllllOOlllllOOlllllOOlllllOOlllllOOlllllOOlllllOOlllllOOllllOOOOllllOOlllOlOOlllllOOlllllOOlllllOOlllOlOOlllllOOOllllOOlllOlOOlllllOOlllllOOlllllOOlllllOOlllllOOlllllOOlllllOOlllllOOlllllOOlllllOOlllllOOlllllOOlllllOOlllllOOllllOOOlllllOOlllllOOlllllOOlllllOOlllllOOlllllOOlllllOOlllllOOlllllOOlllllO","MO1","Ober-Ramstadt Rondell # Modau # Rohrbach # Wembach #"]
["REG",18,"HEAG Verkehrs-GmbH",null,"056_",0,"R","Mo-Fr",1849," ","Roßdorf","Gelenk-Überlandbus-NF",0,0,0,0,0,"2000-01-01T19:23:30","2000-01-01T19:31:18",1.3433333333814517,32.24000000115484,null,248,3449,855.35199999999998,0,0,"OlllllOOlOOOlOOlOOllOOlllllOOlllllOOlllllOOlllllOOlllllOOlllllOOlllllOOlllllOOlllllOOlllllOOlllllOOlllllOOlllllOOlllllOOllllOOOOllllOOlllOlOOlllllOOlllllOOlllllOOlllOlOOlllllOOOllllOOlllOlOOlllllOOlllllOOlllllOOlllllOOlllllOOlllllOOlllllOOlllllOOlllllOOlllllOOlllllOOlllllOOlllllOOlllllOOllllOOOlllllOOlllllOOlllllOOlllllOOlllllOOlllllOOlllllOOlllllOOlllllOOlllllO","MO1","Ober-Ramstadt Rondell # Modau # Rohrbach # Wembach #"]
["REG",18,"HEAG Verkehrs-GmbH",null,"056_",0,"R","Mo-Fr",1849," ","Darmstadt","Gelenk-Überlandbus-NF",0,0,0,0,0,"2000-01-01T19:31:18","2000-01-01T19:52:00",3.56499999971129,85.55999999307096,null,248,8726,2164.0479999999998,0,0,"OlllllOOlOOOlOOlOOllOOlllllOOlllllOOlllllOOlllllOOlllllOOlllllOOlllllOOlllllOOlllllOOlllllOOlllllOOlllllOOlllllOOlllllOOllllOOOOllllOOlllOlOOlllllOOlllllOOlllllOOlllOlOOlllllOOOllllOOlllOlOOlllllOOlllllOOlllllOOlllllOOlllllOOlllllOOlllllOOlllllOOlllllOOlllllOOlllllOOlllllOOlllllOOlllllOOllllOOOlllllOOlllllOOlllllOOlllllOOlllllOOlllllOOlllllOOlllllOOlllllOOlllllO","MO1","Ober-Ramstadt Rondell # Modau # Rohrbach # Wembach #"]
["REG",18,"HEAG Verkehrs-GmbH",null,"056_",0,"R","Mo-Fr",2213," ","Ober-Ramstadt","Solo-Überlandbus-NF",0,0,0,0,0,"2000-01-01T22:13:00","2000-01-01T22:36:00",3.9611111113918014,95.066666673403233,null,248,10913,2706.424,0,0,"OlllllOOlOOOlOOlOOllOOlllllOOlllllOOlllllOOlllllOOlllllOOlllllOOlllllOOlllllOOlllllOOlllllOOlllllOOlllllOOlllllOOlllllOOllllOOOOllllOOlllOlOOlllllOOlllllOOlllllOOlllOlOOlllllOOOllllOOlllOlOOlllllOOlllllOOlllllOOlllllOOlllllOOlllllOOlllllOOlllllOOlllllOOlllllOOlllllOOlllllOOlllllOOlllllOOllllOOOlllllOOlllllOOlllllOOlllllOOlllllOOlllllOOlllllOOlllllOOlllllOOlllllO","MO1","Ober-Ramstadt Rondell # Modau # Rohrbach # Wembach #"]
["REG",18,"HEAG Verkehrs-GmbH",null,"056_",0,"R","Mo-Fr",2313," ","Ober-Ramstadt","Solo-Überlandbus-NF",0,0,0,0,0,"2000-01-01T23:13:00","2000-01-01T23:36:00",3.9611111095873639,95.066666630096734,null,248,10913,2706.424,0,0,"OlllllOOlOOOlOOlOOllOOlllllOOlllllOOlllllOOlllllOOlllllOOlllllOOlllllOOlllllOOlllllOOlllllOOlllllOOlllllOOlllllOOlllllOOllllOOOOllllOOlllOlOOlllllOOlllllOOlllllOOlllOlOOlllllOOOllllOOlllOlOOlllllOOlllllOOlllllOOlllllOOlllllOOlllllOOlllllOOlllllOOlllllOOlllllOOlllllOOlllllOOlllllOOlllllOOllllOOOlllllOOlllllOOlllllOOlllllOOlllllOOlllllOOlllllOOlllllOOlllllOOlllllO","MO1","Ober-Ramstadt Rondell # Modau # Rohrbach # Wembach #"]
["REG",18,"HEAG Verkehrs-GmbH",null,"056_",0,"R","Mo-Fr",2413," ","Ober-Ramstadt","Solo-Überlandbus-NF",0,0,0,0,0,"2000-01-02T00:13:00","2000-01-02T00:36:00",3.9611111113918014,95.066666673403233,null,248,10913,2706.424,0,0,"OlllllOOlOOOlOOlOOllOOlllllOOlllllOOlllllOOlllllOOlllllOOlllllOOlllllOOlllllOOlllllOOlllllOOlllllOOlllllOOlllllOOlllllOOllllOOOOllllOOlllOlOOlllllOOlllllOOlllllOOlllOlOOlllllOOOllllOOlllOlOOlllllOOlllllOOlllllOOlllllOOlllllOOlllllOOlllllOOlllllOOlllllOOlllllOOlllllOOlllllOOlllllOOlllllOOllllOOOlllllOOlllllOOlllllOOlllllOOlllllOOlllllOOlllllOOlllllOOlllllOOlllllO","MO1","Ober-Ramstadt Rondell # Modau # Rohrbach # Wembach #"]
["REG",18,"HEAG Verkehrs-GmbH",null,"056_",0,"R","Mo-Fr",2513," ","Ober-Ramstadt","Solo-Überlandbus-NF",0,0,0,0,0,"2000-01-02T01:13:00","2000-01-02T01:36:00",0.95833333340124227,23.000000001629815,"ed    - gültig Nächte Fr/Sa, auch Nächte 03./04.03., 04./05.03., 17./18.04., 30.04./01.0",60,10913,654.78,0,0,"OOOOOlOOOOOOlOOOOOOlOOOOOOlOOOOOOlOOOOOOlOOOOOOlOOOOOOlOOOOOOlOOOOOOlOOOOOOlOOllOOlOOOOOOlOOOOOOlOOOOOOlOOOOOOlOOOOOOlOOOOOlOOOOOOOlOOOOlOlOOOOOOlOOOOOOlOOOOOOlOOOOlOlOOOOOllOOOOOOlOOOOlOlOOOOOOlOOOOOllOOlOOOlOOOOOOlOOOOOOlOOOOOOlOOOOOOlOOOOOOlOOOOOOlOOOOOOlOOOOOOlOOOOOOlOOOOOOlOOOOOOlOOOOOlOOOOOOOlOOOOOOlOOOOOOlOOOOOOlOOOOOOlOOOOOOlOOOOOOlOOOOOOlOOOOOOlOOOOOOlO","MO1","Ober-Ramstadt Rondell # Modau # Rohrbach # Wembach #"]
["REG",18,"HEAG Verkehrs-GmbH",null,"056_",0,"R","Sa",549," ","Ober-Ramstadt","Gelenk-Überlandbus-NF",0,0,0,0,0,"2000-01-01T05:49:00","2000-01-01T06:23:30",1.2937500002881279,31.05000000691507,null,54,15360,829.44,0,0,"OOOOOOlOOlOOOlOOlOOOlOOOOOOlOOOOOOlOOOOOOlOOOOOOlOOOOOOlOOOOOOlOOOOOOlOOOOOOlOOOOOOlOOOOOOlOOOOOOlOOOOOOlOOOOOOlOOOOOOlOOOOOOlOOOOOOlOOOOOOlOOOOOOlOOOOOOlOOOOOOlOOOOOOlOOOOOOlOOOOOOlOOOOOOlOOOOOOlOOOOOOlOOOOOOlOOOOOOlOOOOOOlOOOOOOlOOOOOOlOOOOOOlOOOOOOlOOOOOOlOOOOOOlOOOOOOlOOOOOOlOOOOOOlOOOOOOlOOOOOOlOOOOOOlOOOOOOlOOOOOOlOOOOOOlOOOOOOlOOOOOOlOOOOOOlOOOOOOlOOOOOOl","MO1","Ober-Ramstadt Rondell # Modau # Rohrbach # Wembach #"]
["REG",18,"HEAG Verkehrs-GmbH",null,"056_",0,"R","Sa",549," ","Roßdorf","Gelenk-Überlandbus-NF",0,0,0,0,0,"2000-01-01T06:23:30","2000-01-01T06:31:18",0.29250000001047738,7.0200000002514571,null,54,3449,186.24600000000001,0,0,"OOOOOOlOOlOOOlOOlOOOlOOOOOOlOOOOOOlOOOOOOlOOOOOOlOOOOOOlOOOOOOlOOOOOOlOOOOOOlOOOOOOlOOOOOOlOOOOOOlOOOOOOlOOOOOOlOOOOOOlOOOOOOlOOOOOOlOOOOOOlOOOOOOlOOOOOOlOOOOOOlOOOOOOlOOOOOOlOOOOOOlOOOOOOlOOOOOOlOOOOOOlOOOOOOlOOOOOOlOOOOOOlOOOOOOlOOOOOOlOOOOOOlOOOOOOlOOOOOOlOOOOOOlOOOOOOlOOOOOOlOOOOOOlOOOOOOlOOOOOOlOOOOOOlOOOOOOlOOOOOOlOOOOOOlOOOOOOlOOOOOOlOOOOOOlOOOOOOlOOOOOOl","MO1","Ober-Ramstadt Rondell # Modau # Rohrbach # Wembach #"]
["REG",18,"HEAG Verkehrs-GmbH",null,"056_",0,"R","Sa",549," ","Darmstadt","Gelenk-Überlandbus-NF",0,0,0,0,0,"2000-01-01T06:31:18","2000-01-01T06:52:00",0.77624999993713573,18.629999998491257,null,54,8726,471.20400000000001,0,0,"OOOOOOlOOlOOOlOOlOOOlOOOOOOlOOOOOOlOOOOOOlOOOOOOlOOOOOOlOOOOOOlOOOOOOlOOOOOOlOOOOOOlOOOOOOlOOOOOOlOOOOOOlOOOOOOlOOOOOOlOOOOOOlOOOOOOlOOOOOOlOOOOOOlOOOOOOlOOOOOOlOOOOOOlOOOOOOlOOOOOOlOOOOOOlOOOOOOlOOOOOOlOOOOOOlOOOOOOlOOOOOOlOOOOOOlOOOOOOlOOOOOOlOOOOOOlOOOOOOlOOOOOOlOOOOOOlOOOOOOlOOOOOOlOOOOOOlOOOOOOlOOOOOOlOOOOOOlOOOOOOlOOOOOOlOOOOOOlOOOOOOlOOOOOOlOOOOOOlOOOOOOl","MO1","Ober-Ramstadt Rondell # Modau # Rohrbach # Wembach #"]
["REG",18,"HEAG Verkehrs-GmbH",null,"056_",0,"R","Sa",749," ","Ober-Ramstadt","Gelenk-Überlandbus-NF",0,0,0,0,0,"2000-01-01T07:49:00","2000-01-01T08:23:30",1.2937499998952262,31.049999997485429,null,54,15360,829.44,0,0,"OOOOOOlOOlOOOlOOlOOOlOOOOOOlOOOOOOlOOOOOOlOOOOOOlOOOOOOlOOOOOOlOOOOOOlOOOOOOlOOOOOOlOOOOOOlOOOOOOlOOOOOOlOOOOOOlOOOOOOlOOOOOOlOOOOOOlOOOOOOlOOOOOOlOOOOOOlOOOOOOlOOOOOOlOOOOOOlOOOOOOlOOOOOOlOOOOOOlOOOOOOlOOOOOOlOOOOOOlOOOOOOlOOOOOOlOOOOOOlOOOOOOlOOOOOOlOOOOOOlOOOOOOlOOOOOOlOOOOOOlOOOOOOlOOOOOOlOOOOOOlOOOOOOlOOOOOOlOOOOOOlOOOOOOlOOOOOOlOOOOOOlOOOOOOlOOOOOOlOOOOOOl","MO1","Ober-Ramstadt Rondell # Modau # Rohrbach # Wembach #"]
["REG",18,"HEAG Verkehrs-GmbH",null,"056_",0,"R","Sa",749," ","Roßdorf","Gelenk-Überlandbus-NF",0,0,0,0,0,"2000-01-01T08:23:30","2000-01-01T08:31:18",0.29250000001047738,7.0200000002514571,null,54,3449,186.24600000000001,0,0,"OOOOOOlOOlOOOlOOlOOOlOOOOOOlOOOOOOlOOOOOOlOOOOOOlOOOOOOlOOOOOOlOOOOOOlOOOOOOlOOOOOOlOOOOOOlOOOOOOlOOOOOOlOOOOOOlOOOOOOlOOOOOOlOOOOOOlOOOOOOlOOOOOOlOOOOOOlOOOOOOlOOOOOOlOOOOOOlOOOOOOlOOOOOOlOOOOOOlOOOOOOlOOOOOOlOOOOOOlOOOOOOlOOOOOOlOOOOOOlOOOOOOlOOOOOOlOOOOOOlOOOOOOlOOOOOOlOOOOOOlOOOOOOlOOOOOOlOOOOOOlOOOOOOlOOOOOOlOOOOOOlOOOOOOlOOOOOOlOOOOOOlOOOOOOlOOOOOOlOOOOOOl","MO1","Ober-Ramstadt Rondell # Modau # Rohrbach # Wembach #"]
["REG",18,"HEAG Verkehrs-GmbH",null,"056_",0,"R","Sa",749," ","Darmstadt","Gelenk-Überlandbus-NF",0,0,0,0,0,"2000-01-01T08:31:18","2000-01-01T08:52:00",0.77624999993713573,18.629999998491257,null,54,8726,471.20400000000001,0,0,"OOOOOOlOOlOOOlOOlOOOlOOOOOOlOOOOOOlOOOOOOlOOOOOOlOOOOOOlOOOOOOlOOOOOOlOOOOOOlOOOOOOlOOOOOOlOOOOOOlOOOOOOlOOOOOOlOOOOOOlOOOOOOlOOOOOOlOOOOOOlOOOOOOlOOOOOOlOOOOOOlOOOOOOlOOOOOOlOOOOOOlOOOOOOlOOOOOOlOOOOOOlOOOOOOlOOOOOOlOOOOOOlOOOOOOlOOOOOOlOOOOOOlOOOOOOlOOOOOOlOOOOOOlOOOOOOlOOOOOOlOOOOOOlOOOOOOlOOOOOOlOOOOOOlOOOOOOlOOOOOOlOOOOOOlOOOOOOlOOOOOOlOOOOOOlOOOOOOlOOOOOOl","MO1","Ober-Ramstadt Rondell # Modau # Rohrbach # Wembach #"]
["REG",18,"HEAG Verkehrs-GmbH",null,"056_",0,"R","Sa",849," ","Ober-Ramstadt","Gelenk-Überlandbus-NF",0,0,0,0,0,"2000-01-01T08:49:00","2000-01-01T09:23:30",1.2937500002881279,31.05000000691507,null,54,15360,829.44,0,0,"OOOOOOlOOlOOOlOOlOOOlOOOOOOlOOOOOOlOOOOOOlOOOOOOlOOOOOOlOOOOOOlOOOOOOlOOOOOOlOOOOOOlOOOOOOlOOOOOOlOOOOOOlOOOOOOlOOOOOOlOOOOOOlOOOOOOlOOOOOOlOOOOOOlOOOOOOlOOOOOOlOOOOOOlOOOOOOlOOOOOOlOOOOOOlOOOOOOlOOOOOOlOOOOOOlOOOOOOlOOOOOOlOOOOOOlOOOOOOlOOOOOOlOOOOOOlOOOOOOlOOOOOOlOOOOOOlOOOOOOlOOOOOOlOOOOOOlOOOOOOlOOOOOOlOOOOOOlOOOOOOlOOOOOOlOOOOOOlOOOOOOlOOOOOOlOOOOOOlOOOOOOl","MO1","Ober-Ramstadt Rondell # Modau # Rohrbach # Wembach #"]
["REG",18,"HEAG Verkehrs-GmbH",null,"056_",0,"R","Sa",849," ","Roßdorf","Gelenk-Überlandbus-NF",0,0,0,0,0,"2000-01-01T09:23:30","2000-01-01T09:31:18",0.29250000001047738,7.0200000002514571,null,54,3449,186.24600000000001,0,0,"OOOOOOlOOlOOOlOOlOOOlOOOOOOlOOOOOOlOOOOOOlOOOOOOlOOOOOOlOOOOOOlOOOOOOlOOOOOOlOOOOOOlOOOOOOlOOOOOOlOOOOOOlOOOOOOlOOOOOOlOOOOOOlOOOOOOlOOOOOOlOOOOOOlOOOOOOlOOOOOOlOOOOOOlOOOOOOlOOOOOOlOOOOOOlOOOOOOlOOOOOOlOOOOOOlOOOOOOlOOOOOOlOOOOOOlOOOOOOlOOOOOOlOOOOOOlOOOOOOlOOOOOOlOOOOOOlOOOOOOlOOOOOOlOOOOOOlOOOOOOlOOOOOOlOOOOOOlOOOOOOlOOOOOOlOOOOOOlOOOOOOlOOOOOOlOOOOOOlOOOOOOl","MO1","Ober-Ramstadt Rondell # Modau # Rohrbach # Wembach #"]
["REG",18,"HEAG Verkehrs-GmbH",null,"056_",0,"R","Sa",849," ","Darmstadt","Gelenk-Überlandbus-NF",0,0,0,0,0,"2000-01-01T09:31:18","2000-01-01T09:52:00",0.77624999993713573,18.629999998491257,null,54,8726,471.20400000000001,0,0,"OOOOOOlOOlOOOlOOlOOOlOOOOOOlOOOOOOlOOOOOOlOOOOOOlOOOOOOlOOOOOOlOOOOOOlOOOOOOlOOOOOOlOOOOOOlOOOOOOlOOOOOOlOOOOOOlOOOOOOlOOOOOOlOOOOOOlOOOOOOlOOOOOOlOOOOOOlOOOOOOlOOOOOOlOOOOOOlOOOOOOlOOOOOOlOOOOOOlOOOOOOlOOOOOOlOOOOOOlOOOOOOlOOOOOOlOOOOOOlOOOOOOlOOOOOOlOOOOOOlOOOOOOlOOOOOOlOOOOOOlOOOOOOlOOOOOOlOOOOOOlOOOOOOlOOOOOOlOOOOOOlOOOOOOlOOOOOOlOOOOOOlOOOOOOlOOOOOOlOOOOOOl","MO1","Ober-Ramstadt Rondell # Modau # Rohrbach # Wembach #"]
["REG",18,"HEAG Verkehrs-GmbH",null,"056_",0,"R","Sa",949," ","Ober-Ramstadt","Gelenk-Überlandbus-NF",0,0,0,0,0,"2000-01-01T09:49:00","2000-01-01T10:23:30",1.2937499998952262,31.049999997485429,null,54,15360,829.44,0,0,"OOOOOOlOOlOOOlOOlOOOlOOOOOOlOOOOOOlOOOOOOlOOOOOOlOOOOOOlOOOOOOlOOOOOOlOOOOOOlOOOOOOlOOOOOOlOOOOOOlOOOOOOlOOOOOOlOOOOOOlOOOOOOlOOOOOOlOOOOOOlOOOOOOlOOOOOOlOOOOOOlOOOOOOlOOOOOOlOOOOOOlOOOOOOlOOOOOOlOOOOOOlOOOOOOlOOOOOOlOOOOOOlOOOOOOlOOOOOOlOOOOOOlOOOOOOlOOOOOOlOOOOOOlOOOOOOlOOOOOOlOOOOOOlOOOOOOlOOOOOOlOOOOOOlOOOOOOlOOOOOOlOOOOOOlOOOOOOlOOOOOOlOOOOOOlOOOOOOlOOOOOOl","MO1","Ober-Ramstadt Rondell # Modau # Rohrbach # Wembach #"]
["REG",18,"HEAG Verkehrs-GmbH",null,"056_",0,"R","Sa",949," ","Roßdorf","Gelenk-Überlandbus-NF",0,0,0,0,0,"2000-01-01T10:23:30","2000-01-01T10:31:18",0.29250000001047738,7.0200000002514571,null,54,3449,186.24600000000001,0,0,"OOOOOOlOOlOOOlOOlOOOlOOOOOOlOOOOOOlOOOOOOlOOOOOOlOOOOOOlOOOOOOlOOOOOOlOOOOOOlOOOOOOlOOOOOOlOOOOOOlOOOOOOlOOOOOOlOOOOOOlOOOOOOlOOOOOOlOOOOOOlOOOOOOlOOOOOOlOOOOOOlOOOOOOlOOOOOOlOOOOOOlOOOOOOlOOOOOOlOOOOOOlOOOOOOlOOOOOOlOOOOOOlOOOOOOlOOOOOOlOOOOOOlOOOOOOlOOOOOOlOOOOOOlOOOOOOlOOOOOOlOOOOOOlOOOOOOlOOOOOOlOOOOOOlOOOOOOlOOOOOOlOOOOOOlOOOOOOlOOOOOOlOOOOOOlOOOOOOlOOOOOOl","MO1","Ober-Ramstadt Rondell # Modau # Rohrbach # Wembach #"]
["REG",18,"HEAG Verkehrs-GmbH",null,"056_",0,"R","Sa",949," ","Darmstadt","Gelenk-Überlandbus-NF",0,0,0,0,0,"2000-01-01T10:31:18","2000-01-01T10:52:00",0.77624999993713573,18.629999998491257,null,54,8726,471.20400000000001,0,0,"OOOOOOlOOlOOOlOOlOOOlOOOOOOlOOOOOOlOOOOOOlOOOOOOlOOOOOOlOOOOOOlOOOOOOlOOOOOOlOOOOOOlOOOOOOlOOOOOOlOOOOOOlOOOOOOlOOOOOOlOOOOOOlOOOOOOlOOOOOOlOOOOOOlOOOOOOlOOOOOOlOOOOOOlOOOOOOlOOOOOOlOOOOOOlOOOOOOlOOOOOOlOOOOOOlOOOOOOlOOOOOOlOOOOOOlOOOOOOlOOOOOOlOOOOOOlOOOOOOlOOOOOOlOOOOOOlOOOOOOlOOOOOOlOOOOOOlOOOOOOlOOOOOOlOOOOOOlOOOOOOlOOOOOOlOOOOOOlOOOOOOlOOOOOOlOOOOOOlOOOOOOl","MO1","Ober-Ramstadt Rondell # Modau # Rohrbach # Wembach #"]
["REG",18,"HEAG Verkehrs-GmbH",null,"056_",0,"R","Sa",1049," ","Ober-Ramstadt","Gelenk-Überlandbus-NF",0,0,0,0,0,"2000-01-01T10:49:00","2000-01-01T11:23:30",1.2937499998952262,31.049999997485429,null,54,15360,829.44,0,0,"OOOOOOlOOlOOOlOOlOOOlOOOOOOlOOOOOOlOOOOOOlOOOOOOlOOOOOOlOOOOOOlOOOOOOlOOOOOOlOOOOOOlOOOOOOlOOOOOOlOOOOOOlOOOOOOlOOOOOOlOOOOOOlOOOOOOlOOOOOOlOOOOOOlOOOOOOlOOOOOOlOOOOOOlOOOOOOlOOOOOOlOOOOOOlOOOOOOlOOOOOOlOOOOOOlOOOOOOlOOOOOOlOOOOOOlOOOOOOlOOOOOOlOOOOOOlOOOOOOlOOOOOOlOOOOOOlOOOOOOlOOOOOOlOOOOOOlOOOOOOlOOOOOOlOOOOOOlOOOOOOlOOOOOOlOOOOOOlOOOOOOlOOOOOOlOOOOOOlOOOOOOl","MO1","Ober-Ramstadt Rondell # Modau # Rohrbach # Wembach #"]
["REG",18,"HEAG Verkehrs-GmbH",null,"056_",0,"R","Sa",1049," ","Roßdorf","Gelenk-Überlandbus-NF",0,0,0,0,0,"2000-01-01T11:23:30","2000-01-01T11:31:18",0.29250000001047738,7.0200000002514571,null,54,3449,186.24600000000001,0,0,"OOOOOOlOOlOOOlOOlOOOlOOOOOOlOOOOOOlOOOOOOlOOOOOOlOOOOOOlOOOOOOlOOOOOOlOOOOOOlOOOOOOlOOOOOOlOOOOOOlOOOOOOlOOOOOOlOOOOOOlOOOOOOlOOOOOOlOOOOOOlOOOOOOlOOOOOOlOOOOOOlOOOOOOlOOOOOOlOOOOOOlOOOOOOlOOOOOOlOOOOOOlOOOOOOlOOOOOOlOOOOOOlOOOOOOlOOOOOOlOOOOOOlOOOOOOlOOOOOOlOOOOOOlOOOOOOlOOOOOOlOOOOOOlOOOOOOlOOOOOOlOOOOOOlOOOOOOlOOOOOOlOOOOOOlOOOOOOlOOOOOOlOOOOOOlOOOOOOlOOOOOOl","MO1","Ober-Ramstadt Rondell # Modau # Rohrbach # Wembach #"]
["REG",18,"HEAG Verkehrs-GmbH",null,"056_",0,"R","Sa",1049," ","Darmstadt","Gelenk-Überlandbus-NF",0,0,0,0,0,"2000-01-01T11:31:18","2000-01-01T11:52:00",0.77624999993713573,18.629999998491257,null,54,8726,471.20400000000001,0,0,"OOOOOOlOOlOOOlOOlOOOlOOOOOOlOOOOOOlOOOOOOlOOOOOOlOOOOOOlOOOOOOlOOOOOOlOOOOOOlOOOOOOlOOOOOOlOOOOOOlOOOOOOlOOOOOOlOOOOOOlOOOOOOlOOOOOOlOOOOOOlOOOOOOlOOOOOOlOOOOOOlOOOOOOlOOOOOOlOOOOOOlOOOOOOlOOOOOOlOOOOOOlOOOOOOlOOOOOOlOOOOOOlOOOOOOlOOOOOOlOOOOOOlOOOOOOlOOOOOOlOOOOOOlOOOOOOlOOOOOOlOOOOOOlOOOOOOlOOOOOOlOOOOOOlOOOOOOlOOOOOOlOOOOOOlOOOOOOlOOOOOOlOOOOOOlOOOOOOlOOOOOOl","MO1","Ober-Ramstadt Rondell # Modau # Rohrbach # Wembach #"]
["REG",18,"HEAG Verkehrs-GmbH",null,"056_",0,"R","Sa",1149," ","Ober-Ramstadt","Gelenk-Überlandbus-NF",0,0,0,0,0,"2000-01-01T11:49:00","2000-01-01T12:23:30",1.2937500002881279,31.05000000691507,null,54,15360,829.44,0,0,"OOOOOOlOOlOOOlOOlOOOlOOOOOOlOOOOOOlOOOOOOlOOOOOOlOOOOOOlOOOOOOlOOOOOOlOOOOOOlOOOOOOlOOOOOOlOOOOOOlOOOOOOlOOOOOOlOOOOOOlOOOOOOlOOOOOOlOOOOOOlOOOOOOlOOOOOOlOOOOOOlOOOOOOlOOOOOOlOOOOOOlOOOOOOlOOOOOOlOOOOOOlOOOOOOlOOOOOOlOOOOOOlOOOOOOlOOOOOOlOOOOOOlOOOOOOlOOOOOOlOOOOOOlOOOOOOlOOOOOOlOOOOOOlOOOOOOlOOOOOOlOOOOOOlOOOOOOlOOOOOOlOOOOOOlOOOOOOlOOOOOOlOOOOOOlOOOOOOlOOOOOOl","MO1","Ober-Ramstadt Rondell # Modau # Rohrbach # Wembach #"]
["REG",18,"HEAG Verkehrs-GmbH",null,"056_",0,"R","Sa",1149," ","Roßdorf","Gelenk-Überlandbus-NF",0,0,0,0,0,"2000-01-01T12:23:30","2000-01-01T12:31:18",0.29250000001047738,7.0200000002514571,null,54,3449,186.24600000000001,0,0,"OOOOOOlOOlOOOlOOlOOOlOOOOOOlOOOOOOlOOOOOOlOOOOOOlOOOOOOlOOOOOOlOOOOOOlOOOOOOlOOOOOOlOOOOOOlOOOOOOlOOOOOOlOOOOOOlOOOOOOlOOOOOOlOOOOOOlOOOOOOlOOOOOOlOOOOOOlOOOOOOlOOOOOOlOOOOOOlOOOOOOlOOOOOOlOOOOOOlOOOOOOlOOOOOOlOOOOOOlOOOOOOlOOOOOOlOOOOOOlOOOOOOlOOOOOOlOOOOOOlOOOOOOlOOOOOOlOOOOOOlOOOOOOlOOOOOOlOOOOOOlOOOOOOlOOOOOOlOOOOOOlOOOOOOlOOOOOOlOOOOOOlOOOOOOlOOOOOOlOOOOOOl","MO1","Ober-Ramstadt Rondell # Modau # Rohrbach # Wembach #"]
["REG",18,"HEAG Verkehrs-GmbH",null,"056_",0,"R","Sa",1149," ","Darmstadt","Gelenk-Überlandbus-NF",0,0,0,0,0,"2000-01-01T12:31:18","2000-01-01T12:52:00",0.77624999993713573,18.629999998491257,null,54,8726,471.20400000000001,0,0,"OOOOOOlOOlOOOlOOlOOOlOOOOOOlOOOOOOlOOOOOOlOOOOOOlOOOOOOlOOOOOOlOOOOOOlOOOOOOlOOOOOOlOOOOOOlOOOOOOlOOOOOOlOOOOOOlOOOOOOlOOOOOOlOOOOOOlOOOOOOlOOOOOOlOOOOOOlOOOOOOlOOOOOOlOOOOOOlOOOOOOlOOOOOOlOOOOOOlOOOOOOlOOOOOOlOOOOOOlOOOOOOlOOOOOOlOOOOOOlOOOOOOlOOOOOOlOOOOOOlOOOOOOlOOOOOOlOOOOOOlOOOOOOlOOOOOOlOOOOOOlOOOOOOlOOOOOOlOOOOOOlOOOOOOlOOOOOOlOOOOOOlOOOOOOlOOOOOOlOOOOOOl","MO1","Ober-Ramstadt Rondell # Modau # Rohrbach # Wembach #"]
["REG",18,"HEAG Verkehrs-GmbH",null,"056_",0,"R","Sa",1249," ","Ober-Ramstadt","Gelenk-Überlandbus-NF",0,0,0,0,0,"2000-01-01T12:49:00","2000-01-01T13:23:30",1.2937499998952262,31.049999997485429,null,54,15360,829.44,0,0,"OOOOOOlOOlOOOlOOlOOOlOOOOOOlOOOOOOlOOOOOOlOOOOOOlOOOOOOlOOOOOOlOOOOOOlOOOOOOlOOOOOOlOOOOOOlOOOOOOlOOOOOOlOOOOOOlOOOOOOlOOOOOOlOOOOOOlOOOOOOlOOOOOOlOOOOOOlOOOOOOlOOOOOOlOOOOOOlOOOOOOlOOOOOOlOOOOOOlOOOOOOlOOOOOOlOOOOOOlOOOOOOlOOOOOOlOOOOOOlOOOOOOlOOOOOOlOOOOOOlOOOOOOlOOOOOOlOOOOOOlOOOOOOlOOOOOOlOOOOOOlOOOOOOlOOOOOOlOOOOOOlOOOOOOlOOOOOOlOOOOOOlOOOOOOlOOOOOOlOOOOOOl","MO1","Ober-Ramstadt Rondell # Modau # Rohrbach # Wembach #"]
["REG",18,"HEAG Verkehrs-GmbH",null,"056_",0,"R","Sa",1249," ","Roßdorf","Gelenk-Überlandbus-NF",0,0,0,0,0,"2000-01-01T13:23:30","2000-01-01T13:31:18",0.29250000001047738,7.0200000002514571,null,54,3449,186.24600000000001,0,0,"OOOOOOlOOlOOOlOOlOOOlOOOOOOlOOOOOOlOOOOOOlOOOOOOlOOOOOOlOOOOOOlOOOOOOlOOOOOOlOOOOOOlOOOOOOlOOOOOOlOOOOOOlOOOOOOlOOOOOOlOOOOOOlOOOOOOlOOOOOOlOOOOOOlOOOOOOlOOOOOOlOOOOOOlOOOOOOlOOOOOOlOOOOOOlOOOOOOlOOOOOOlOOOOOOlOOOOOOlOOOOOOlOOOOOOlOOOOOOlOOOOOOlOOOOOOlOOOOOOlOOOOOOlOOOOOOlOOOOOOlOOOOOOlOOOOOOlOOOOOOlOOOOOOlOOOOOOlOOOOOOlOOOOOOlOOOOOOlOOOOOOlOOOOOOlOOOOOOlOOOOOOl","MO1","Ober-Ramstadt Rondell # Modau # Rohrbach # Wembach #"]
["REG",18,"HEAG Verkehrs-GmbH",null,"056_",0,"R","Sa",1249," ","Darmstadt","Gelenk-Überlandbus-NF",0,0,0,0,0,"2000-01-01T13:31:18","2000-01-01T13:52:00",0.77624999993713573,18.629999998491257,null,54,8726,471.20400000000001,0,0,"OOOOOOlOOlOOOlOOlOOOlOOOOOOlOOOOOOlOOOOOOlOOOOOOlOOOOOOlOOOOOOlOOOOOOlOOOOOOlOOOOOOlOOOOOOlOOOOOOlOOOOOOlOOOOOOlOOOOOOlOOOOOOlOOOOOOlOOOOOOlOOOOOOlOOOOOOlOOOOOOlOOOOOOlOOOOOOlOOOOOOlOOOOOOlOOOOOOlOOOOOOlOOOOOOlOOOOOOlOOOOOOlOOOOOOlOOOOOOlOOOOOOlOOOOOOlOOOOOOlOOOOOOlOOOOOOlOOOOOOlOOOOOOlOOOOOOlOOOOOOlOOOOOOlOOOOOOlOOOOOOlOOOOOOlOOOOOOlOOOOOOlOOOOOOlOOOOOOlOOOOOOl","MO1","Ober-Ramstadt Rondell # Modau # Rohrbach # Wembach #"]
["REG",18,"HEAG Verkehrs-GmbH",null,"056_",0,"R","Sa",1349," ","Ober-Ramstadt","Gelenk-Überlandbus-NF",0,0,0,0,0,"2000-01-01T13:49:00","2000-01-01T14:23:30",1.2937499998952262,31.049999997485429,null,54,15360,829.44,0,0,"OOOOOOlOOlOOOlOOlOOOlOOOOOOlOOOOOOlOOOOOOlOOOOOOlOOOOOOlOOOOOOlOOOOOOlOOOOOOlOOOOOOlOOOOOOlOOOOOOlOOOOOOlOOOOOOlOOOOOOlOOOOOOlOOOOOOlOOOOOOlOOOOOOlOOOOOOlOOOOOOlOOOOOOlOOOOOOlOOOOOOlOOOOOOlOOOOOOlOOOOOOlOOOOOOlOOOOOOlOOOOOOlOOOOOOlOOOOOOlOOOOOOlOOOOOOlOOOOOOlOOOOOOlOOOOOOlOOOOOOlOOOOOOlOOOOOOlOOOOOOlOOOOOOlOOOOOOlOOOOOOlOOOOOOlOOOOOOlOOOOOOlOOOOOOlOOOOOOlOOOOOOl","MO1","Ober-Ramstadt Rondell # Modau # Rohrbach # Wembach #"]
["REG",18,"HEAG Verkehrs-GmbH",null,"056_",0,"R","Sa",1349," ","Roßdorf","Gelenk-Überlandbus-NF",0,0,0,0,0,"2000-01-01T14:23:30","2000-01-01T14:31:18",0.29250000001047738,7.0200000002514571,null,54,3449,186.24600000000001,0,0,"OOOOOOlOOlOOOlOOlOOOlOOOOOOlOOOOOOlOOOOOOlOOOOOOlOOOOOOlOOOOOOlOOOOOOlOOOOOOlOOOOOOlOOOOOOlOOOOOOlOOOOOOlOOOOOOlOOOOOOlOOOOOOlOOOOOOlOOOOOOlOOOOOOlOOOOOOlOOOOOOlOOOOOOlOOOOOOlOOOOOOlOOOOOOlOOOOOOlOOOOOOlOOOOOOlOOOOOOlOOOOOOlOOOOOOlOOOOOOlOOOOOOlOOOOOOlOOOOOOlOOOOOOlOOOOOOlOOOOOOlOOOOOOlOOOOOOlOOOOOOlOOOOOOlOOOOOOlOOOOOOlOOOOOOlOOOOOOlOOOOOOlOOOOOOlOOOOOOlOOOOOOl","MO1","Ober-Ramstadt Rondell # Modau # Rohrbach # Wembach #"]
["REG",18,"HEAG Verkehrs-GmbH",null,"056_",0,"R","Sa",1349," ","Darmstadt","Gelenk-Überlandbus-NF",0,0,0,0,0,"2000-01-01T14:31:18","2000-01-01T14:52:00",0.77624999993713573,18.629999998491257,null,54,8726,471.20400000000001,0,0,"OOOOOOlOOlOOOlOOlOOOlOOOOOOlOOOOOOlOOOOOOlOOOOOOlOOOOOOlOOOOOOlOOOOOOlOOOOOOlOOOOOOlOOOOOOlOOOOOOlOOOOOOlOOOOOOlOOOOOOlOOOOOOlOOOOOOlOOOOOOlOOOOOOlOOOOOOlOOOOOOlOOOOOOlOOOOOOlOOOOOOlOOOOOOlOOOOOOlOOOOOOlOOOOOOlOOOOOOlOOOOOOlOOOOOOlOOOOOOlOOOOOOlOOOOOOlOOOOOOlOOOOOOlOOOOOOlOOOOOOlOOOOOOlOOOOOOlOOOOOOlOOOOOOlOOOOOOlOOOOOOlOOOOOOlOOOOOOlOOOOOOlOOOOOOlOOOOOOlOOOOOOl","MO1","Ober-Ramstadt Rondell # Modau # Rohrbach # Wembach #"]
["REG",18,"HEAG Verkehrs-GmbH",null,"056_",0,"R","Sa",1449," ","Ober-Ramstadt","Gelenk-Überlandbus-NF",0,0,0,0,0,"2000-01-01T14:49:00","2000-01-01T15:23:30",1.2937500002881279,31.05000000691507,null,54,15360,829.44,0,0,"OOOOOOlOOlOOOlOOlOOOlOOOOOOlOOOOOOlOOOOOOlOOOOOOlOOOOOOlOOOOOOlOOOOOOlOOOOOOlOOOOOOlOOOOOOlOOOOOOlOOOOOOlOOOOOOlOOOOOOlOOOOOOlOOOOOOlOOOOOOlOOOOOOlOOOOOOlOOOOOOlOOOOOOlOOOOOOlOOOOOOlOOOOOOlOOOOOOlOOOOOOlOOOOOOlOOOOOOlOOOOOOlOOOOOOlOOOOOOlOOOOOOlOOOOOOlOOOOOOlOOOOOOlOOOOOOlOOOOOOlOOOOOOlOOOOOOlOOOOOOlOOOOOOlOOOOOOlOOOOOOlOOOOOOlOOOOOOlOOOOOOlOOOOOOlOOOOOOlOOOOOOl","MO1","Ober-Ramstadt Rondell # Modau # Rohrbach # Wembach #"]
["REG",18,"HEAG Verkehrs-GmbH",null,"056_",0,"R","Sa",1449," ","Roßdorf","Gelenk-Überlandbus-NF",0,0,0,0,0,"2000-01-01T15:23:30","2000-01-01T15:31:18",0.29250000001047738,7.0200000002514571,null,54,3449,186.24600000000001,0,0,"OOOOOOlOOlOOOlOOlOOOlOOOOOOlOOOOOOlOOOOOOlOOOOOOlOOOOOOlOOOOOOlOOOOOOlOOOOOOlOOOOOOlOOOOOOlOOOOOOlOOOOOOlOOOOOOlOOOOOOlOOOOOOlOOOOOOlOOOOOOlOOOOOOlOOOOOOlOOOOOOlOOOOOOlOOOOOOlOOOOOOlOOOOOOlOOOOOOlOOOOOOlOOOOOOlOOOOOOlOOOOOOlOOOOOOlOOOOOOlOOOOOOlOOOOOOlOOOOOOlOOOOOOlOOOOOOlOOOOOOlOOOOOOlOOOOOOlOOOOOOlOOOOOOlOOOOOOlOOOOOOlOOOOOOlOOOOOOlOOOOOOlOOOOOOlOOOOOOlOOOOOOl","MO1","Ober-Ramstadt Rondell # Modau # Rohrbach # Wembach #"]
["REG",18,"HEAG Verkehrs-GmbH",null,"056_",0,"R","Sa",1449," ","Darmstadt","Gelenk-Überlandbus-NF",0,0,0,0,0,"2000-01-01T15:31:18","2000-01-01T15:52:00",0.77624999993713573,18.629999998491257,null,54,8726,471.20400000000001,0,0,"OOOOOOlOOlOOOlOOlOOOlOOOOOOlOOOOOOlOOOOOOlOOOOOOlOOOOOOlOOOOOOlOOOOOOlOOOOOOlOOOOOOlOOOOOOlOOOOOOlOOOOOOlOOOOOOlOOOOOOlOOOOOOlOOOOOOlOOOOOOlOOOOOOlOOOOOOlOOOOOOlOOOOOOlOOOOOOlOOOOOOlOOOOOOlOOOOOOlOOOOOOlOOOOOOlOOOOOOlOOOOOOlOOOOOOlOOOOOOlOOOOOOlOOOOOOlOOOOOOlOOOOOOlOOOOOOlOOOOOOlOOOOOOlOOOOOOlOOOOOOlOOOOOOlOOOOOOlOOOOOOlOOOOOOlOOOOOOlOOOOOOlOOOOOOlOOOOOOlOOOOOOl","MO1","Ober-Ramstadt Rondell # Modau # Rohrbach # Wembach #"]
["REG",18,"HEAG Verkehrs-GmbH",null,"056_",0,"R","Sa",1549," ","Ober-Ramstadt","Gelenk-Überlandbus-NF",0,0,0,0,0,"2000-01-01T15:49:00","2000-01-01T16:23:30",1.2937499998952262,31.049999997485429,null,54,15360,829.44,0,0,"OOOOOOlOOlOOOlOOlOOOlOOOOOOlOOOOOOlOOOOOOlOOOOOOlOOOOOOlOOOOOOlOOOOOOlOOOOOOlOOOOOOlOOOOOOlOOOOOOlOOOOOOlOOOOOOlOOOOOOlOOOOOOlOOOOOOlOOOOOOlOOOOOOlOOOOOOlOOOOOOlOOOOOOlOOOOOOlOOOOOOlOOOOOOlOOOOOOlOOOOOOlOOOOOOlOOOOOOlOOOOOOlOOOOOOlOOOOOOlOOOOOOlOOOOOOlOOOOOOlOOOOOOlOOOOOOlOOOOOOlOOOOOOlOOOOOOlOOOOOOlOOOOOOlOOOOOOlOOOOOOlOOOOOOlOOOOOOlOOOOOOlOOOOOOlOOOOOOlOOOOOOl","MO1","Ober-Ramstadt Rondell # Modau # Rohrbach # Wembach #"]
["REG",18,"HEAG Verkehrs-GmbH",null,"056_",0,"R","Sa",1549," ","Roßdorf","Gelenk-Überlandbus-NF",0,0,0,0,0,"2000-01-01T16:23:30","2000-01-01T16:31:18",0.29250000001047738,7.0200000002514571,null,54,3449,186.24600000000001,0,0,"OOOOOOlOOlOOOlOOlOOOlOOOOOOlOOOOOOlOOOOOOlOOOOOOlOOOOOOlOOOOOOlOOOOOOlOOOOOOlOOOOOOlOOOOOOlOOOOOOlOOOOOOlOOOOOOlOOOOOOlOOOOOOlOOOOOOlOOOOOOlOOOOOOlOOOOOOlOOOOOOlOOOOOOlOOOOOOlOOOOOOlOOOOOOlOOOOOOlOOOOOOlOOOOOOlOOOOOOlOOOOOOlOOOOOOlOOOOOOlOOOOOOlOOOOOOlOOOOOOlOOOOOOlOOOOOOlOOOOOOlOOOOOOlOOOOOOlOOOOOOlOOOOOOlOOOOOOlOOOOOOlOOOOOOlOOOOOOlOOOOOOlOOOOOOlOOOOOOlOOOOOOl","MO1","Ober-Ramstadt Rondell # Modau # Rohrbach # Wembach #"]
["REG",18,"HEAG Verkehrs-GmbH",null,"056_",0,"R","Sa",1549," ","Darmstadt","Gelenk-Überlandbus-NF",0,0,0,0,0,"2000-01-01T16:31:18","2000-01-01T16:52:00",0.77624999993713573,18.629999998491257,null,54,8726,471.20400000000001,0,0,"OOOOOOlOOlOOOlOOlOOOlOOOOOOlOOOOOOlOOOOOOlOOOOOOlOOOOOOlOOOOOOlOOOOOOlOOOOOOlOOOOOOlOOOOOOlOOOOOOlOOOOOOlOOOOOOlOOOOOOlOOOOOOlOOOOOOlOOOOOOlOOOOOOlOOOOOOlOOOOOOlOOOOOOlOOOOOOlOOOOOOlOOOOOOlOOOOOOlOOOOOOlOOOOOOlOOOOOOlOOOOOOlOOOOOOlOOOOOOlOOOOOOlOOOOOOlOOOOOOlOOOOOOlOOOOOOlOOOOOOlOOOOOOlOOOOOOlOOOOOOlOOOOOOlOOOOOOlOOOOOOlOOOOOOlOOOOOOlOOOOOOlOOOOOOlOOOOOOlOOOOOOl","MO1","Ober-Ramstadt Rondell # Modau # Rohrbach # Wembach #"]
["REG",18,"HEAG Verkehrs-GmbH",null,"056_",0,"R","Sa",1649," ","Ober-Ramstadt","Gelenk-Überlandbus-NF",0,0,0,0,0,"2000-01-01T16:49:00","2000-01-01T17:23:30",1.2937499998952262,31.049999997485429,null,54,15360,829.44,0,0,"OOOOOOlOOlOOOlOOlOOOlOOOOOOlOOOOOOlOOOOOOlOOOOOOlOOOOOOlOOOOOOlOOOOOOlOOOOOOlOOOOOOlOOOOOOlOOOOOOlOOOOOOlOOOOOOlOOOOOOlOOOOOOlOOOOOOlOOOOOOlOOOOOOlOOOOOOlOOOOOOlOOOOOOlOOOOOOlOOOOOOlOOOOOOlOOOOOOlOOOOOOlOOOOOOlOOOOOOlOOOOOOlOOOOOOlOOOOOOlOOOOOOlOOOOOOlOOOOOOlOOOOOOlOOOOOOlOOOOOOlOOOOOOlOOOOOOlOOOOOOlOOOOOOlOOOOOOlOOOOOOlOOOOOOlOOOOOOlOOOOOOlOOOOOOlOOOOOOlOOOOOOl","MO1","Ober-Ramstadt Rondell # Modau # Rohrbach # Wembach #"]
["REG",18,"HEAG Verkehrs-GmbH",null,"056_",0,"R","Sa",1649," ","Roßdorf","Gelenk-Überlandbus-NF",0,0,0,0,0,"2000-01-01T17:23:30","2000-01-01T17:31:18",0.29250000001047738,7.0200000002514571,null,54,3449,186.24600000000001,0,0,"OOOOOOlOOlOOOlOOlOOOlOOOOOOlOOOOOOlOOOOOOlOOOOOOlOOOOOOlOOOOOOlOOOOOOlOOOOOOlOOOOOOlOOOOOOlOOOOOOlOOOOOOlOOOOOOlOOOOOOlOOOOOOlOOOOOOlOOOOOOlOOOOOOlOOOOOOlOOOOOOlOOOOOOlOOOOOOlOOOOOOlOOOOOOlOOOOOOlOOOOOOlOOOOOOlOOOOOOlOOOOOOlOOOOOOlOOOOOOlOOOOOOlOOOOOOlOOOOOOlOOOOOOlOOOOOOlOOOOOOlOOOOOOlOOOOOOlOOOOOOlOOOOOOlOOOOOOlOOOOOOlOOOOOOlOOOOOOlOOOOOOlOOOOOOlOOOOOOlOOOOOOl","MO1","Ober-Ramstadt Rondell # Modau # Rohrbach # Wembach #"]
["REG",18,"HEAG Verkehrs-GmbH",null,"056_",0,"R","Sa",1649," ","Darmstadt","Gelenk-Überlandbus-NF",0,0,0,0,0,"2000-01-01T17:31:18","2000-01-01T17:52:00",0.77624999993713573,18.629999998491257,null,54,8726,471.20400000000001,0,0,"OOOOOOlOOlOOOlOOlOOOlOOOOOOlOOOOOOlOOOOOOlOOOOOOlOOOOOOlOOOOOOlOOOOOOlOOOOOOlOOOOOOlOOOOOOlOOOOOOlOOOOOOlOOOOOOlOOOOOOlOOOOOOlOOOOOOlOOOOOOlOOOOOOlOOOOOOlOOOOOOlOOOOOOlOOOOOOlOOOOOOlOOOOOOlOOOOOOlOOOOOOlOOOOOOlOOOOOOlOOOOOOlOOOOOOlOOOOOOlOOOOOOlOOOOOOlOOOOOOlOOOOOOlOOOOOOlOOOOOOlOOOOOOlOOOOOOlOOOOOOlOOOOOOlOOOOOOlOOOOOOlOOOOOOlOOOOOOlOOOOOOlOOOOOOlOOOOOOlOOOOOOl","MO1","Ober-Ramstadt Rondell # Modau # Rohrbach # Wembach #"]
["REG",18,"HEAG Verkehrs-GmbH",null,"056_",0,"R","Sa",1749," ","Ober-Ramstadt","Gelenk-Überlandbus-NF",0,0,0,0,0,"2000-01-01T17:49:00","2000-01-01T18:23:30",1.2937500002881279,31.05000000691507,null,54,15360,829.44,0,0,"OOOOOOlOOlOOOlOOlOOOlOOOOOOlOOOOOOlOOOOOOlOOOOOOlOOOOOOlOOOOOOlOOOOOOlOOOOOOlOOOOOOlOOOOOOlOOOOOOlOOOOOOlOOOOOOlOOOOOOlOOOOOOlOOOOOOlOOOOOOlOOOOOOlOOOOOOlOOOOOOlOOOOOOlOOOOOOlOOOOOOlOOOOOOlOOOOOOlOOOOOOlOOOOOOlOOOOOOlOOOOOOlOOOOOOlOOOOOOlOOOOOOlOOOOOOlOOOOOOlOOOOOOlOOOOOOlOOOOOOlOOOOOOlOOOOOOlOOOOOOlOOOOOOlOOOOOOlOOOOOOlOOOOOOlOOOOOOlOOOOOOlOOOOOOlOOOOOOlOOOOOOl","MO1","Ober-Ramstadt Rondell # Modau # Rohrbach # Wembach #"]
["REG",18,"HEAG Verkehrs-GmbH",null,"056_",0,"R","Sa",1749," ","Roßdorf","Gelenk-Überlandbus-NF",0,0,0,0,0,"2000-01-01T18:23:30","2000-01-01T18:31:18",0.29250000001047738,7.0200000002514571,null,54,3449,186.24600000000001,0,0,"OOOOOOlOOlOOOlOOlOOOlOOOOOOlOOOOOOlOOOOOOlOOOOOOlOOOOOOlOOOOOOlOOOOOOlOOOOOOlOOOOOOlOOOOOOlOOOOOOlOOOOOOlOOOOOOlOOOOOOlOOOOOOlOOOOOOlOOOOOOlOOOOOOlOOOOOOlOOOOOOlOOOOOOlOOOOOOlOOOOOOlOOOOOOlOOOOOOlOOOOOOlOOOOOOlOOOOOOlOOOOOOlOOOOOOlOOOOOOlOOOOOOlOOOOOOlOOOOOOlOOOOOOlOOOOOOlOOOOOOlOOOOOOlOOOOOOlOOOOOOlOOOOOOlOOOOOOlOOOOOOlOOOOOOlOOOOOOlOOOOOOlOOOOOOlOOOOOOlOOOOOOl","MO1","Ober-Ramstadt Rondell # Modau # Rohrbach # Wembach #"]
["REG",18,"HEAG Verkehrs-GmbH",null,"056_",0,"R","Sa",1749," ","Darmstadt","Gelenk-Überlandbus-NF",0,0,0,0,0,"2000-01-01T18:31:18","2000-01-01T18:52:00",0.77624999993713573,18.629999998491257,null,54,8726,471.20400000000001,0,0,"OOOOOOlOOlOOOlOOlOOOlOOOOOOlOOOOOOlOOOOOOlOOOOOOlOOOOOOlOOOOOOlOOOOOOlOOOOOOlOOOOOOlOOOOOOlOOOOOOlOOOOOOlOOOOOOlOOOOOOlOOOOOOlOOOOOOlOOOOOOlOOOOOOlOOOOOOlOOOOOOlOOOOOOlOOOOOOlOOOOOOlOOOOOOlOOOOOOlOOOOOOlOOOOOOlOOOOOOlOOOOOOlOOOOOOlOOOOOOlOOOOOOlOOOOOOlOOOOOOlOOOOOOlOOOOOOlOOOOOOlOOOOOOlOOOOOOlOOOOOOlOOOOOOlOOOOOOlOOOOOOlOOOOOOlOOOOOOlOOOOOOlOOOOOOlOOOOOOlOOOOOOl","MO1","Ober-Ramstadt Rondell # Modau # Rohrbach # Wembach #"]
["REG",18,"HEAG Verkehrs-GmbH",null,"056_",0,"R","Sa",1849," ","Ober-Ramstadt","Gelenk-Überlandbus-NF",0,0,0,0,0,"2000-01-01T18:49:00","2000-01-01T19:23:30",1.2937499998952262,31.049999997485429,null,54,15360,829.44,0,0,"OOOOOOlOOlOOOlOOlOOOlOOOOOOlOOOOOOlOOOOOOlOOOOOOlOOOOOOlOOOOOOlOOOOOOlOOOOOOlOOOOOOlOOOOOOlOOOOOOlOOOOOOlOOOOOOlOOOOOOlOOOOOOlOOOOOOlOOOOOOlOOOOOOlOOOOOOlOOOOOOlOOOOOOlOOOOOOlOOOOOOlOOOOOOlOOOOOOlOOOOOOlOOOOOOlOOOOOOlOOOOOOlOOOOOOlOOOOOOlOOOOOOlOOOOOOlOOOOOOlOOOOOOlOOOOOOlOOOOOOlOOOOOOlOOOOOOlOOOOOOlOOOOOOlOOOOOOlOOOOOOlOOOOOOlOOOOOOlOOOOOOlOOOOOOlOOOOOOlOOOOOOl","MO1","Ober-Ramstadt Rondell # Modau # Rohrbach # Wembach #"]
["REG",18,"HEAG Verkehrs-GmbH",null,"056_",0,"R","Sa",1849," ","Roßdorf","Gelenk-Überlandbus-NF",0,0,0,0,0,"2000-01-01T19:23:30","2000-01-01T19:31:18",0.29250000001047738,7.0200000002514571,null,54,3449,186.24600000000001,0,0,"OOOOOOlOOlOOOlOOlOOOlOOOOOOlOOOOOOlOOOOOOlOOOOOOlOOOOOOlOOOOOOlOOOOOOlOOOOOOlOOOOOOlOOOOOOlOOOOOOlOOOOOOlOOOOOOlOOOOOOlOOOOOOlOOOOOOlOOOOOOlOOOOOOlOOOOOOlOOOOOOlOOOOOOlOOOOOOlOOOOOOlOOOOOOlOOOOOOlOOOOOOlOOOOOOlOOOOOOlOOOOOOlOOOOOOlOOOOOOlOOOOOOlOOOOOOlOOOOOOlOOOOOOlOOOOOOlOOOOOOlOOOOOOlOOOOOOlOOOOOOlOOOOOOlOOOOOOlOOOOOOlOOOOOOlOOOOOOlOOOOOOlOOOOOOlOOOOOOlOOOOOOl","MO1","Ober-Ramstadt Rondell # Modau # Rohrbach # Wembach #"]
["REG",18,"HEAG Verkehrs-GmbH",null,"056_",0,"R","Sa",1849," ","Darmstadt","Gelenk-Überlandbus-NF",0,0,0,0,0,"2000-01-01T19:31:18","2000-01-01T19:52:00",0.77624999993713573,18.629999998491257,null,54,8726,471.20400000000001,0,0,"OOOOOOlOOlOOOlOOlOOOlOOOOOOlOOOOOOlOOOOOOlOOOOOOlOOOOOOlOOOOOOlOOOOOOlOOOOOOlOOOOOOlOOOOOOlOOOOOOlOOOOOOlOOOOOOlOOOOOOlOOOOOOlOOOOOOlOOOOOOlOOOOOOlOOOOOOlOOOOOOlOOOOOOlOOOOOOlOOOOOOlOOOOOOlOOOOOOlOOOOOOlOOOOOOlOOOOOOlOOOOOOlOOOOOOlOOOOOOlOOOOOOlOOOOOOlOOOOOOlOOOOOOlOOOOOOlOOOOOOlOOOOOOlOOOOOOlOOOOOOlOOOOOOlOOOOOOlOOOOOOlOOOOOOlOOOOOOlOOOOOOlOOOOOOlOOOOOOlOOOOOOl","MO1","Ober-Ramstadt Rondell # Modau # Rohrbach # Wembach #"]
["REG",18,"HEAG Verkehrs-GmbH",null,"056_",0,"R","Sa",2213," ","Ober-Ramstadt","Gelenk-Überlandbus-NF",0,0,0,0,0,"2000-01-01T22:13:00","2000-01-01T22:36:00",0.86250000006111804,20.700000001466833,null,54,10913,589.30200000000002,0,0,"OOOOOOlOOlOOOlOOlOOOlOOOOOOlOOOOOOlOOOOOOlOOOOOOlOOOOOOlOOOOOOlOOOOOOlOOOOOOlOOOOOOlOOOOOOlOOOOOOlOOOOOOlOOOOOOlOOOOOOlOOOOOOlOOOOOOlOOOOOOlOOOOOOlOOOOOOlOOOOOOlOOOOOOlOOOOOOlOOOOOOlOOOOOOlOOOOOOlOOOOOOlOOOOOOlOOOOOOlOOOOOOlOOOOOOlOOOOOOlOOOOOOlOOOOOOlOOOOOOlOOOOOOlOOOOOOlOOOOOOlOOOOOOlOOOOOOlOOOOOOlOOOOOOlOOOOOOlOOOOOOlOOOOOOlOOOOOOlOOOOOOlOOOOOOlOOOOOOlOOOOOOl","MO1","Ober-Ramstadt Rondell # Modau # Rohrbach # Wembach #"]
["REG",18,"HEAG Verkehrs-GmbH",null,"056_",0,"R","Sa",2313," ","Ober-Ramstadt","Gelenk-Überlandbus-NF",0,0,0,0,0,"2000-01-01T23:13:00","2000-01-01T23:36:00",0.86249999966821633,20.699999992037192,null,54,10913,589.30200000000002,0,0,"OOOOOOlOOlOOOlOOlOOOlOOOOOOlOOOOOOlOOOOOOlOOOOOOlOOOOOOlOOOOOOlOOOOOOlOOOOOOlOOOOOOlOOOOOOlOOOOOOlOOOOOOlOOOOOOlOOOOOOlOOOOOOlOOOOOOlOOOOOOlOOOOOOlOOOOOOlOOOOOOlOOOOOOlOOOOOOlOOOOOOlOOOOOOlOOOOOOlOOOOOOlOOOOOOlOOOOOOlOOOOOOlOOOOOOlOOOOOOlOOOOOOlOOOOOOlOOOOOOlOOOOOOlOOOOOOlOOOOOOlOOOOOOlOOOOOOlOOOOOOlOOOOOOlOOOOOOlOOOOOOlOOOOOOlOOOOOOlOOOOOOlOOOOOOlOOOOOOlOOOOOOl","MO1","Ober-Ramstadt Rondell # Modau # Rohrbach # Wembach #"]
["REG",18,"HEAG Verkehrs-GmbH",null,"056_",0,"R","Sa",2413," ","Ober-Ramstadt","Gelenk-Überlandbus-NF",0,0,0,0,0,"2000-01-02T00:13:00","2000-01-02T00:36:00",0.86250000006111804,20.700000001466833,null,54,10913,589.30200000000002,0,0,"OOOOOOlOOlOOOlOOlOOOlOOOOOOlOOOOOOlOOOOOOlOOOOOOlOOOOOOlOOOOOOlOOOOOOlOOOOOOlOOOOOOlOOOOOOlOOOOOOlOOOOOOlOOOOOOlOOOOOOlOOOOOOlOOOOOOlOOOOOOlOOOOOOlOOOOOOlOOOOOOlOOOOOOlOOOOOOlOOOOOOlOOOOOOlOOOOOOlOOOOOOlOOOOOOlOOOOOOlOOOOOOlOOOOOOlOOOOOOlOOOOOOlOOOOOOlOOOOOOlOOOOOOlOOOOOOlOOOOOOlOOOOOOlOOOOOOlOOOOOOlOOOOOOlOOOOOOlOOOOOOlOOOOOOlOOOOOOlOOOOOOlOOOOOOlOOOOOOlOOOOOOl","MO1","Ober-Ramstadt Rondell # Modau # Rohrbach # Wembach #"]
["REG",18,"HEAG Verkehrs-GmbH",null,"056_",0,"R","Sa",2513," ","Ober-Ramstadt","Gelenk-Überlandbus-NF",0,0,0,0,0,"2000-01-02T01:13:00","2000-01-02T01:36:00",0.86250000006111804,20.700000001466833,null,54,10913,589.30200000000002,0,0,"OOOOOOlOOlOOOlOOlOOOlOOOOOOlOOOOOOlOOOOOOlOOOOOOlOOOOOOlOOOOOOlOOOOOOlOOOOOOlOOOOOOlOOOOOOlOOOOOOlOOOOOOlOOOOOOlOOOOOOlOOOOOOlOOOOOOlOOOOOOlOOOOOOlOOOOOOlOOOOOOlOOOOOOlOOOOOOlOOOOOOlOOOOOOlOOOOOOlOOOOOOlOOOOOOlOOOOOOlOOOOOOlOOOOOOlOOOOOOlOOOOOOlOOOOOOlOOOOOOlOOOOOOlOOOOOOlOOOOOOlOOOOOOlOOOOOOlOOOOOOlOOOOOOlOOOOOOlOOOOOOlOOOOOOlOOOOOOlOOOOOOlOOOOOOlOOOOOOlOOOOOOl","MO1","Ober-Ramstadt Rondell # Modau # Rohrbach # Wembach #"]
["REG",18,"HEAG Verkehrs-GmbH",null,"056_",0,"R","So",549," ","Ober-Ramstadt","Solo-Überlandbus-NF",0,0,0,0,0,"2000-01-01T05:49:00","2000-01-01T06:23:30",1.4854166669974802,35.650000007939525,null,62,15360,952.32,0,0,"lOOOOOOlOOllOOlOOlOOOlOOOOOOlOOOOOOlOOOOOOlOOOOOOlOOOOOOlOOOOOOlOOOOOOlOOOOOOlOOOOOOlOOOOOOlOOOOOOlOOOOOOlOOOOOOlOOOOOOlOOOOlOllOOOOOlOOOlOOlOOOOOOlOOOOOOlOOOOOOlOOOlOOlOOOOOOllOOOOOlOOOlOOlOOOOOOlOOOOOOlOOOOOOlOOOOOOlOOOOOOlOOOOOOlOOOOOOlOOOOOOlOOOOOOlOOOOOOlOOOOOOlOOOOOOlOOOOOOlOOOOOOlOOOOlOlOOOOOOlOOOOOOlOOOOOOlOOOOOOlOOOOOOlOOOOOOlOOOOOOlOOOOOOlOOOOOOlOOOOOO","MO1","Ober-Ramstadt Rondell # Modau # Rohrbach # Wembach #"]
["REG",18,"HEAG Verkehrs-GmbH",null,"056_",0,"R","So",549," ","Roßdorf","Solo-Überlandbus-NF",0,0,0,0,0,"2000-01-01T06:23:30","2000-01-01T06:31:18",0.33583333334536292,8.06000000028871,null,62,3449,213.83799999999999,0,0,"lOOOOOOlOOllOOlOOlOOOlOOOOOOlOOOOOOlOOOOOOlOOOOOOlOOOOOOlOOOOOOlOOOOOOlOOOOOOlOOOOOOlOOOOOOlOOOOOOlOOOOOOlOOOOOOlOOOOOOlOOOOlOllOOOOOlOOOlOOlOOOOOOlOOOOOOlOOOOOOlOOOlOOlOOOOOOllOOOOOlOOOlOOlOOOOOOlOOOOOOlOOOOOOlOOOOOOlOOOOOOlOOOOOOlOOOOOOlOOOOOOlOOOOOOlOOOOOOlOOOOOOlOOOOOOlOOOOOOlOOOOOOlOOOOlOlOOOOOOlOOOOOOlOOOOOOlOOOOOOlOOOOOOlOOOOOOlOOOOOOlOOOOOOlOOOOOOlOOOOOO","MO1","Ober-Ramstadt Rondell # Modau # Rohrbach # Wembach #"]
["REG",18,"HEAG Verkehrs-GmbH",null,"056_",0,"R","So",549," ","Darmstadt","Solo-Überlandbus-NF",0,0,0,0,0,"2000-01-01T06:31:18","2000-01-01T06:52:00",0.8912499999278225,21.38999999826774,null,62,8726,541.01199999999994,0,0,"lOOOOOOlOOllOOlOOlOOOlOOOOOOlOOOOOOlOOOOOOlOOOOOOlOOOOOOlOOOOOOlOOOOOOlOOOOOOlOOOOOOlOOOOOOlOOOOOOlOOOOOOlOOOOOOlOOOOOOlOOOOlOllOOOOOlOOOlOOlOOOOOOlOOOOOOlOOOOOOlOOOlOOlOOOOOOllOOOOOlOOOlOOlOOOOOOlOOOOOOlOOOOOOlOOOOOOlOOOOOOlOOOOOOlOOOOOOlOOOOOOlOOOOOOlOOOOOOlOOOOOOlOOOOOOlOOOOOOlOOOOOOlOOOOlOlOOOOOOlOOOOOOlOOOOOOlOOOOOOlOOOOOOlOOOOOOlOOOOOOlOOOOOOlOOOOOOlOOOOOO","MO1","Ober-Ramstadt Rondell # Modau # Rohrbach # Wembach #"]
["REG",18,"HEAG Verkehrs-GmbH",null,"056_",0,"R","So",749," ","Ober-Ramstadt","Solo-Überlandbus-NF",0,0,0,0,0,"2000-01-01T07:49:00","2000-01-01T08:23:30",1.4854166665463708,35.6499999971129,null,62,15360,952.32,0,0,"lOOOOOOlOOllOOlOOlOOOlOOOOOOlOOOOOOlOOOOOOlOOOOOOlOOOOOOlOOOOOOlOOOOOOlOOOOOOlOOOOOOlOOOOOOlOOOOOOlOOOOOOlOOOOOOlOOOOOOlOOOOlOllOOOOOlOOOlOOlOOOOOOlOOOOOOlOOOOOOlOOOlOOlOOOOOOllOOOOOlOOOlOOlOOOOOOlOOOOOOlOOOOOOlOOOOOOlOOOOOOlOOOOOOlOOOOOOlOOOOOOlOOOOOOlOOOOOOlOOOOOOlOOOOOOlOOOOOOlOOOOOOlOOOOlOlOOOOOOlOOOOOOlOOOOOOlOOOOOOlOOOOOOlOOOOOOlOOOOOOlOOOOOOlOOOOOOlOOOOOO","MO1","Ober-Ramstadt Rondell # Modau # Rohrbach # Wembach #"]
["REG",18,"HEAG Verkehrs-GmbH",null,"056_",0,"R","So",749," ","Roßdorf","Solo-Überlandbus-NF",0,0,0,0,0,"2000-01-01T08:23:30","2000-01-01T08:31:18",0.33583333334536292,8.06000000028871,null,62,3449,213.83799999999999,0,0,"lOOOOOOlOOllOOlOOlOOOlOOOOOOlOOOOOOlOOOOOOlOOOOOOlOOOOOOlOOOOOOlOOOOOOlOOOOOOlOOOOOOlOOOOOOlOOOOOOlOOOOOOlOOOOOOlOOOOOOlOOOOlOllOOOOOlOOOlOOlOOOOOOlOOOOOOlOOOOOOlOOOlOOlOOOOOOllOOOOOlOOOlOOlOOOOOOlOOOOOOlOOOOOOlOOOOOOlOOOOOOlOOOOOOlOOOOOOlOOOOOOlOOOOOOlOOOOOOlOOOOOOlOOOOOOlOOOOOOlOOOOOOlOOOOlOlOOOOOOlOOOOOOlOOOOOOlOOOOOOlOOOOOOlOOOOOOlOOOOOOlOOOOOOlOOOOOOlOOOOOO","MO1","Ober-Ramstadt Rondell # Modau # Rohrbach # Wembach #"]
["REG",18,"HEAG Verkehrs-GmbH",null,"056_",0,"R","So",749," ","Darmstadt","Solo-Überlandbus-NF",0,0,0,0,0,"2000-01-01T08:31:18","2000-01-01T08:52:00",0.8912499999278225,21.38999999826774,null,62,8726,541.01199999999994,0,0,"lOOOOOOlOOllOOlOOlOOOlOOOOOOlOOOOOOlOOOOOOlOOOOOOlOOOOOOlOOOOOOlOOOOOOlOOOOOOlOOOOOOlOOOOOOlOOOOOOlOOOOOOlOOOOOOlOOOOOOlOOOOlOllOOOOOlOOOlOOlOOOOOOlOOOOOOlOOOOOOlOOOlOOlOOOOOOllOOOOOlOOOlOOlOOOOOOlOOOOOOlOOOOOOlOOOOOOlOOOOOOlOOOOOOlOOOOOOlOOOOOOlOOOOOOlOOOOOOlOOOOOOlOOOOOOlOOOOOOlOOOOOOlOOOOlOlOOOOOOlOOOOOOlOOOOOOlOOOOOOlOOOOOOlOOOOOOlOOOOOOlOOOOOOlOOOOOOlOOOOOO","MO1","Ober-Ramstadt Rondell # Modau # Rohrbach # Wembach #"]
["REG",18,"HEAG Verkehrs-GmbH",null,"056_",0,"R","So",949," ","Ober-Ramstadt","Solo-Überlandbus-NF",0,0,0,0,0,"2000-01-01T09:49:00","2000-01-01T10:23:30",1.4854166665463708,35.6499999971129,null,62,15360,952.32,0,0,"lOOOOOOlOOllOOlOOlOOOlOOOOOOlOOOOOOlOOOOOOlOOOOOOlOOOOOOlOOOOOOlOOOOOOlOOOOOOlOOOOOOlOOOOOOlOOOOOOlOOOOOOlOOOOOOlOOOOOOlOOOOlOllOOOOOlOOOlOOlOOOOOOlOOOOOOlOOOOOOlOOOlOOlOOOOOOllOOOOOlOOOlOOlOOOOOOlOOOOOOlOOOOOOlOOOOOOlOOOOOOlOOOOOOlOOOOOOlOOOOOOlOOOOOOlOOOOOOlOOOOOOlOOOOOOlOOOOOOlOOOOOOlOOOOlOlOOOOOOlOOOOOOlOOOOOOlOOOOOOlOOOOOOlOOOOOOlOOOOOOlOOOOOOlOOOOOOlOOOOOO","MO1","Ober-Ramstadt Rondell # Modau # Rohrbach # Wembach #"]
["REG",18,"HEAG Verkehrs-GmbH",null,"056_",0,"R","So",949," ","Roßdorf","Solo-Überlandbus-NF",0,0,0,0,0,"2000-01-01T10:23:30","2000-01-01T10:31:18",0.33583333334536292,8.06000000028871,null,62,3449,213.83799999999999,0,0,"lOOOOOOlOOllOOlOOlOOOlOOOOOOlOOOOOOlOOOOOOlOOOOOOlOOOOOOlOOOOOOlOOOOOOlOOOOOOlOOOOOOlOOOOOOlOOOOOOlOOOOOOlOOOOOOlOOOOOOlOOOOlOllOOOOOlOOOlOOlOOOOOOlOOOOOOlOOOOOOlOOOlOOlOOOOOOllOOOOOlOOOlOOlOOOOOOlOOOOOOlOOOOOOlOOOOOOlOOOOOOlOOOOOOlOOOOOOlOOOOOOlOOOOOOlOOOOOOlOOOOOOlOOOOOOlOOOOOOlOOOOOOlOOOOlOlOOOOOOlOOOOOOlOOOOOOlOOOOOOlOOOOOOlOOOOOOlOOOOOOlOOOOOOlOOOOOOlOOOOOO","MO1","Ober-Ramstadt Rondell # Modau # Rohrbach # Wembach #"]
["REG",18,"HEAG Verkehrs-GmbH",null,"056_",0,"R","So",949," ","Darmstadt","Solo-Überlandbus-NF",0,0,0,0,0,"2000-01-01T10:31:18","2000-01-01T10:52:00",0.8912499999278225,21.38999999826774,null,62,8726,541.01199999999994,0,0,"lOOOOOOlOOllOOlOOlOOOlOOOOOOlOOOOOOlOOOOOOlOOOOOOlOOOOOOlOOOOOOlOOOOOOlOOOOOOlOOOOOOlOOOOOOlOOOOOOlOOOOOOlOOOOOOlOOOOOOlOOOOlOllOOOOOlOOOlOOlOOOOOOlOOOOOOlOOOOOOlOOOlOOlOOOOOOllOOOOOlOOOlOOlOOOOOOlOOOOOOlOOOOOOlOOOOOOlOOOOOOlOOOOOOlOOOOOOlOOOOOOlOOOOOOlOOOOOOlOOOOOOlOOOOOOlOOOOOOlOOOOOOlOOOOlOlOOOOOOlOOOOOOlOOOOOOlOOOOOOlOOOOOOlOOOOOOlOOOOOOlOOOOOOlOOOOOOlOOOOOO","MO1","Ober-Ramstadt Rondell # Modau # Rohrbach # Wembach #"]
["REG",18,"HEAG Verkehrs-GmbH",null,"056_",0,"R","So",1049," ","Ober-Ramstadt","Solo-Überlandbus-NF",0,0,0,0,0,"2000-01-01T10:49:00","2000-01-01T11:23:30",1.4854166665463708,{"$f":"T259*24","v":35.6499999971129},null,62,15360,952.32,0,0,"lOOOOOOlOOllOOlOOlOOOlOOOOOOlOOOOOOlOOOOOOlOOOOOOlOOOOOOlOOOOOOlOOOOOOlOOOOOOlOOOOOOlOOOOOOlOOOOOOlOOOOOOlOOOOOOlOOOOOOlOOOOlOllOOOOOlOOOlOOlOOOOOOlOOOOOOlOOOOOOlOOOlOOlOOOOOOllOOOOOlOOOlOOlOOOOOOlOOOOOOlOOOOOOlOOOOOOlOOOOOOlOOOOOOlOOOOOOlOOOOOOlOOOOOOlOOOOOOlOOOOOOlOOOOOOlOOOOOOlOOOOOOlOOOOlOlOOOOOOlOOOOOOlOOOOOOlOOOOOOlOOOOOOlOOOOOOlOOOOOOlOOOOOOlOOOOOOlOOOOOO","MO1","Ober-Ramstadt Rondell # Modau # Rohrbach # Wembach #"]
["REG",18,"HEAG Verkehrs-GmbH",null,"056_",0,"R","So",1049," ","Roßdorf","Solo-Überlandbus-NF",0,0,0,0,0,"2000-01-01T11:23:30","2000-01-01T11:31:18",0.33583333334536292,8.06000000028871,null,62,3449,213.83799999999999,0,0,"lOOOOOOlOOllOOlOOlOOOlOOOOOOlOOOOOOlOOOOOOlOOOOOOlOOOOOOlOOOOOOlOOOOOOlOOOOOOlOOOOOOlOOOOOOlOOOOOOlOOOOOOlOOOOOOlOOOOOOlOOOOlOllOOOOOlOOOlOOlOOOOOOlOOOOOOlOOOOOOlOOOlOOlOOOOOOllOOOOOlOOOlOOlOOOOOOlOOOOOOlOOOOOOlOOOOOOlOOOOOOlOOOOOOlOOOOOOlOOOOOOlOOOOOOlOOOOOOlOOOOOOlOOOOOOlOOOOOOlOOOOOOlOOOOlOlOOOOOOlOOOOOOlOOOOOOlOOOOOOlOOOOOOlOOOOOOlOOOOOOlOOOOOOlOOOOOOlOOOOOO","MO1","Ober-Ramstadt Rondell # Modau # Rohrbach # Wembach #"]
["REG",18,"HEAG Verkehrs-GmbH",null,"056_",0,"R","So",1049," ","Darmstadt","Solo-Überlandbus-NF",0,0,0,0,0,"2000-01-01T11:31:18","2000-01-01T11:52:00",0.8912499999278225,21.38999999826774,null,62,8726,541.01199999999994,0,0,"lOOOOOOlOOllOOlOOlOOOlOOOOOOlOOOOOOlOOOOOOlOOOOOOlOOOOOOlOOOOOOlOOOOOOlOOOOOOlOOOOOOlOOOOOOlOOOOOOlOOOOOOlOOOOOOlOOOOOOlOOOOlOllOOOOOlOOOlOOlOOOOOOlOOOOOOlOOOOOOlOOOlOOlOOOOOOllOOOOOlOOOlOOlOOOOOOlOOOOOOlOOOOOOlOOOOOOlOOOOOOlOOOOOOlOOOOOOlOOOOOOlOOOOOOlOOOOOOlOOOOOOlOOOOOOlOOOOOOlOOOOOOlOOOOlOlOOOOOOlOOOOOOlOOOOOOlOOOOOOlOOOOOOlOOOOOOlOOOOOOlOOOOOOlOOOOOOlOOOOOO","MO1","Ober-Ramstadt Rondell # Modau # Rohrbach # Wembach #"]
["REG",18,"HEAG Verkehrs-GmbH",null,"056_",0,"R","So",1149," ","Ober-Ramstadt","Solo-Überlandbus-NF",0,0,0,0,0,"2000-01-01T11:49:00","2000-01-01T12:23:30",1.4854166669974802,35.650000007939525,null,62,15360,952.32,0,0,"lOOOOOOlOOllOOlOOlOOOlOOOOOOlOOOOOOlOOOOOOlOOOOOOlOOOOOOlOOOOOOlOOOOOOlOOOOOOlOOOOOOlOOOOOOlOOOOOOlOOOOOOlOOOOOOlOOOOOOlOOOOlOllOOOOOlOOOlOOlOOOOOOlOOOOOOlOOOOOOlOOOlOOlOOOOOOllOOOOOlOOOlOOlOOOOOOlOOOOOOlOOOOOOlOOOOOOlOOOOOOlOOOOOOlOOOOOOlOOOOOOlOOOOOOlOOOOOOlOOOOOOlOOOOOOlOOOOOOlOOOOOOlOOOOlOlOOOOOOlOOOOOOlOOOOOOlOOOOOOlOOOOOOlOOOOOOlOOOOOOlOOOOOOlOOOOOOlOOOOOO","MO1","Ober-Ramstadt Rondell # Modau # Rohrbach # Wembach #"]
["REG",18,"HEAG Verkehrs-GmbH",null,"056_",0,"R","So",1149," ","Roßdorf","Solo-Überlandbus-NF",0,0,0,0,0,"2000-01-01T12:23:30","2000-01-01T12:31:18",0.33583333334536292,8.06000000028871,null,62,3449,213.83799999999999,0,0,"lOOOOOOlOOllOOlOOlOOOlOOOOOOlOOOOOOlOOOOOOlOOOOOOlOOOOOOlOOOOOOlOOOOOOlOOOOOOlOOOOOOlOOOOOOlOOOOOOlOOOOOOlOOOOOOlOOOOOOlOOOOlOllOOOOOlOOOlOOlOOOOOOlOOOOOOlOOOOOOlOOOlOOlOOOOOOllOOOOOlOOOlOOlOOOOOOlOOOOOOlOOOOOOlOOOOOOlOOOOOOlOOOOOOlOOOOOOlOOOOOOlOOOOOOlOOOOOOlOOOOOOlOOOOOOlOOOOOOlOOOOOOlOOOOlOlOOOOOOlOOOOOOlOOOOOOlOOOOOOlOOOOOOlOOOOOOlOOOOOOlOOOOOOlOOOOOOlOOOOOO","MO1","Ober-Ramstadt Rondell # Modau # Rohrbach # Wembach #"]
["REG",18,"HEAG Verkehrs-GmbH",null,"056_",0,"R","So",1149," ","Darmstadt","Solo-Überlandbus-NF",0,0,0,0,0,"2000-01-01T12:31:18","2000-01-01T12:52:00",0.8912499999278225,21.38999999826774,null,62,8726,541.01199999999994,0,0,"lOOOOOOlOOllOOlOOlOOOlOOOOOOlOOOOOOlOOOOOOlOOOOOOlOOOOOOlOOOOOOlOOOOOOlOOOOOOlOOOOOOlOOOOOOlOOOOOOlOOOOOOlOOOOOOlOOOOOOlOOOOlOllOOOOOlOOOlOOlOOOOOOlOOOOOOlOOOOOOlOOOlOOlOOOOOOllOOOOOlOOOlOOlOOOOOOlOOOOOOlOOOOOOlOOOOOOlOOOOOOlOOOOOOlOOOOOOlOOOOOOlOOOOOOlOOOOOOlOOOOOOlOOOOOOlOOOOOOlOOOOOOlOOOOlOlOOOOOOlOOOOOOlOOOOOOlOOOOOOlOOOOOOlOOOOOOlOOOOOOlOOOOOOlOOOOOOlOOOOOO","MO1","Ober-Ramstadt Rondell # Modau # Rohrbach # Wembach #"]
["REG",18,"HEAG Verkehrs-GmbH",null,"056_",0,"R","So",1249," ","Ober-Ramstadt","Solo-Überlandbus-NF",0,0,0,0,0,"2000-01-01T12:49:00","2000-01-01T13:23:30",1.4854166665463708,35.6499999971129,null,62,15360,952.32,0,0,"lOOOOOOlOOllOOlOOlOOOlOOOOOOlOOOOOOlOOOOOOlOOOOOOlOOOOOOlOOOOOOlOOOOOOlOOOOOOlOOOOOOlOOOOOOlOOOOOOlOOOOOOlOOOOOOlOOOOOOlOOOOlOllOOOOOlOOOlOOlOOOOOOlOOOOOOlOOOOOOlOOOlOOlOOOOOOllOOOOOlOOOlOOlOOOOOOlOOOOOOlOOOOOOlOOOOOOlOOOOOOlOOOOOOlOOOOOOlOOOOOOlOOOOOOlOOOOOOlOOOOOOlOOOOOOlOOOOOOlOOOOOOlOOOOlOlOOOOOOlOOOOOOlOOOOOOlOOOOOOlOOOOOOlOOOOOOlOOOOOOlOOOOOOlOOOOOOlOOOOOO","MO1","Ober-Ramstadt Rondell # Modau # Rohrbach # Wembach #"]
["REG",18,"HEAG Verkehrs-GmbH",null,"056_",0,"R","So",1249," ","Roßdorf","Solo-Überlandbus-NF",0,0,0,0,0,"2000-01-01T13:23:30","2000-01-01T13:31:18",0.33583333334536292,8.06000000028871,null,62,3449,213.83799999999999,0,0,"lOOOOOOlOOllOOlOOlOOOlOOOOOOlOOOOOOlOOOOOOlOOOOOOlOOOOOOlOOOOOOlOOOOOOlOOOOOOlOOOOOOlOOOOOOlOOOOOOlOOOOOOlOOOOOOlOOOOOOlOOOOlOllOOOOOlOOOlOOlOOOOOOlOOOOOOlOOOOOOlOOOlOOlOOOOOOllOOOOOlOOOlOOlOOOOOOlOOOOOOlOOOOOOlOOOOOOlOOOOOOlOOOOOOlOOOOOOlOOOOOOlOOOOOOlOOOOOOlOOOOOOlOOOOOOlOOOOOOlOOOOOOlOOOOlOlOOOOOOlOOOOOOlOOOOOOlOOOOOOlOOOOOOlOOOOOOlOOOOOOlOOOOOOlOOOOOOlOOOOOO","MO1","Ober-Ramstadt Rondell # Modau # Rohrbach # Wembach #"]
["REG",18,"HEAG Verkehrs-GmbH",null,"056_",0,"R","So",1249," ","Darmstadt","Solo-Überlandbus-NF",0,0,0,0,0,"2000-01-01T13:31:18","2000-01-01T13:52:00",0.8912499999278225,21.38999999826774,null,62,8726,541.01199999999994,0,0,"lOOOOOOlOOllOOlOOlOOOlOOOOOOlOOOOOOlOOOOOOlOOOOOOlOOOOOOlOOOOOOlOOOOOOlOOOOOOlOOOOOOlOOOOOOlOOOOOOlOOOOOOlOOOOOOlOOOOOOlOOOOlOllOOOOOlOOOlOOlOOOOOOlOOOOOOlOOOOOOlOOOlOOlOOOOOOllOOOOOlOOOlOOlOOOOOOlOOOOOOlOOOOOOlOOOOOOlOOOOOOlOOOOOOlOOOOOOlOOOOOOlOOOOOOlOOOOOOlOOOOOOlOOOOOOlOOOOOOlOOOOOOlOOOOlOlOOOOOOlOOOOOOlOOOOOOlOOOOOOlOOOOOOlOOOOOOlOOOOOOlOOOOOOlOOOOOOlOOOOOO","MO1","Ober-Ramstadt Rondell # Modau # Rohrbach # Wembach #"]
["REG",18,"HEAG Verkehrs-GmbH",null,"056_",0,"R","So",1349," ","Ober-Ramstadt","Solo-Überlandbus-NF",0,0,0,0,0,"2000-01-01T13:49:00","2000-01-01T14:23:30",1.4854166665463708,35.6499999971129,null,62,15360,952.32,0,0,"lOOOOOOlOOllOOlOOlOOOlOOOOOOlOOOOOOlOOOOOOlOOOOOOlOOOOOOlOOOOOOlOOOOOOlOOOOOOlOOOOOOlOOOOOOlOOOOOOlOOOOOOlOOOOOOlOOOOOOlOOOOlOllOOOOOlOOOlOOlOOOOOOlOOOOOOlOOOOOOlOOOlOOlOOOOOOllOOOOOlOOOlOOlOOOOOOlOOOOOOlOOOOOOlOOOOOOlOOOOOOlOOOOOOlOOOOOOlOOOOOOlOOOOOOlOOOOOOlOOOOOOlOOOOOOlOOOOOOlOOOOOOlOOOOlOlOOOOOOlOOOOOOlOOOOOOlOOOOOOlOOOOOOlOOOOOOlOOOOOOlOOOOOOlOOOOOOlOOOOOO","MO1","Ober-Ramstadt Rondell # Modau # Rohrbach # Wembach #"]
["REG",18,"HEAG Verkehrs-GmbH",null,"056_",0,"R","So",1349," ","Roßdorf","Solo-Überlandbus-NF",0,0,0,0,0,"2000-01-01T14:23:30","2000-01-01T14:31:18",0.33583333334536292,8.06000000028871,null,62,3449,213.83799999999999,0,0,"lOOOOOOlOOllOOlOOlOOOlOOOOOOlOOOOOOlOOOOOOlOOOOOOlOOOOOOlOOOOOOlOOOOOOlOOOOOOlOOOOOOlOOOOOOlOOOOOOlOOOOOOlOOOOOOlOOOOOOlOOOOlOllOOOOOlOOOlOOlOOOOOOlOOOOOOlOOOOOOlOOOlOOlOOOOOOllOOOOOlOOOlOOlOOOOOOlOOOOOOlOOOOOOlOOOOOOlOOOOOOlOOOOOOlOOOOOOlOOOOOOlOOOOOOlOOOOOOlOOOOOOlOOOOOOlOOOOOOlOOOOOOlOOOOlOlOOOOOOlOOOOOOlOOOOOOlOOOOOOlOOOOOOlOOOOOOlOOOOOOlOOOOOOlOOOOOOlOOOOOO","MO1","Ober-Ramstadt Rondell # Modau # Rohrbach # Wembach #"]
["REG",18,"HEAG Verkehrs-GmbH",null,"056_",0,"R","So",1349," ","Darmstadt","Solo-Überlandbus-NF",0,0,0,0,0,"2000-01-01T14:31:18","2000-01-01T14:52:00",0.8912499999278225,21.38999999826774,null,62,8726,541.01199999999994,0,0,"lOOOOOOlOOllOOlOOlOOOlOOOOOOlOOOOOOlOOOOOOlOOOOOOlOOOOOOlOOOOOOlOOOOOOlOOOOOOlOOOOOOlOOOOOOlOOOOOOlOOOOOOlOOOOOOlOOOOOOlOOOOlOllOOOOOlOOOlOOlOOOOOOlOOOOOOlOOOOOOlOOOlOOlOOOOOOllOOOOOlOOOlOOlOOOOOOlOOOOOOlOOOOOOlOOOOOOlOOOOOOlOOOOOOlOOOOOOlOOOOOOlOOOOOOlOOOOOOlOOOOOOlOOOOOOlOOOOOOlOOOOOOlOOOOlOlOOOOOOlOOOOOOlOOOOOOlOOOOOOlOOOOOOlOOOOOOlOOOOOOlOOOOOOlOOOOOOlOOOOOO","MO1","Ober-Ramstadt Rondell # Modau # Rohrbach # Wembach #"]
["REG",18,"HEAG Verkehrs-GmbH",null,"056_",0,"R","So",1449," ","Ober-Ramstadt","Solo-Überlandbus-NF",0,0,0,0,0,"2000-01-01T14:49:00","2000-01-01T15:23:30",1.4854166669974802,35.650000007939525,null,62,15360,952.32,0,0,"lOOOOOOlOOllOOlOOlOOOlOOOOOOlOOOOOOlOOOOOOlOOOOOOlOOOOOOlOOOOOOlOOOOOOlOOOOOOlOOOOOOlOOOOOOlOOOOOOlOOOOOOlOOOOOOlOOOOOOlOOOOlOllOOOOOlOOOlOOlOOOOOOlOOOOOOlOOOOOOlOOOlOOlOOOOOOllOOOOOlOOOlOOlOOOOOOlOOOOOOlOOOOOOlOOOOOOlOOOOOOlOOOOOOlOOOOOOlOOOOOOlOOOOOOlOOOOOOlOOOOOOlOOOOOOlOOOOOOlOOOOOOlOOOOlOlOOOOOOlOOOOOOlOOOOOOlOOOOOOlOOOOOOlOOOOOOlOOOOOOlOOOOOOlOOOOOOlOOOOOO","MO1","Ober-Ramstadt Rondell # Modau # Rohrbach # Wembach #"]
["REG",18,"HEAG Verkehrs-GmbH",null,"056_",0,"R","So",1449," ","Roßdorf","Solo-Überlandbus-NF",0,0,0,0,0,"2000-01-01T15:23:30","2000-01-01T15:31:18",0.33583333334536292,8.06000000028871,null,62,3449,213.83799999999999,0,0,"lOOOOOOlOOllOOlOOlOOOlOOOOOOlOOOOOOlOOOOOOlOOOOOOlOOOOOOlOOOOOOlOOOOOOlOOOOOOlOOOOOOlOOOOOOlOOOOOOlOOOOOOlOOOOOOlOOOOOOlOOOOlOllOOOOOlOOOlOOlOOOOOOlOOOOOOlOOOOOOlOOOlOOlOOOOOOllOOOOOlOOOlOOlOOOOOOlOOOOOOlOOOOOOlOOOOOOlOOOOOOlOOOOOOlOOOOOOlOOOOOOlOOOOOOlOOOOOOlOOOOOOlOOOOOOlOOOOOOlOOOOOOlOOOOlOlOOOOOOlOOOOOOlOOOOOOlOOOOOOlOOOOOOlOOOOOOlOOOOOOlOOOOOOlOOOOOOlOOOOOO","MO1","Ober-Ramstadt Rondell # Modau # Rohrbach # Wembach #"]
["REG",18,"HEAG Verkehrs-GmbH",null,"056_",0,"R","So",1449," ","Darmstadt","Solo-Überlandbus-NF",0,0,0,0,0,"2000-01-01T15:31:18","2000-01-01T15:52:00",0.8912499999278225,21.38999999826774,null,62,8726,541.01199999999994,0,0,"lOOOOOOlOOllOOlOOlOOOlOOOOOOlOOOOOOlOOOOOOlOOOOOOlOOOOOOlOOOOOOlOOOOOOlOOOOOOlOOOOOOlOOOOOOlOOOOOOlOOOOOOlOOOOOOlOOOOOOlOOOOlOllOOOOOlOOOlOOlOOOOOOlOOOOOOlOOOOOOlOOOlOOlOOOOOOllOOOOOlOOOlOOlOOOOOOlOOOOOOlOOOOOOlOOOOOOlOOOOOOlOOOOOOlOOOOOOlOOOOOOlOOOOOOlOOOOOOlOOOOOOlOOOOOOlOOOOOOlOOOOOOlOOOOlOlOOOOOOlOOOOOOlOOOOOOlOOOOOOlOOOOOOlOOOOOOlOOOOOOlOOOOOOlOOOOOOlOOOOOO","MO1","Ober-Ramstadt Rondell # Modau # Rohrbach # Wembach #"]
["REG",18,"HEAG Verkehrs-GmbH",null,"056_",0,"R","So",1549," ","Ober-Ramstadt","Solo-Überlandbus-NF",0,0,0,0,0,"2000-01-01T15:49:00","2000-01-01T16:23:30",1.4854166665463708,35.6499999971129,null,62,15360,952.32,0,0,"lOOOOOOlOOllOOlOOlOOOlOOOOOOlOOOOOOlOOOOOOlOOOOOOlOOOOOOlOOOOOOlOOOOOOlOOOOOOlOOOOOOlOOOOOOlOOOOOOlOOOOOOlOOOOOOlOOOOOOlOOOOlOllOOOOOlOOOlOOlOOOOOOlOOOOOOlOOOOOOlOOOlOOlOOOOOOllOOOOOlOOOlOOlOOOOOOlOOOOOOlOOOOOOlOOOOOOlOOOOOOlOOOOOOlOOOOOOlOOOOOOlOOOOOOlOOOOOOlOOOOOOlOOOOOOlOOOOOOlOOOOOOlOOOOlOlOOOOOOlOOOOOOlOOOOOOlOOOOOOlOOOOOOlOOOOOOlOOOOOOlOOOOOOlOOOOOOlOOOOOO","MO1","Ober-Ramstadt Rondell # Modau # Rohrbach # Wembach #"]
["REG",18,"HEAG Verkehrs-GmbH",null,"056_",0,"R","So",1549," ","Roßdorf","Solo-Überlandbus-NF",0,0,0,0,0,"2000-01-01T16:23:30","2000-01-01T16:31:18",0.33583333334536292,8.06000000028871,null,62,3449,213.83799999999999,0,0,"lOOOOOOlOOllOOlOOlOOOlOOOOOOlOOOOOOlOOOOOOlOOOOOOlOOOOOOlOOOOOOlOOOOOOlOOOOOOlOOOOOOlOOOOOOlOOOOOOlOOOOOOlOOOOOOlOOOOOOlOOOOlOllOOOOOlOOOlOOlOOOOOOlOOOOOOlOOOOOOlOOOlOOlOOOOOOllOOOOOlOOOlOOlOOOOOOlOOOOOOlOOOOOOlOOOOOOlOOOOOOlOOOOOOlOOOOOOlOOOOOOlOOOOOOlOOOOOOlOOOOOOlOOOOOOlOOOOOOlOOOOOOlOOOOlOlOOOOOOlOOOOOOlOOOOOOlOOOOOOlOOOOOOlOOOOOOlOOOOOOlOOOOOOlOOOOOOlOOOOOO","MO1","Ober-Ramstadt Rondell # Modau # Rohrbach # Wembach #"]
["REG",18,"HEAG Verkehrs-GmbH",null,"056_",0,"R","So",1549," ","Darmstadt","Solo-Überlandbus-NF",0,0,0,0,0,"2000-01-01T16:31:18","2000-01-01T16:52:00",0.8912499999278225,21.38999999826774,null,62,8726,541.01199999999994,0,0,"lOOOOOOlOOllOOlOOlOOOlOOOOOOlOOOOOOlOOOOOOlOOOOOOlOOOOOOlOOOOOOlOOOOOOlOOOOOOlOOOOOOlOOOOOOlOOOOOOlOOOOOOlOOOOOOlOOOOOOlOOOOlOllOOOOOlOOOlOOlOOOOOOlOOOOOOlOOOOOOlOOOlOOlOOOOOOllOOOOOlOOOlOOlOOOOOOlOOOOOOlOOOOOOlOOOOOOlOOOOOOlOOOOOOlOOOOOOlOOOOOOlOOOOOOlOOOOOOlOOOOOOlOOOOOOlOOOOOOlOOOOOOlOOOOlOlOOOOOOlOOOOOOlOOOOOOlOOOOOOlOOOOOOlOOOOOOlOOOOOOlOOOOOOlOOOOOOlOOOOOO","MO1","Ober-Ramstadt Rondell # Modau # Rohrbach # Wembach #"]
["REG",18,"HEAG Verkehrs-GmbH",null,"056_",0,"R","So",1649," ","Ober-Ramstadt","Solo-Überlandbus-NF",0,0,0,0,0,"2000-01-01T16:49:00","2000-01-01T17:23:30",1.4854166665463708,35.6499999971129,null,62,15360,952.32,0,0,"lOOOOOOlOOllOOlOOlOOOlOOOOOOlOOOOOOlOOOOOOlOOOOOOlOOOOOOlOOOOOOlOOOOOOlOOOOOOlOOOOOOlOOOOOOlOOOOOOlOOOOOOlOOOOOOlOOOOOOlOOOOlOllOOOOOlOOOlOOlOOOOOOlOOOOOOlOOOOOOlOOOlOOlOOOOOOllOOOOOlOOOlOOlOOOOOOlOOOOOOlOOOOOOlOOOOOOlOOOOOOlOOOOOOlOOOOOOlOOOOOOlOOOOOOlOOOOOOlOOOOOOlOOOOOOlOOOOOOlOOOOOOlOOOOlOlOOOOOOlOOOOOOlOOOOOOlOOOOOOlOOOOOOlOOOOOOlOOOOOOlOOOOOOlOOOOOOlOOOOOO","MO1","Ober-Ramstadt Rondell # Modau # Rohrbach # Wembach #"]
["REG",18,"HEAG Verkehrs-GmbH",null,"056_",0,"R","So",1649," ","Roßdorf","Solo-Überlandbus-NF",0,0,0,0,0,"2000-01-01T17:23:30","2000-01-01T17:31:18",0.33583333334536292,8.06000000028871,null,62,3449,213.83799999999999,0,0,"lOOOOOOlOOllOOlOOlOOOlOOOOOOlOOOOOOlOOOOOOlOOOOOOlOOOOOOlOOOOOOlOOOOOOlOOOOOOlOOOOOOlOOOOOOlOOOOOOlOOOOOOlOOOOOOlOOOOOOlOOOOlOllOOOOOlOOOlOOlOOOOOOlOOOOOOlOOOOOOlOOOlOOlOOOOOOllOOOOOlOOOlOOlOOOOOOlOOOOOOlOOOOOOlOOOOOOlOOOOOOlOOOOOOlOOOOOOlOOOOOOlOOOOOOlOOOOOOlOOOOOOlOOOOOOlOOOOOOlOOOOOOlOOOOlOlOOOOOOlOOOOOOlOOOOOOlOOOOOOlOOOOOOlOOOOOOlOOOOOOlOOOOOOlOOOOOOlOOOOOO","MO1","Ober-Ramstadt Rondell # Modau # Rohrbach # Wembach #"]
["REG",18,"HEAG Verkehrs-GmbH",null,"056_",0,"R","So",1649," ","Darmstadt","Solo-Überlandbus-NF",0,0,0,0,0,"2000-01-01T17:31:18","2000-01-01T17:52:00",0.8912499999278225,21.38999999826774,null,62,8726,541.01199999999994,0,0,"lOOOOOOlOOllOOlOOlOOOlOOOOOOlOOOOOOlOOOOOOlOOOOOOlOOOOOOlOOOOOOlOOOOOOlOOOOOOlOOOOOOlOOOOOOlOOOOOOlOOOOOOlOOOOOOlOOOOOOlOOOOlOllOOOOOlOOOlOOlOOOOOOlOOOOOOlOOOOOOlOOOlOOlOOOOOOllOOOOOlOOOlOOlOOOOOOlOOOOOOlOOOOOOlOOOOOOlOOOOOOlOOOOOOlOOOOOOlOOOOOOlOOOOOOlOOOOOOlOOOOOOlOOOOOOlOOOOOOlOOOOOOlOOOOlOlOOOOOOlOOOOOOlOOOOOOlOOOOOOlOOOOOOlOOOOOOlOOOOOOlOOOOOOlOOOOOOlOOOOOO","MO1","Ober-Ramstadt Rondell # Modau # Rohrbach # Wembach #"]
["REG",18,"HEAG Verkehrs-GmbH",null,"056_",0,"R","So",1749," ","Ober-Ramstadt","Solo-Überlandbus-NF",0,0,0,0,0,"2000-01-01T17:49:00","2000-01-01T18:23:30",1.4854166669974802,35.650000007939525,null,62,15360,952.32,0,0,"lOOOOOOlOOllOOlOOlOOOlOOOOOOlOOOOOOlOOOOOOlOOOOOOlOOOOOOlOOOOOOlOOOOOOlOOOOOOlOOOOOOlOOOOOOlOOOOOOlOOOOOOlOOOOOOlOOOOOOlOOOOlOllOOOOOlOOOlOOlOOOOOOlOOOOOOlOOOOOOlOOOlOOlOOOOOOllOOOOOlOOOlOOlOOOOOOlOOOOOOlOOOOOOlOOOOOOlOOOOOOlOOOOOOlOOOOOOlOOOOOOlOOOOOOlOOOOOOlOOOOOOlOOOOOOlOOOOOOlOOOOOOlOOOOlOlOOOOOOlOOOOOOlOOOOOOlOOOOOOlOOOOOOlOOOOOOlOOOOOOlOOOOOOlOOOOOOlOOOOOO","MO1","Ober-Ramstadt Rondell # Modau # Rohrbach # Wembach #"]
["REG",18,"HEAG Verkehrs-GmbH",null,"056_",0,"R","So",1749," ","Roßdorf","Solo-Überlandbus-NF",0,0,0,0,0,"2000-01-01T18:23:30","2000-01-01T18:31:18",0.33583333334536292,8.06000000028871,null,62,3449,213.83799999999999,0,0,"lOOOOOOlOOllOOlOOlOOOlOOOOOOlOOOOOOlOOOOOOlOOOOOOlOOOOOOlOOOOOOlOOOOOOlOOOOOOlOOOOOOlOOOOOOlOOOOOOlOOOOOOlOOOOOOlOOOOOOlOOOOlOllOOOOOlOOOlOOlOOOOOOlOOOOOOlOOOOOOlOOOlOOlOOOOOOllOOOOOlOOOlOOlOOOOOOlOOOOOOlOOOOOOlOOOOOOlOOOOOOlOOOOOOlOOOOOOlOOOOOOlOOOOOOlOOOOOOlOOOOOOlOOOOOOlOOOOOOlOOOOOOlOOOOlOlOOOOOOlOOOOOOlOOOOOOlOOOOOOlOOOOOOlOOOOOOlOOOOOOlOOOOOOlOOOOOOlOOOOOO","MO1","Ober-Ramstadt Rondell # Modau # Rohrbach # Wembach #"]
["REG",18,"HEAG Verkehrs-GmbH",null,"056_",0,"R","So",1749," ","Darmstadt","Solo-Überlandbus-NF",0,0,0,0,0,"2000-01-01T18:31:18","2000-01-01T18:52:00",0.8912499999278225,21.38999999826774,null,62,8726,541.01199999999994,0,0,"lOOOOOOlOOllOOlOOlOOOlOOOOOOlOOOOOOlOOOOOOlOOOOOOlOOOOOOlOOOOOOlOOOOOOlOOOOOOlOOOOOOlOOOOOOlOOOOOOlOOOOOOlOOOOOOlOOOOOOlOOOOlOllOOOOOlOOOlOOlOOOOOOlOOOOOOlOOOOOOlOOOlOOlOOOOOOllOOOOOlOOOlOOlOOOOOOlOOOOOOlOOOOOOlOOOOOOlOOOOOOlOOOOOOlOOOOOOlOOOOOOlOOOOOOlOOOOOOlOOOOOOlOOOOOOlOOOOOOlOOOOOOlOOOOlOlOOOOOOlOOOOOOlOOOOOOlOOOOOOlOOOOOOlOOOOOOlOOOOOOlOOOOOOlOOOOOOlOOOOOO","MO1","Ober-Ramstadt Rondell # Modau # Rohrbach # Wembach #"]
["REG",18,"HEAG Verkehrs-GmbH",null,"056_",0,"R","So",1849," ","Ober-Ramstadt","Solo-Überlandbus-NF",0,0,0,0,0,"2000-01-01T18:49:00","2000-01-01T19:23:30",1.4854166665463708,35.6499999971129,null,62,15360,952.32,0,0,"lOOOOOOlOOllOOlOOlOOOlOOOOOOlOOOOOOlOOOOOOlOOOOOOlOOOOOOlOOOOOOlOOOOOOlOOOOOOlOOOOOOlOOOOOOlOOOOOOlOOOOOOlOOOOOOlOOOOOOlOOOOlOllOOOOOlOOOlOOlOOOOOOlOOOOOOlOOOOOOlOOOlOOlOOOOOOllOOOOOlOOOlOOlOOOOOOlOOOOOOlOOOOOOlOOOOOOlOOOOOOlOOOOOOlOOOOOOlOOOOOOlOOOOOOlOOOOOOlOOOOOOlOOOOOOlOOOOOOlOOOOOOlOOOOlOlOOOOOOlOOOOOOlOOOOOOlOOOOOOlOOOOOOlOOOOOOlOOOOOOlOOOOOOlOOOOOOlOOOOOO","MO1","Ober-Ramstadt Rondell # Modau # Rohrbach # Wembach #"]
["REG",18,"HEAG Verkehrs-GmbH",null,"056_",0,"R","So",1849," ","Roßdorf","Solo-Überlandbus-NF",0,0,0,0,0,"2000-01-01T19:23:30","2000-01-01T19:31:18",0.33583333334536292,8.06000000028871,null,62,3449,213.83799999999999,0,0,"lOOOOOOlOOllOOlOOlOOOlOOOOOOlOOOOOOlOOOOOOlOOOOOOlOOOOOOlOOOOOOlOOOOOOlOOOOOOlOOOOOOlOOOOOOlOOOOOOlOOOOOOlOOOOOOlOOOOOOlOOOOlOllOOOOOlOOOlOOlOOOOOOlOOOOOOlOOOOOOlOOOlOOlOOOOOOllOOOOOlOOOlOOlOOOOOOlOOOOOOlOOOOOOlOOOOOOlOOOOOOlOOOOOOlOOOOOOlOOOOOOlOOOOOOlOOOOOOlOOOOOOlOOOOOOlOOOOOOlOOOOOOlOOOOlOlOOOOOOlOOOOOOlOOOOOOlOOOOOOlOOOOOOlOOOOOOlOOOOOOlOOOOOOlOOOOOOlOOOOOO","MO1","Ober-Ramstadt Rondell # Modau # Rohrbach # Wembach #"]
["REG",18,"HEAG Verkehrs-GmbH",null,"056_",0,"R","So",1849," ","Darmstadt","Solo-Überlandbus-NF",0,0,0,0,0,"2000-01-01T19:31:18","2000-01-01T19:52:00",0.8912499999278225,21.38999999826774,null,62,8726,541.01199999999994,0,0,"lOOOOOOlOOllOOlOOlOOOlOOOOOOlOOOOOOlOOOOOOlOOOOOOlOOOOOOlOOOOOOlOOOOOOlOOOOOOlOOOOOOlOOOOOOlOOOOOOlOOOOOOlOOOOOOlOOOOOOlOOOOlOllOOOOOlOOOlOOlOOOOOOlOOOOOOlOOOOOOlOOOlOOlOOOOOOllOOOOOlOOOlOOlOOOOOOlOOOOOOlOOOOOOlOOOOOOlOOOOOOlOOOOOOlOOOOOOlOOOOOOlOOOOOOlOOOOOOlOOOOOOlOOOOOOlOOOOOOlOOOOOOlOOOOlOlOOOOOOlOOOOOOlOOOOOOlOOOOOOlOOOOOOlOOOOOOlOOOOOOlOOOOOOlOOOOOOlOOOOOO","MO1","Ober-Ramstadt Rondell # Modau # Rohrbach # Wembach #"]
["REG",18,"HEAG Verkehrs-GmbH",null,"056_",0,"R","So",2213," ","Ober-Ramstadt","Solo-Überlandbus-NF",0,0,0,0,0,"2000-01-01T22:13:00","2000-01-01T22:36:00",0.99027777784795035,23.766666668350808,null,62,10913,676.60599999999999,0,0,"lOOOOOOlOOllOOlOOlOOOlOOOOOOlOOOOOOlOOOOOOlOOOOOOlOOOOOOlOOOOOOlOOOOOOlOOOOOOlOOOOOOlOOOOOOlOOOOOOlOOOOOOlOOOOOOlOOOOOOlOOOOlOllOOOOOlOOOlOOlOOOOOOlOOOOOOlOOOOOOlOOOlOOlOOOOOOllOOOOOlOOOlOOlOOOOOOlOOOOOOlOOOOOOlOOOOOOlOOOOOOlOOOOOOlOOOOOOlOOOOOOlOOOOOOlOOOOOOlOOOOOOlOOOOOOlOOOOOOlOOOOOOlOOOOlOlOOOOOOlOOOOOOlOOOOOOlOOOOOOlOOOOOOlOOOOOOlOOOOOOlOOOOOOlOOOOOOlOOOOOO","MO1","Ober-Ramstadt Rondell # Modau # Rohrbach # Wembach #"]
["REG",18,"HEAG Verkehrs-GmbH",null,"056_",0,"R","So",2313," ","Ober-Ramstadt","Solo-Überlandbus-NF",0,0,0,0,0,"2000-01-01T23:13:00","2000-01-01T23:36:00",0.99027777739684097,23.766666657524183,null,62,10913,676.60599999999999,0,0,"lOOOOOOlOOllOOlOOlOOOlOOOOOOlOOOOOOlOOOOOOlOOOOOOlOOOOOOlOOOOOOlOOOOOOlOOOOOOlOOOOOOlOOOOOOlOOOOOOlOOOOOOlOOOOOOlOOOOOOlOOOOlOllOOOOOlOOOlOOlOOOOOOlOOOOOOlOOOOOOlOOOlOOlOOOOOOllOOOOOlOOOlOOlOOOOOOlOOOOOOlOOOOOOlOOOOOOlOOOOOOlOOOOOOlOOOOOOlOOOOOOlOOOOOOlOOOOOOlOOOOOOlOOOOOOlOOOOOOlOOOOOOlOOOOlOlOOOOOOlOOOOOOlOOOOOOlOOOOOOlOOOOOOlOOOOOOlOOOOOOlOOOOOOlOOOOOOlOOOOOO","MO1","Ober-Ramstadt Rondell # Modau # Rohrbach # Wembach #"]
["REG",18,"HEAG Verkehrs-GmbH",null,"056_",0,"R","So",2413," ","Ober-Ramstadt","Solo-Überlandbus-NF",0,0,0,0,0,"2000-01-02T00:13:00","2000-01-02T00:36:00",0.99027777784795035,23.766666668350808,null,62,10913,676.60599999999999,0,0,"lOOOOOOlOOllOOlOOlOOOlOOOOOOlOOOOOOlOOOOOOlOOOOOOlOOOOOOlOOOOOOlOOOOOOlOOOOOOlOOOOOOlOOOOOOlOOOOOOlOOOOOOlOOOOOOlOOOOOOlOOOOlOllOOOOOlOOOlOOlOOOOOOlOOOOOOlOOOOOOlOOOlOOlOOOOOOllOOOOOlOOOlOOlOOOOOOlOOOOOOlOOOOOOlOOOOOOlOOOOOOlOOOOOOlOOOOOOlOOOOOOlOOOOOOlOOOOOOlOOOOOOlOOOOOOlOOOOOOlOOOOOOlOOOOlOlOOOOOOlOOOOOOlOOOOOOlOOOOOOlOOOOOOlOOOOOOlOOOOOOlOOOOOOlOOOOOOlOOOOOO","MO1","Ober-Ramstadt Rondell # Modau # Rohrbach # Wembach #"]
["REG",18,"HEAG Verkehrs-GmbH",null,"056_",0,"R","So",2513," ","Ober-Ramstadt","Solo-Überlandbus-NF",0,0,0,0,0,"2000-01-02T01:13:00","2000-01-02T01:36:00",0.11180555556347826,2.6833333335234784,"ef    - gültig in den Nächten 25./26.12.2024, 02./03.03., 18./19.04., 20./21.04., 08./09",7,10913,76.391000000000005,0,0,"OOOOOOOOOOlOOOOOOOOOOOOOOOOOOOOOOOOOOOOOOOOOOOOOOOOOOOOOOOOOOOOOOOOOOOOOOOOOOlOOOOOOOOOOOOOOOOOOOOOOOOOOOOOOOOOOOOOOOOOOOOOOlOlOOOOOOOOOOOOOOOOOOOOOOOOOOOOOOOOOOOOOOOOOOOOOOOOlOOOOOOOOOOOOOOOOOOOOOOOOOOOlOOOOOOOOOOOOOOOOOOOOOOOOOOOOOOOOOOOOOOOOOOOOOOOOOOOOOOOOOOOOOOOOOOOOOOOOOOOOOOOOOOOOOOOOlOOOOOOOOOOOOOOOOOOOOOOOOOOOOOOOOOOOOOOOOOOOOOOOOOOOOOOOOOOOOOOOOOOOOOOO","MO1","Ober-Ramstadt Rondell # Modau # Rohrbach # Wembach #"]
[null,null,null,null,null,null,null,null,null,null,null,null,null,null,null,null,null,null,null,null,{"$f":"SUM(U2:U289)","v":12886.483333192882}]

{"sheet":"Ermittlung Fahrplanstunden","index":3,"n_rows":2,"n_cols":2,"rows_kept":2,"cut":false,"hidden":false,"merged":[]}
["Fahrplanstunden gem. Betriebsleistungsstatistik",{"$f":"Grunddaten!U290","v":12886.483333192882}]
["anrechenbare Fahrplanstunden",{"$f":"SUM(B1)","v":12886.483333192882}]